Workbook

Sheet D15
B1: MINISTERIO DE SALUD
B2: SERVICIO SALUD COQUIMBO
B3: SUBDEPTO. DE ESTADISTICAS Y GESTION DE LA INFORMACION
B4: COMUNA/HOSPITAL
B5: MES
B6: AÑO: 2022
B7: REM-D.15 - Programa Nacional de Alimentación Complementaria (PNAC)
B8: Sección A: PNAC - Cantidad distribuida (kg) a personas intrasistema
B9: Subprogramas | C9: Productos | D9: Total | E9: Menores a 6 años | L9: Gestantes | N9: Mujer con hijo/a menor a 12 meses
E10: 0 - 2 meses | F10: 3 - 5 meses | G10: 6 - 11 meses | H10: 12 - 17 meses | I10: 18 - 23 meses | J10: 24 - 47 meses | K10: 48 - 71 meses | L10: Normal, sobrepeso y obesas | M10: Bajo peso | N10: 0-5 meses con Lactancia Materna exclusiva | O10: 0-5 meses Lactancia materna predominante, formula predominante o formula exclusiva | P10: 6 a 11 meses Lactancia Materna
A13: 15010100 | B13: Básico | C13: Leche Purita Fortificada (LPF) | D13: =IFERROR(VLOOKUP($A13,Filtro_!$A$5:$P$54,2,FALSE),0) -> 37,337.0 | E13: =IFERROR(VLOOKUP($A13,Filtro_!$A$5:$P$54,3,FALSE),0) -> 0 | F13: =IFERROR(VLOOKUP($A13,Filtro_!$A$5:$P$54,4,FALSE),0) -> 0 | G13: =IFERROR(VLOOKUP($A13,Filtro_!$A$5:$P$54,5,FALSE),0) -> 1,996.0 | H13: =IFERROR(VLOOKUP($A13,Filtro_!$A$5:$P$54,6,FALSE),0) -> 34,737.0 | I13: =IFERROR(VLOOKUP($A13,Filtro_!$A$5:$P$54,7,FALSE),0) -> 234.0 | J13: =IFERROR(VLOOKUP($A13,Filtro_!$A$5:$P$54,8,FALSE),0) -> 12.0 | K13: =IFERROR(VLOOKUP($A13,Filtro_!$A$5:$P$54,9,FALSE),0) -> 16.0 | L13: =IFERROR(VLOOKUP($A13,Filtro_!$A$5:$P$54,10,FALSE),0) -> 181.0 | M13: =IFERROR(VLOOKUP($A13,Filtro_!$A$5:$P$54,11,FALSE),0) -> 0.0 | N13: =IFERROR(VLOOKUP($A13,Filtro_!$A$5:$P$54,12,FALSE),0) -> 157.0 | O13: =IFERROR(VLOOKUP($A13,Filtro_!$A$5:$P$54,13,FALSE),0) -> 2.0 | P13: =IFERROR(VLOOKUP($A13,Filtro_!$A$5:$P$54,14,FALSE),0) -> 6.0 | Q13: =AB13&" "&AC13 -> 
A14: 15010200 | C14: Purita Cereal (PC) | D14: =IFERROR(VLOOKUP($A14,Filtro_!$A$5:$P$54,2,FALSE),0) -> 153,600.0 | E14: =IFERROR(VLOOKUP($A14,Filtro_!$A$5:$P$54,3,FALSE),0) -> 0 | F14: =IFERROR(VLOOKUP($A14,Filtro_!$A$5:$P$54,4,FALSE),0) -> 0 | G14: =IFERROR(VLOOKUP($A14,Filtro_!$A$5:$P$54,5,FALSE),0) -> 0 | H14: =IFERROR(VLOOKUP($A14,Filtro_!$A$5:$P$54,6,FALSE),0) -> 0 | I14: =IFERROR(VLOOKUP($A14,Filtro_!$A$5:$P$54,7,FALSE),0) -> 30,394.0 | J14: =IFERROR(VLOOKUP($A14,Filtro_!$A$5:$P$54,8,FALSE),0) -> 67,557.0 | K14: =IFERROR(VLOOKUP($A14,Filtro_!$A$5:$P$54,9,FALSE),0) -> 55,651.0 | L14: =IFERROR(VLOOKUP($A14,Filtro_!$A$5:$P$54,10,FALSE),0) -> 0 | M14: =IFERROR(VLOOKUP($A14,Filtro_!$A$5:$P$54,11,FALSE),0) -> 0 | N14: =IFERROR(VLOOKUP($A14,Filtro_!$A$5:$P$54,12,FALSE),0) -> 0 | O14: =IFERROR(VLOOKUP($A14,Filtro_!$A$5:$P$54,13,FALSE),0) -> 0 | P14: =IFERROR(VLOOKUP($A14,Filtro_!$A$5:$P$54,14,FALSE),0) -> 0
A15: 15080008 | C15: Purita Mamá (PM) | D15: =IFERROR(VLOOKUP($A15,Filtro_!$A$5:$P$54,2,FALSE),0) -> 44835.0 | E15: =IFERROR(VLOOKUP($A15,Filtro_!$A$5:$P$54,3,FALSE),0) -> 0.000 | F15: =IFERROR(VLOOKUP($A15,Filtro_!$A$5:$P$54,4,FALSE),0) -> 0.000 | G15: =IFERROR(VLOOKUP($A15,Filtro_!$A$5:$P$54,5,FALSE),0) -> 0.000 | H15: =IFERROR(VLOOKUP($A15,Filtro_!$A$5:$P$54,6,FALSE),0) -> 0.000 | I15: =IFERROR(VLOOKUP($A15,Filtro_!$A$5:$P$54,7,FALSE),0) -> 0.000 | J15: =IFERROR(VLOOKUP($A15,Filtro_!$A$5:$P$54,8,FALSE),0) -> 0.000 | K15: =IFERROR(VLOOKUP($A15,Filtro_!$A$5:$P$54,9,FALSE),0) -> 0.000 | L15: =IFERROR(VLOOKUP($A15,Filtro_!$A$5:$P$54,10,FALSE),0) -> 22493.0 | M15: =IFERROR(VLOOKUP($A15,Filtro_!$A$5:$P$54,11,FALSE),0) -> 0.000 | N15: =IFERROR(VLOOKUP($A15,Filtro_!$A$5:$P$54,12,FALSE),0) -> 15392.0 | O15: =IFERROR(VLOOKUP($A15,Filtro_!$A$5:$P$54,13,FALSE),0) -> 1967.0 | P15: =IFERROR(VLOOKUP($A15,Filtro_!$A$5:$P$54,14,FALSE),0) -> 4983.0 | Q15: =AB15&" "&AC15&" "&AD15&" "&AE15 -> No olvide escribir el Nº Correcto según kg por persona que retira alimento de la sección B en el grupo de Gestantes Normal, Sobrepeso y Obesas No olvide escribir el Nº Correcto según kg por persona que retira alimento de la sección B en el grupo de Madre con hijo/a menor a 6 meses con Lactancia materna exclusiva No olvide escribir el Nº Correcto según kg por persona que retira alimento de la sección B en el grupo de Madre con hijo/a menor a 6 meses con Lactancia materna predominante No olvide escribir el Nº Correcto según kg por persona que retira alimento de la sección B en el grupo de Madre con hijo/a menor a 6 meses con Formula predominantes o exclusiva | AB15: =IF(L13+L15=N38,""," No olvide escribir el Nº Correcto según kg por persona que retira alimento de la sección B en el grupo de Gestantes Normal, Sobrepeso y Obesas") -> No olvide escribir el Nº Correcto según kg por persona que retira alimento de la sección B en el grupo de Gestantes Normal, Sobrepeso y Obesas | AC15: =IF(N13+N15=(P38*2),"","No olvide escribir el Nº Correcto según kg por persona que retira alimento de la sección B en el grupo de Madre con hijo/a menor a 6 meses con Lactancia materna exclusiva") -> No olvide escribir el Nº Correcto según kg por persona que retira alimento de la sección B en el grupo de Madre con hijo/a menor a 6 meses con Lactancia materna exclusiva | AD15: =IF(O13+O15=Q38,"","No olvide escribir el Nº Correcto según kg por persona que retira alimento de la sección B en el grupo de Madre con hijo/a menor a 6 meses con Lactancia materna predominante") -> No olvide escribir el Nº Correcto según kg por persona que retira alimento de la sección B en el grupo de Madre con hijo/a menor a 6 meses con Lactancia materna predominante | AE15: =IF(P13+P15=R38,"","No olvide escribir el Nº Correcto según kg por persona que retira alimento de la sección B en el grupo de Madre con hijo/a menor a 6 meses con Formula predominantes o exclusiva") -> No olvide escribir el Nº Correcto según kg por persona que retira alimento de la sección B en el grupo de Madre con hijo/a menor a 6 meses con Formula predominantes o exclusiva | AG15: =IF(L15=N38,0,1) -> 1 | AH15: =IF(N15=(P38*2),0,1) -> 1 | AI15: =IF(O15=Q38,0,1) -> 1 | AJ15: =IF(P15=R38,0,1) -> 1
A16: 15900010 | C16: Fórmula de Inicio (FI) | D16: =IFERROR(VLOOKUP($A16,Filtro_!$A$5:$P$54,2,FALSE),0) -> 1835321.300 | E16: =IFERROR(VLOOKUP($A16,Filtro_!$A$5:$P$54,3,FALSE),0) -> 121515.000 | F16: =IFERROR(VLOOKUP($A16,Filtro_!$A$5:$P$54,4,FALSE),0) -> 370332.100 | G16: =IFERROR(VLOOKUP($A16,Filtro_!$A$5:$P$54,5,FALSE),0) -> 1343465.200 | H16: =IFERROR(VLOOKUP($A16,Filtro_!$A$5:$P$54,6,FALSE),0) -> 0.000 | I16: =IFERROR(VLOOKUP($A16,Filtro_!$A$5:$P$54,7,FALSE),0) -> 0.000 | J16: =IFERROR(VLOOKUP($A16,Filtro_!$A$5:$P$54,8,FALSE),0) -> 0.000 | K16: =IFERROR(VLOOKUP($A16,Filtro_!$A$5:$P$54,9,FALSE),0) -> 0.000 | L16: =IFERROR(VLOOKUP($A16,Filtro_!$A$5:$P$54,10,FALSE),0) -> 0.000 | M16: =IFERROR(VLOOKUP($A16,Filtro_!$A$5:$P$54,11,FALSE),0) -> 0.000 | N16: =IFERROR(VLOOKUP($A16,Filtro_!$A$5:$P$54,12,FALSE),0) -> 0.000 | O16: =IFERROR(VLOOKUP($A16,Filtro_!$A$5:$P$54,13,FALSE),0) -> 0.000 | P16: =IFERROR(VLOOKUP($A16,Filtro_!$A$5:$P$54,14,FALSE),0) -> 0.000
C17: Subtotal | D17: =SUM(E17:P17) -> 2071090.30 | E17: =SUM(E16) -> 121515.00 | F17: =SUM(F16) -> 370332.10 | G17: =SUM(G13:G16) -> 1345461.20 | H17: =SUM(H13) -> 34737.00 | I17: =SUM(I13:I14) -> 30628.00 | J17: =SUM(J13:J14) -> 67569.00 | K17: =SUM(K13:K14) -> 55667.00 | L17: =SUM(L13:L16) -> 22674.00 | M17: =SUM(M13) -> 0.00 | N17: =SUM(N13:N16) -> 15549.00 | O17: =SUM(O13:O16) -> 1969.00 | P17: =SUM(P13:P16) -> 4989.00
A18: 15010300 | B18: Refuerzo | C18: Leche Purita Fortificada (LPF) | D18: =IFERROR(VLOOKUP($A18,Filtro_!$A$5:$P$54,2,FALSE),0) -> 826.0 | E18: =IFERROR(VLOOKUP($A18,Filtro_!$A$5:$P$54,3,FALSE),0) -> 0 | F18: =IFERROR(VLOOKUP($A18,Filtro_!$A$5:$P$54,4,FALSE),0) -> 0.0 | G18: =IFERROR(VLOOKUP($A18,Filtro_!$A$5:$P$54,5,FALSE),0) -> 73.0 | H18: =IFERROR(VLOOKUP($A18,Filtro_!$A$5:$P$54,6,FALSE),0) -> 679.0 | I18: =IFERROR(VLOOKUP($A18,Filtro_!$A$5:$P$54,7,FALSE),0) -> 74.0 | J18: =IFERROR(VLOOKUP($A18,Filtro_!$A$5:$P$54,8,FALSE),0) -> 0.0 | K18: =IFERROR(VLOOKUP($A18,Filtro_!$A$5:$P$54,9,FALSE),0) -> 0.0 | L18: =IFERROR(VLOOKUP($A18,Filtro_!$A$5:$P$54,10,FALSE),0) -> 0.0 | M18: =IFERROR(VLOOKUP($A18,Filtro_!$A$5:$P$54,11,FALSE),0) -> 0.0 | N18: =IFERROR(VLOOKUP($A18,Filtro_!$A$5:$P$54,12,FALSE),0) -> 0.0 | O18: =IFERROR(VLOOKUP($A18,Filtro_!$A$5:$P$54,13,FALSE),0) -> 0.0 | P18: =IFERROR(VLOOKUP($A18,Filtro_!$A$5:$P$54,14,FALSE),0) -> 0.0 | Q18: =AB18&" "&AC18 ->  | AB18: =IF(L18 = L23, "","el valor de la Leche Purita Fortificada (LPF) deben ser igual al subotal Normal, sobrepeso y obesas del gestante") -> 
A19: 15010400 | C19: Purita Cereal (PC) | D19: =IFERROR(VLOOKUP($A19,Filtro_!$A$5:$P$54,2,FALSE),0) -> 3861.0 | E19: =IFERROR(VLOOKUP($A19,Filtro_!$A$5:$P$54,3,FALSE),0) -> 0 | F19: =IFERROR(VLOOKUP($A19,Filtro_!$A$5:$P$54,4,FALSE),0) -> 0.0 | G19: =IFERROR(VLOOKUP($A19,Filtro_!$A$5:$P$54,5,FALSE),0) -> 0 | H19: =IFERROR(VLOOKUP($A19,Filtro_!$A$5:$P$54,6,FALSE),0) -> 0 | I19: =IFERROR(VLOOKUP($A19,Filtro_!$A$5:$P$54,7,FALSE),0) -> 584.0 | J19: =IFERROR(VLOOKUP($A19,Filtro_!$A$5:$P$54,8,FALSE),0) -> 2166.0 | K19: =IFERROR(VLOOKUP($A19,Filtro_!$A$5:$P$54,9,FALSE),0) -> 1111.0 | L19: =IFERROR(VLOOKUP($A19,Filtro_!$A$5:$P$54,10,FALSE),0) -> 0 | M19: =IFERROR(VLOOKUP($A19,Filtro_!$A$5:$P$54,11,FALSE),0) -> 0 | N19: =IFERROR(VLOOKUP($A19,Filtro_!$A$5:$P$54,12,FALSE),0) -> 0 | O19: =IFERROR(VLOOKUP($A19,Filtro_!$A$5:$P$54,13,FALSE),0) -> 0 | P19: =IFERROR(VLOOKUP($A19,Filtro_!$A$5:$P$54,14,FALSE),0) -> 0
A20: 15010500 | C20: Mi Sopita (MS) | D20: =IFERROR(VLOOKUP($A20,Filtro_!$A$5:$P$54,2,FALSE),0) -> 5380 | E20: =IFERROR(VLOOKUP($A20,Filtro_!$A$5:$P$54,3,FALSE),0) -> 0 | F20: =IFERROR(VLOOKUP($A20,Filtro_!$A$5:$P$54,4,FALSE),0) -> 12 | G20: =IFERROR(VLOOKUP($A20,Filtro_!$A$5:$P$54,5,FALSE),0) -> 724 | H20: =IFERROR(VLOOKUP($A20,Filtro_!$A$5:$P$54,6,FALSE),0) -> 698 | I20: =IFERROR(VLOOKUP($A20,Filtro_!$A$5:$P$54,7,FALSE),0) -> 658 | J20: =IFERROR(VLOOKUP($A20,Filtro_!$A$5:$P$54,8,FALSE),0) -> 2177 | K20: =IFERROR(VLOOKUP($A20,Filtro_!$A$5:$P$54,9,FALSE),0) -> 1111 | L20: =IFERROR(VLOOKUP($A20,Filtro_!$A$5:$P$54,10,FALSE),0) -> 0 | M20: =IFERROR(VLOOKUP($A20,Filtro_!$A$5:$P$54,11,FALSE),0) -> 0 | N20: =IFERROR(VLOOKUP($A20,Filtro_!$A$5:$P$54,12,FALSE),0) -> 0 | O20: =IFERROR(VLOOKUP($A20,Filtro_!$A$5:$P$54,13,FALSE),0) -> 0 | P20: =IFERROR(VLOOKUP($A20,Filtro_!$A$5:$P$54,14,FALSE),0) -> 0 | Q20: =AB20&" "&AC20&" "&AD20&" "&AE20&" "&AB21&" "&AC21 -> 
A21: 15080009 | C21: Purita Mamá (PM) | D21: =IFERROR(VLOOKUP($A21,Filtro_!$A$5:$P$54,2,FALSE),0) -> 1411.0 | E21: =IFERROR(VLOOKUP($A21,Filtro_!$A$5:$P$54,3,FALSE),0) -> 0.000 | F21: =IFERROR(VLOOKUP($A21,Filtro_!$A$5:$P$54,4,FALSE),0) -> 0.000 | G21: =IFERROR(VLOOKUP($A21,Filtro_!$A$5:$P$54,5,FALSE),0) -> 0.000 | H21: =IFERROR(VLOOKUP($A21,Filtro_!$A$5:$P$54,6,FALSE),0) -> 0.000 | I21: =IFERROR(VLOOKUP($A21,Filtro_!$A$5:$P$54,7,FALSE),0) -> 0.000 | J21: =IFERROR(VLOOKUP($A21,Filtro_!$A$5:$P$54,8,FALSE),0) -> 0.000 | K21: =IFERROR(VLOOKUP($A21,Filtro_!$A$5:$P$54,9,FALSE),0) -> 0.000 | L21: =IFERROR(VLOOKUP($A21,Filtro_!$A$5:$P$54,10,FALSE),0) -> 0 | M21: =IFERROR(VLOOKUP($A21,Filtro_!$A$5:$P$54,11,FALSE),0) -> 1221.0 | N21: =IFERROR(VLOOKUP($A21,Filtro_!$A$5:$P$54,12,FALSE),0) -> 143.0 | O21: =IFERROR(VLOOKUP($A21,Filtro_!$A$5:$P$54,13,FALSE),0) -> 34.0 | P21: =IFERROR(VLOOKUP($A21,Filtro_!$A$5:$P$54,14,FALSE),0) -> 13.0
A22: 15900020 | C22: Fórmula de Inicio (FI) | D22: =IFERROR(VLOOKUP($A22,Filtro_!$A$5:$P$54,2,FALSE),0) -> 26685.500 | E22: =IFERROR(VLOOKUP($A22,Filtro_!$A$5:$P$54,3,FALSE),0) -> 11366.400 | F22: =IFERROR(VLOOKUP($A22,Filtro_!$A$5:$P$54,4,FALSE),0) -> 10332.600 | G22: =IFERROR(VLOOKUP($A22,Filtro_!$A$5:$P$54,5,FALSE),0) -> 4986.500 | H22: =IFERROR(VLOOKUP($A22,Filtro_!$A$5:$P$54,6,FALSE),0) -> 0.000 | I22: =IFERROR(VLOOKUP($A22,Filtro_!$A$5:$P$54,7,FALSE),0) -> 0.000 | J22: =IFERROR(VLOOKUP($A22,Filtro_!$A$5:$P$54,8,FALSE),0) -> 0.000 | K22: =IFERROR(VLOOKUP($A22,Filtro_!$A$5:$P$54,9,FALSE),0) -> 0.000 | L22: =IFERROR(VLOOKUP($A22,Filtro_!$A$5:$P$54,10,FALSE),0) -> 0 | M22: =IFERROR(VLOOKUP($A22,Filtro_!$A$5:$P$54,11,FALSE),0) -> 0 | N22: =IFERROR(VLOOKUP($A22,Filtro_!$A$5:$P$54,12,FALSE),0) -> 0 | O22: =IFERROR(VLOOKUP($A22,Filtro_!$A$5:$P$54,13,FALSE),0) -> 0 | P22: =IFERROR(VLOOKUP($A22,Filtro_!$A$5:$P$54,14,FALSE),0) -> 0
C23: Subtotal | D23: =SUM(E23:P23) -> 38163.50 | E23: =SUM(E22) -> 11366.40 | F23: =SUM(F18:F22) -> 10344.60 | G23: =SUM(G18:G22) -> 5783.50 | H23: =SUM(H18:H20) -> 1377.00 | I23: =SUM(I18:I20) -> 1316.00 | J23: =SUM(J18:J20) -> 4343.00 | K23: =SUM(K18:K20) -> 2222.00 | L23: =SUM(L18) -> 0.00 | M23: =SUM(M18:M22) -> 1221.00 | N23: =SUM(N18:N22) -> 143.00 | O23: =SUM(O18:O22) -> 34.00 | P23: =SUM(P18:P22) -> 13.00
A24: 15030100 | B24: Prematuros | C24: Fórmula de Prematuros (FP) | D24: =IFERROR(VLOOKUP($A24,Filtro_!$A$5:$P$54,2,FALSE),0) -> 87432.400 | E24: =IFERROR(VLOOKUP($A24,Filtro_!$A$5:$P$54,3,FALSE),0) -> 36552.400 | F24: =IFERROR(VLOOKUP($A24,Filtro_!$A$5:$P$54,4,FALSE),0) -> 29339.200 | G24: =IFERROR(VLOOKUP($A24,Filtro_!$A$5:$P$54,5,FALSE),0) -> 21540.800 | H24: =IFERROR(VLOOKUP($A24,Filtro_!$A$5:$P$54,6,FALSE),0) -> 0.000 | I24: =IFERROR(VLOOKUP($A24,Filtro_!$A$5:$P$54,7,FALSE),0) -> 0.000 | J24: =IFERROR(VLOOKUP($A24,Filtro_!$A$5:$P$54,8,FALSE),0) -> 0.000 | K24: =IFERROR(VLOOKUP($A24,Filtro_!$A$5:$P$54,9,FALSE),0) -> 0.000 | L24: =IFERROR(VLOOKUP($A24,Filtro_!$A$5:$P$54,10,FALSE),0) -> 0 | M24: =IFERROR(VLOOKUP($A24,Filtro_!$A$5:$P$54,11,FALSE),0) -> 0 | N24: =IFERROR(VLOOKUP($A24,Filtro_!$A$5:$P$54,12,FALSE),0) -> 0 | O24: =IFERROR(VLOOKUP($A24,Filtro_!$A$5:$P$54,13,FALSE),0) -> 0 | P24: =IFERROR(VLOOKUP($A24,Filtro_!$A$5:$P$54,14,FALSE),0) -> 0
A25: 15030200 | C25: Fórmula de Continuación (FC) | D25: =IFERROR(VLOOKUP($A25,Filtro_!$A$5:$P$54,2,FALSE),0) -> 30949.600 | E25: =IFERROR(VLOOKUP($A25,Filtro_!$A$5:$P$54,3,FALSE),0) -> 0.000 | F25: =IFERROR(VLOOKUP($A25,Filtro_!$A$5:$P$54,4,FALSE),0) -> 0.000 | G25: =IFERROR(VLOOKUP($A25,Filtro_!$A$5:$P$54,5,FALSE),0) -> 30949.600 | H25: =IFERROR(VLOOKUP($A25,Filtro_!$A$5:$P$54,6,FALSE),0) -> 0.000 | I25: =IFERROR(VLOOKUP($A25,Filtro_!$A$5:$P$54,7,FALSE),0) -> 0.000 | J25: =IFERROR(VLOOKUP($A25,Filtro_!$A$5:$P$54,8,FALSE),0) -> 0.000 | K25: =IFERROR(VLOOKUP($A25,Filtro_!$A$5:$P$54,9,FALSE),0) -> 0.000 | L25: =IFERROR(VLOOKUP($A25,Filtro_!$A$5:$P$54,10,FALSE),0) -> 0 | M25: =IFERROR(VLOOKUP($A25,Filtro_!$A$5:$P$54,11,FALSE),0) -> 0 | N25: =IFERROR(VLOOKUP($A25,Filtro_!$A$5:$P$54,12,FALSE),0) -> 0 | O25: =IFERROR(VLOOKUP($A25,Filtro_!$A$5:$P$54,13,FALSE),0) -> 0 | P25: =IFERROR(VLOOKUP($A25,Filtro_!$A$5:$P$54,14,FALSE),0) -> 0
A26: 15080012 | C26: Mi Sopita (MS) | D26: =IFERROR(VLOOKUP($A26,Filtro_!$A$5:$P$54,2,FALSE),0) -> 18 | E26: =IFERROR(VLOOKUP($A26,Filtro_!$A$5:$P$54,3,FALSE),0) -> 0 | F26: =IFERROR(VLOOKUP($A26,Filtro_!$A$5:$P$54,4,FALSE),0) -> 0 | G26: =IFERROR(VLOOKUP($A26,Filtro_!$A$5:$P$54,5,FALSE),0) -> 18 | H26: =IFERROR(VLOOKUP($A26,Filtro_!$A$5:$P$54,6,FALSE),0) -> 0 | I26: =IFERROR(VLOOKUP($A26,Filtro_!$A$5:$P$54,7,FALSE),0) -> 0 | J26: =IFERROR(VLOOKUP($A26,Filtro_!$A$5:$P$54,8,FALSE),0) -> 0 | K26: =IFERROR(VLOOKUP($A26,Filtro_!$A$5:$P$54,9,FALSE),0) -> 0 | L26: =IFERROR(VLOOKUP($A26,Filtro_!$A$5:$P$54,10,FALSE),0) -> 0 | M26: =IFERROR(VLOOKUP($A26,Filtro_!$A$5:$P$54,11,FALSE),0) -> 0 | N26: =IFERROR(VLOOKUP($A26,Filtro_!$A$5:$P$54,12,FALSE),0) -> 0 | O26: =IFERROR(VLOOKUP($A26,Filtro_!$A$5:$P$54,13,FALSE),0) -> 0 | P26: =IFERROR(VLOOKUP($A26,Filtro_!$A$5:$P$54,14,FALSE),0) -> 0
A27: 15901500 | C27: Fórmula de Inicio (FI) | D27: =IFERROR(VLOOKUP($A27,Filtro_!$A$5:$P$54,2,FALSE),0) -> 826.700 | E27: =IFERROR(VLOOKUP($A27,Filtro_!$A$5:$P$54,3,FALSE),0) -> 131.900 | F27: =IFERROR(VLOOKUP($A27,Filtro_!$A$5:$P$54,4,FALSE),0) -> 200.000 | G27: =IFERROR(VLOOKUP($A27,Filtro_!$A$5:$P$54,5,FALSE),0) -> 494.800 | H27: =IFERROR(VLOOKUP($A27,Filtro_!$A$5:$P$54,6,FALSE),0) -> 0 | I27: =IFERROR(VLOOKUP($A27,Filtro_!$A$5:$P$54,7,FALSE),0) -> 0 | J27: =IFERROR(VLOOKUP($A27,Filtro_!$A$5:$P$54,8,FALSE),0) -> 0 | K27: =IFERROR(VLOOKUP($A27,Filtro_!$A$5:$P$54,9,FALSE),0) -> 0 | L27: =IFERROR(VLOOKUP($A27,Filtro_!$A$5:$P$54,10,FALSE),0) -> 0 | M27: =IFERROR(VLOOKUP($A27,Filtro_!$A$5:$P$54,11,FALSE),0) -> 0 | N27: =IFERROR(VLOOKUP($A27,Filtro_!$A$5:$P$54,12,FALSE),0) -> 0 | O27: =IFERROR(VLOOKUP($A27,Filtro_!$A$5:$P$54,13,FALSE),0) -> 0 | P27: =IFERROR(VLOOKUP($A27,Filtro_!$A$5:$P$54,14,FALSE),0) -> 0
C28: Subtotal | D28: =SUM(E28:P28) -> 119226.70 | E28: =SUM(E24:E27) -> 36684.30 | F28: =SUM(F24,F26:F27) -> 29539.20 | G28: =SUM(G24,G25,G26:G27) -> 53003.20 | H28: 0.00 | I28: 0.00 | J28: 0.00 | K28: 0.00 | L28: 0.00 | M28: 0.00 | N28: 0.00 | O28: 0.00 | P28: 0.00
A29: 15900030 | B29: Alergia a la proteína de la leche de vaca | C29: Fórmula Extensamente Hidrolizada (FEH) | D29: =IFERROR(VLOOKUP($A29,Filtro_!$A$5:$P$54,2,FALSE),0) -> 121540.650 | E29: =IFERROR(VLOOKUP($A29,Filtro_!$A$5:$P$54,3,FALSE),0) -> 6600.800 | F29: =IFERROR(VLOOKUP($A29,Filtro_!$A$5:$P$54,4,FALSE),0) -> 12076.800 | G29: =IFERROR(VLOOKUP($A29,Filtro_!$A$5:$P$54,5,FALSE),0) -> 59761.050 | H29: =IFERROR(VLOOKUP($A29,Filtro_!$A$5:$P$54,6,FALSE),0) -> 34893.200 | I29: =IFERROR(VLOOKUP($A29,Filtro_!$A$5:$P$54,7,FALSE),0) -> 8182.000 | J29: =IFERROR(VLOOKUP($A29,Filtro_!$A$5:$P$54,8,FALSE),0) -> 26.800 | K29: =IFERROR(VLOOKUP($A29,Filtro_!$A$5:$P$54,9,FALSE),0) -> 0.000 | L29: =IFERROR(VLOOKUP($A29,Filtro_!$A$5:$P$54,10,FALSE),0) -> 0.000 | M29: =IFERROR(VLOOKUP($A29,Filtro_!$A$5:$P$54,11,FALSE),0) -> 0.000 | N29: =IFERROR(VLOOKUP($A29,Filtro_!$A$5:$P$54,12,FALSE),0) -> 0.000 | O29: =IFERROR(VLOOKUP($A29,Filtro_!$A$5:$P$54,13,FALSE),0) -> 0.000 | P29: =IFERROR(VLOOKUP($A29,Filtro_!$A$5:$P$54,14,FALSE),0) -> 0.000
A30: 15900040 | C30: Fórmula Aminoacídica (FAA) | D30: =IFERROR(VLOOKUP($A30,Filtro_!$A$5:$P$54,2,FALSE),0) -> 40601.200 | E30: =IFERROR(VLOOKUP($A30,Filtro_!$A$5:$P$54,3,FALSE),0) -> 5318.400 | F30: =IFERROR(VLOOKUP($A30,Filtro_!$A$5:$P$54,4,FALSE),0) -> 12317.200 | G30: =IFERROR(VLOOKUP($A30,Filtro_!$A$5:$P$54,5,FALSE),0) -> 6849.600 | H30: =IFERROR(VLOOKUP($A30,Filtro_!$A$5:$P$54,6,FALSE),0) -> 15870.800 | I30: =IFERROR(VLOOKUP($A30,Filtro_!$A$5:$P$54,7,FALSE),0) -> 237.600 | J30: =IFERROR(VLOOKUP($A30,Filtro_!$A$5:$P$54,8,FALSE),0) -> 7.600 | K30: =IFERROR(VLOOKUP($A30,Filtro_!$A$5:$P$54,9,FALSE),0) -> 0.000 | L30: =IFERROR(VLOOKUP($A30,Filtro_!$A$5:$P$54,10,FALSE),0) -> 0.000 | M30: =IFERROR(VLOOKUP($A30,Filtro_!$A$5:$P$54,11,FALSE),0) -> 0.000 | N30: =IFERROR(VLOOKUP($A30,Filtro_!$A$5:$P$54,12,FALSE),0) -> 0.000 | O30: =IFERROR(VLOOKUP($A30,Filtro_!$A$5:$P$54,13,FALSE),0) -> 0.000 | P30: =IFERROR(VLOOKUP($A30,Filtro_!$A$5:$P$54,14,FALSE),0) -> 0.000
C31: Subtotal | D31: =SUM(E31:P31) -> 162141.850 | E31: =SUM(E29:E30) -> 11919.200 | F31: =SUM(F29:F30) -> 24394.000 | G31: 66610.650 | H31: 50764.000 | I31: 8419.600 | J31: =SUM(J29:J30) -> 34.400 | K31: =SUM(K29:K30) -> 0.000 | L31: 0.000 | M31: 0.000 | N31: 0.000 | O31: 0.000 | P31: 0.000
B32: Total | D32: =SUM(E32:P32) -> 2390622.35 | E32: =+E17+E23+E31+E28 -> 181484.90 | F32: =+F17+F23+F31+F28 -> 434609.90 | G32: 1470858.55 | H32: 86878.00 | I32: 40363.60 | J32: 71946.40 | K32: 57889.00 | L32: 22674.00 | M32: 1221.00 | N32: 15692.00 | O32: 2003.00 | P32: 5002.00
B33: Sección B: PNAC - Número de personas intrasistema que retiran
B34: Subprogramas | D34: Total | E34: Total Hombre | F34: Total Mujer | G34: Menores a 6 años | N34: Gestantes | P34: Mujer con hijo/a menor a 12 meses
G35: 0 - 2 meses | H35: 3 - 5 meses | I35: 6 - 11 meses | J35: 12 - 17 meses | K35: 18 - 23 meses | L35: 24 - 47 meses | M35: 48 - 71 meses | N35: Normal, sobrepeso y obesas | O35: Bajo peso | P35: 0-5 meses con Lactancia Materna exclusiva | Q35: 0-5 meses Lactancia materna predominante, formula predominante o formula exclusiva | R35: 6 a 11 meses Lactancia Materna
A38: 15050100 | B38: Básico | D38: =IFERROR(VLOOKUP($A38,Filtro_!$A$5:$P$54,2,FALSE),0) -> 147688 | E38: =IFERROR(VLOOKUP($A38,Filtro_!$A$5:$P$54,3,FALSE),0) -> 59303 | F38: =IFERROR(VLOOKUP($A38,Filtro_!$A$5:$P$54,4,FALSE),0) -> 87896 | G38: =IFERROR(VLOOKUP($A38,Filtro_!$A$5:$P$54,5,FALSE),0) -> 1331 | H38: =IFERROR(VLOOKUP($A38,Filtro_!$A$5:$P$54,6,FALSE),0) -> 3510 | I38: =IFERROR(VLOOKUP($A38,Filtro_!$A$5:$P$54,7,FALSE),0) -> 11413 | J38: =IFERROR(VLOOKUP($A38,Filtro_!$A$5:$P$54,8,FALSE),0) -> 17017 | K38: =IFERROR(VLOOKUP($A38,Filtro_!$A$5:$P$54,9,FALSE),0) -> 15080 | L38: =IFERROR(VLOOKUP($A38,Filtro_!$A$5:$P$54,10,FALSE),0) -> 33801 | M38: =IFERROR(VLOOKUP($A38,Filtro_!$A$5:$P$54,11,FALSE),0) -> 28296 | N38: =IFERROR(VLOOKUP($A38,Filtro_!$A$5:$P$54,12,FALSE),0) -> 22518 | O38: =IFERROR(VLOOKUP($A38,Filtro_!$A$5:$P$54,13,FALSE),0) -> 0 | P38: =IFERROR(VLOOKUP($A38,Filtro_!$A$5:$P$54,14,FALSE),0) -> 7803 | Q38: =IFERROR(VLOOKUP($A38,Filtro_!$A$5:$P$54,15,FALSE),0) -> 1948 | R38: =IFERROR(VLOOKUP($A38,Filtro_!$A$5:$P$54,16,FALSE),0) -> 4971 | S38: =AB38 -> * La suma de los valores Total Hombres y Total Mujeres debe ser igual al Total. | AB38: =IF(AG38=1,"* La suma de los valores Total Hombres y Total Mujeres debe ser igual al Total.","") -> * La suma de los valores Total Hombres y Total Mujeres debe ser igual al Total. | AG38: =IF(E38+F38=D38,0,1) -> 1
A39: 15050200 | B39: Refuerzo | D39: =IFERROR(VLOOKUP($A39,Filtro_!$A$5:$P$54,2,FALSE),0) -> 3327 | E39: =IFERROR(VLOOKUP($A39,Filtro_!$A$5:$P$54,3,FALSE),0) -> 1604 | F39: =IFERROR(VLOOKUP($A39,Filtro_!$A$5:$P$54,4,FALSE),0) -> 1708 | G39: =IFERROR(VLOOKUP($A39,Filtro_!$A$5:$P$54,5,FALSE),0) -> 58 | H39: =IFERROR(VLOOKUP($A39,Filtro_!$A$5:$P$54,6,FALSE),0) -> 101 | I39: =IFERROR(VLOOKUP($A39,Filtro_!$A$5:$P$54,7,FALSE),0) -> 366 | J39: =IFERROR(VLOOKUP($A39,Filtro_!$A$5:$P$54,8,FALSE),0) -> 371 | K39: =IFERROR(VLOOKUP($A39,Filtro_!$A$5:$P$54,9,FALSE),0) -> 328 | L39: =IFERROR(VLOOKUP($A39,Filtro_!$A$5:$P$54,10,FALSE),0) -> 1070 | M39: =IFERROR(VLOOKUP($A39,Filtro_!$A$5:$P$54,11,FALSE),0) -> 529 | N39: =IFERROR(VLOOKUP($A39,Filtro_!$A$5:$P$54,12,FALSE),0) -> 0 | O39: =IFERROR(VLOOKUP($A39,Filtro_!$A$5:$P$54,13,FALSE),0) -> 410 | P39: =IFERROR(VLOOKUP($A39,Filtro_!$A$5:$P$54,14,FALSE),0) -> 50 | Q39: =IFERROR(VLOOKUP($A39,Filtro_!$A$5:$P$54,15,FALSE),0) -> 33 | R39: =IFERROR(VLOOKUP($A39,Filtro_!$A$5:$P$54,16,FALSE),0) -> 11 | S39: =AB39 -> * La suma de los valores Total Hombres y Total Mujeres debe ser igual al Total. | AB39: =IF(AG39=1,"* La suma de los valores Total Hombres y Total Mujeres debe ser igual al Total.","") -> * La suma de los valores Total Hombres y Total Mujeres debe ser igual al Total. | AG39: =IF(E39+F39=D39,0,1) -> 1
A40: 15050500 | B40: Prematuros | D40: =IFERROR(VLOOKUP($A40,Filtro_!$A$5:$P$54,2,FALSE),0) -> 655 | E40: =IFERROR(VLOOKUP($A40,Filtro_!$A$5:$P$54,3,FALSE),0) -> 360 | F40: =IFERROR(VLOOKUP($A40,Filtro_!$A$5:$P$54,4,FALSE),0) -> 294 | G40: =IFERROR(VLOOKUP($A40,Filtro_!$A$5:$P$54,5,FALSE),0) -> 206 | H40: =IFERROR(VLOOKUP($A40,Filtro_!$A$5:$P$54,6,FALSE),0) -> 184 | I40: =IFERROR(VLOOKUP($A40,Filtro_!$A$5:$P$54,7,FALSE),0) -> 265 | J40: =IFERROR(VLOOKUP($A40,Filtro_!$A$5:$P$54,8,FALSE),0) -> 0.000 | K40: =IFERROR(VLOOKUP($A40,Filtro_!$A$5:$P$54,9,FALSE),0) -> 0.000 | L40: =IFERROR(VLOOKUP($A40,Filtro_!$A$5:$P$54,10,FALSE),0) -> 0.000 | M40: =IFERROR(VLOOKUP($A40,Filtro_!$A$5:$P$54,11,FALSE),0) -> 0.000 | N40: =IFERROR(VLOOKUP($A40,Filtro_!$A$5:$P$54,12,FALSE),0) -> 0 | O40: =IFERROR(VLOOKUP($A40,Filtro_!$A$5:$P$54,13,FALSE),0) -> 0 | P40: =IFERROR(VLOOKUP($A40,Filtro_!$A$5:$P$54,14,FALSE),0) -> 0 | Q40: =IFERROR(VLOOKUP($A40,Filtro_!$A$5:$P$54,15,FALSE),0) -> 0 | R40: =IFERROR(VLOOKUP($A40,Filtro_!$A$5:$P$54,16,FALSE),0) -> 0 | S40: * La suma de los valores Total Hombres y Total Mujeres debe ser igual al Total. | AB40: * La suma de los valores Total Hombres y Total Mujeres debe ser igual al Total. | AG40: =IF(E40+F40=D40,0,1) -> 1
A41: 15900050 | B41: Alergia a la Proteína de la leche de vaca | D41: =IFERROR(VLOOKUP($A41,Filtro_!$A$5:$P$54,2,FALSE),0) -> 1465 | E41: =IFERROR(VLOOKUP($A41,Filtro_!$A$5:$P$54,3,FALSE),0) -> 798 | F41: =IFERROR(VLOOKUP($A41,Filtro_!$A$5:$P$54,4,FALSE),0) -> 663 | G41: =IFERROR(VLOOKUP($A41,Filtro_!$A$5:$P$54,5,FALSE),0) -> 108 | H41: =IFERROR(VLOOKUP($A41,Filtro_!$A$5:$P$54,6,FALSE),0) -> 238 | I41: =IFERROR(VLOOKUP($A41,Filtro_!$A$5:$P$54,7,FALSE),0) -> 542 | J41: =IFERROR(VLOOKUP($A41,Filtro_!$A$5:$P$54,8,FALSE),0) -> 342 | K41: =IFERROR(VLOOKUP($A41,Filtro_!$A$5:$P$54,9,FALSE),0) -> 225 | L41: =IFERROR(VLOOKUP($A41,Filtro_!$A$5:$P$54,10,FALSE),0) -> 10 | M41: =IFERROR(VLOOKUP($A41,Filtro_!$A$5:$P$54,11,FALSE),0) -> 0 | N41: =IFERROR(VLOOKUP($A41,Filtro_!$A$5:$P$54,12,FALSE),0) -> 0 | O41: =IFERROR(VLOOKUP($A41,Filtro_!$A$5:$P$54,13,FALSE),0) -> 0 | P41: =IFERROR(VLOOKUP($A41,Filtro_!$A$5:$P$54,14,FALSE),0) -> 0 | Q41: =IFERROR(VLOOKUP($A41,Filtro_!$A$5:$P$54,15,FALSE),0) -> 0 | R41: =IFERROR(VLOOKUP($A41,Filtro_!$A$5:$P$54,16,FALSE),0) -> 0 | S41: * La suma de los valores Total Hombres y Total Mujeres debe ser igual al Total. | AB41: * La suma de los valores Total Hombres y Total Mujeres debe ser igual al Total. | AG41: =IF(E41+F41=D41,0,1) -> 1
B42: TOTAL | D42: =SUM(G42:R42) -> 153135 | E42: =SUM(E38:E41) -> 62065 | F42: 90561 | G42: 1703 | H42: 4033 | I42: 12586 | J42: 17730 | K42: 15633 | L42: 34881 | M42: 28825 | N42: =N38 -> 22518 | O42: =O39 -> 410 | P42: =SUM(P38:P39) -> 7853 | Q42: =SUM(Q38:Q39) -> 1981 | R42: =SUM(R38:R39) -> 4982
A43: 15900060 | B43: Programas Sociales (*) | D43: =IFERROR(VLOOKUP($A43,Filtro_!$A$5:$P$54,2,FALSE),0) -> 2 | E43: =IFERROR(VLOOKUP($A43,Filtro_!$A$5:$P$54,3,FALSE),0) -> 2 | F43: =IFERROR(VLOOKUP($A43,Filtro_!$A$5:$P$54,4,FALSE),0) -> 0 | G43: =IFERROR(VLOOKUP($A43,Filtro_!$A$5:$P$54,5,FALSE),0) -> 0 | H43: =IFERROR(VLOOKUP($A43,Filtro_!$A$5:$P$54,6,FALSE),0) -> 0 | I43: =IFERROR(VLOOKUP($A43,Filtro_!$A$5:$P$54,7,FALSE),0) -> 0 | J43: =IFERROR(VLOOKUP($A43,Filtro_!$A$5:$P$54,8,FALSE),0) -> 0 | K43: =IFERROR(VLOOKUP($A43,Filtro_!$A$5:$P$54,9,FALSE),0) -> 0 | L43: =IFERROR(VLOOKUP($A43,Filtro_!$A$5:$P$54,10,FALSE),0) -> 0 | M43: =IFERROR(VLOOKUP($A43,Filtro_!$A$5:$P$54,11,FALSE),0) -> 2 | N43: =IFERROR(VLOOKUP($A43,Filtro_!$A$5:$P$54,12,FALSE),0) -> 0 | O43: =IFERROR(VLOOKUP($A43,Filtro_!$A$5:$P$54,13,FALSE),0) -> 0 | P43: =IFERROR(VLOOKUP($A43,Filtro_!$A$5:$P$54,14,FALSE),0) -> 0 | Q43: =IFERROR(VLOOKUP($A43,Filtro_!$A$5:$P$54,15,FALSE),0) -> 0 | R43: =IFERROR(VLOOKUP($A43,Filtro_!$A$5:$P$54,16,FALSE),0) -> 0 | AG43: =IF(E43+F43=D43,0,1) -> 0
B44: Nota: (*) Información referencial, ya incluida en los subprogramas.
B45: Sección C: PNAC: Cantidad distribuida (kg) a personas extrasistema (incluye modalidad libre elección)
B46: Subprogramas | C46: Productos | D46: Total | E46: Menores a 6 años | L46: Gestantes | N46: Mujer con hijo/a menor a 12 meses
E47: 0 - 2 meses | F47: 3 - 5 meses | G47: 6 - 11 meses | H47: 12 - 17 meses | I47: 18 - 23 meses | J47: 24 - 47 meses | K47: 48 - 71 meses | L47: Normal, sobrepeso y obesas | M47: Bajo peso | N47: 0-5 meses con Lactancia Materna exclusiva | O47: 0-5 meses Lactancia materna predominante, formula predominante o formula exclusiva | P47: 6 a 11 meses Lactancia Materna
A50: 15020100 | B50: Básico | C50: Leche Purita Fortificada (LPF) | D50: =IFERROR(VLOOKUP($A50,Filtro_!$A$5:$P$54,2,FALSE),0) -> 1,507.0 | E50: =IFERROR(VLOOKUP($A50,Filtro_!$A$5:$P$54,3,FALSE),0) -> 47 | F50: =IFERROR(VLOOKUP($A50,Filtro_!$A$5:$P$54,4,FALSE),0) -> 96 | G50: =IFERROR(VLOOKUP($A50,Filtro_!$A$5:$P$54,5,FALSE),0) -> 560.0 | H50: =IFERROR(VLOOKUP($A50,Filtro_!$A$5:$P$54,6,FALSE),0) -> 813.0 | I50: =IFERROR(VLOOKUP($A50,Filtro_!$A$5:$P$54,7,FALSE),0) -> 4.0 | J50: =IFERROR(VLOOKUP($A50,Filtro_!$A$5:$P$54,8,FALSE),0) -> 0.0 | K50: =IFERROR(VLOOKUP($A50,Filtro_!$A$5:$P$54,9,FALSE),0) -> 0.0 | L50: =IFERROR(VLOOKUP($A50,Filtro_!$A$5:$P$54,10,FALSE),0) -> 0 | M50: =IFERROR(VLOOKUP($A50,Filtro_!$A$5:$P$54,11,FALSE),0) -> 0 | N50: =IFERROR(VLOOKUP($A50,Filtro_!$A$5:$P$54,12,FALSE),0) -> 2 | O50: =IFERROR(VLOOKUP($A50,Filtro_!$A$5:$P$54,13,FALSE),0) -> 0 | P50: =IFERROR(VLOOKUP($A50,Filtro_!$A$5:$P$54,14,FALSE),0) -> 0 | Q50: =AB50&" "&AC50 -> 
A51: 15020200 | C51: Purita Cereal (PC) | D51: =IFERROR(VLOOKUP($A51,Filtro_!$A$5:$P$54,2,FALSE),0) -> 3,198.0 | E51: =IFERROR(VLOOKUP($A51,Filtro_!$A$5:$P$54,3,FALSE),0) -> 0 | F51: =IFERROR(VLOOKUP($A51,Filtro_!$A$5:$P$54,4,FALSE),0) -> 0 | G51: =IFERROR(VLOOKUP($A51,Filtro_!$A$5:$P$54,5,FALSE),0) -> 0 | H51: =IFERROR(VLOOKUP($A51,Filtro_!$A$5:$P$54,6,FALSE),0) -> 0 | I51: =IFERROR(VLOOKUP($A51,Filtro_!$A$5:$P$54,7,FALSE),0) -> 704.0 | J51: =IFERROR(VLOOKUP($A51,Filtro_!$A$5:$P$54,8,FALSE),0) -> 1,308.0 | K51: =IFERROR(VLOOKUP($A51,Filtro_!$A$5:$P$54,9,FALSE),0) -> 1,186.0 | L51: =IFERROR(VLOOKUP($A51,Filtro_!$A$5:$P$54,10,FALSE),0) -> 0 | M51: =IFERROR(VLOOKUP($A51,Filtro_!$A$5:$P$54,11,FALSE),0) -> 0 | N51: =IFERROR(VLOOKUP($A51,Filtro_!$A$5:$P$54,12,FALSE),0) -> 0 | O51: =IFERROR(VLOOKUP($A51,Filtro_!$A$5:$P$54,13,FALSE),0) -> 0 | P51: =IFERROR(VLOOKUP($A51,Filtro_!$A$5:$P$54,14,FALSE),0) -> 0
A52: 15080010 | C52: Purita Mamá (PM) | D52: =IFERROR(VLOOKUP($A52,Filtro_!$A$5:$P$54,2,FALSE),0) -> 104.0 | E52: =IFERROR(VLOOKUP($A52,Filtro_!$A$5:$P$54,3,FALSE),0) -> 0.000 | F52: =IFERROR(VLOOKUP($A52,Filtro_!$A$5:$P$54,4,FALSE),0) -> 0.000 | G52: =IFERROR(VLOOKUP($A52,Filtro_!$A$5:$P$54,5,FALSE),0) -> 0.000 | H52: =IFERROR(VLOOKUP($A52,Filtro_!$A$5:$P$54,6,FALSE),0) -> 0.000 | I52: =IFERROR(VLOOKUP($A52,Filtro_!$A$5:$P$54,7,FALSE),0) -> 0.000 | J52: =IFERROR(VLOOKUP($A52,Filtro_!$A$5:$P$54,8,FALSE),0) -> 0.000 | K52: =IFERROR(VLOOKUP($A52,Filtro_!$A$5:$P$54,9,FALSE),0) -> 0.000 | L52: =IFERROR(VLOOKUP($A52,Filtro_!$A$5:$P$54,10,FALSE),0) -> 32.0 | M52: =IFERROR(VLOOKUP($A52,Filtro_!$A$5:$P$54,11,FALSE),0) -> 0 | N52: =IFERROR(VLOOKUP($A52,Filtro_!$A$5:$P$54,12,FALSE),0) -> 38.0 | O52: =IFERROR(VLOOKUP($A52,Filtro_!$A$5:$P$54,13,FALSE),0) -> 28.0 | P52: =IFERROR(VLOOKUP($A52,Filtro_!$A$5:$P$54,14,FALSE),0) -> 6.0 | Q52: =AB52&" "&AC52&" "&AD52&" "&AE52 ->  | AB52: =IF(L50+L52=N75,""," No olvide escribir el Nº Correcto según kg por persona que retira alimento de la sección D en el grupo de Gestantes Normal, Sobrepeso y Obesas.") ->  | AC52: =IF(N50+N52=P75*2,"","No olvide escribir el Nº Correcto según kg por persona que retira alimento de la sección D en el grupo de Madre con hijo/a menor a 6 meses con Lactancia materna exclusiva") ->  | AD52: =IF(O50+O52=Q75,"","No olvide escribir el Nº Correcto según kg por persona que retira alimento de la sección D en el grupo de Madre con hijo/a menor a 6 meses con Lactancia materna predominante") ->  | AE52: =IF(P50+P52=R75,"","No olvide escribir el Nº Correcto según kg por persona que retira alimento de la sección D en el grupo de Madre con hijo/a menor a 6 meses con Fórmula predominantes o exclusiva") ->  | AG52: =IF(L52=N75,0,1) -> 0 | AH52: =IF(N52=(P75*2),0,1) -> 1 | AI52: =IF(O52=Q75,0,1) -> 0 | AJ52: =IF(P52=R75,0,1) -> 0
A53: 15900070 | C53: Fórmula de Inicio (FI) | D53: =IFERROR(VLOOKUP($A53,Filtro_!$A$5:$P$54,2,FALSE),0) -> 0.000 | E53: =IFERROR(VLOOKUP($A53,Filtro_!$A$5:$P$54,3,FALSE),0) -> 0.000 | F53: =IFERROR(VLOOKUP($A53,Filtro_!$A$5:$P$54,4,FALSE),0) -> 0.000 | G53: =IFERROR(VLOOKUP($A53,Filtro_!$A$5:$P$54,5,FALSE),0) -> 0.000 | H53: =IFERROR(VLOOKUP($A53,Filtro_!$A$5:$P$54,6,FALSE),0) -> 0.000 | I53: =IFERROR(VLOOKUP($A53,Filtro_!$A$5:$P$54,7,FALSE),0) -> 0.000 | J53: =IFERROR(VLOOKUP($A53,Filtro_!$A$5:$P$54,8,FALSE),0) -> 0.000 | K53: =IFERROR(VLOOKUP($A53,Filtro_!$A$5:$P$54,9,FALSE),0) -> 0.000 | L53: =IFERROR(VLOOKUP($A53,Filtro_!$A$5:$P$54,10,FALSE),0) -> 0 | M53: =IFERROR(VLOOKUP($A53,Filtro_!$A$5:$P$54,11,FALSE),0) -> 0 | N53: =IFERROR(VLOOKUP($A53,Filtro_!$A$5:$P$54,12,FALSE),0) -> 0 | O53: =IFERROR(VLOOKUP($A53,Filtro_!$A$5:$P$54,13,FALSE),0) -> 0 | P53: =IFERROR(VLOOKUP($A53,Filtro_!$A$5:$P$54,14,FALSE),0) -> 0
C54: Subtotal | D54: =SUM(E54:P54) -> 4681.00 | E54: =SUM(E53) -> 0.00 | F54: =SUM(F53) -> 0.00 | G54: =SUM(G50:G53) -> 560.00 | H54: =SUM(H50) -> 813.00 | I54: =SUM(I50:I51) -> 708.00 | J54: =SUM(J50:J51) -> 1308.00 | K54: =SUM(K50:K51) -> 1186.00 | L54: =SUM(L50:L53) -> 32.00 | M54: =SUM(M50) -> 0.00 | N54: =SUM(N50:N53) -> 40.00 | O54: =SUM(O50:O53) -> 28.00 | P54: =SUM(P50:P53) -> 6.00
A55: 15020300 | B55: Refuerzo | C55: Leche Purita Fortificada (LPF) | D55: =IFERROR(VLOOKUP($A55,Filtro_!$A$5:$P$54,2,FALSE),0) -> 21.0 | E55: =IFERROR(VLOOKUP($A55,Filtro_!$A$5:$P$54,3,FALSE),0) -> 1 | F55: =IFERROR(VLOOKUP($A55,Filtro_!$A$5:$P$54,4,FALSE),0) -> 2 | G55: =IFERROR(VLOOKUP($A55,Filtro_!$A$5:$P$54,5,FALSE),0) -> 8.0 | H55: =IFERROR(VLOOKUP($A55,Filtro_!$A$5:$P$54,6,FALSE),0) -> 10.0 | I55: =IFERROR(VLOOKUP($A55,Filtro_!$A$5:$P$54,7,FALSE),0) -> 0.0 | J55: =IFERROR(VLOOKUP($A55,Filtro_!$A$5:$P$54,8,FALSE),0) -> 0.0 | K55: =IFERROR(VLOOKUP($A55,Filtro_!$A$5:$P$54,9,FALSE),0) -> 0.0 | L55: =IFERROR(VLOOKUP($A55,Filtro_!$A$5:$P$54,10,FALSE),0) -> 0 | M55: =IFERROR(VLOOKUP($A55,Filtro_!$A$5:$P$54,11,FALSE),0) -> 0 | N55: =IFERROR(VLOOKUP($A55,Filtro_!$A$5:$P$54,12,FALSE),0) -> 0 | O55: =IFERROR(VLOOKUP($A55,Filtro_!$A$5:$P$54,13,FALSE),0) -> 0 | P55: =IFERROR(VLOOKUP($A55,Filtro_!$A$5:$P$54,14,FALSE),0) -> 0 | Q55: =AB55&" "&AC55 -> 
A56: 15020400 | C56: Purita Cereal (PC) | D56: =IFERROR(VLOOKUP($A56,Filtro_!$A$5:$P$54,2,FALSE),0) -> 11.0 | E56: =IFERROR(VLOOKUP($A56,Filtro_!$A$5:$P$54,3,FALSE),0) -> 0 | F56: =IFERROR(VLOOKUP($A56,Filtro_!$A$5:$P$54,4,FALSE),0) -> 0.0 | G56: =IFERROR(VLOOKUP($A56,Filtro_!$A$5:$P$54,5,FALSE),0) -> 0 | H56: =IFERROR(VLOOKUP($A56,Filtro_!$A$5:$P$54,6,FALSE),0) -> 0 | I56: =IFERROR(VLOOKUP($A56,Filtro_!$A$5:$P$54,7,FALSE),0) -> 4.0 | J56: =IFERROR(VLOOKUP($A56,Filtro_!$A$5:$P$54,8,FALSE),0) -> 6.0 | K56: =IFERROR(VLOOKUP($A56,Filtro_!$A$5:$P$54,9,FALSE),0) -> 1.0 | L56: =IFERROR(VLOOKUP($A56,Filtro_!$A$5:$P$54,10,FALSE),0) -> 0 | M56: =IFERROR(VLOOKUP($A56,Filtro_!$A$5:$P$54,11,FALSE),0) -> 0 | N56: =IFERROR(VLOOKUP($A56,Filtro_!$A$5:$P$54,12,FALSE),0) -> 0 | O56: =IFERROR(VLOOKUP($A56,Filtro_!$A$5:$P$54,13,FALSE),0) -> 0 | P56: =IFERROR(VLOOKUP($A56,Filtro_!$A$5:$P$54,14,FALSE),0) -> 0 | Q56: =AB56&" "&AC56&" "&AD56&" "&AE56 -> 
A57: 15020500 | C57: Mi Sopita (MS) | D57: =IFERROR(VLOOKUP($A57,Filtro_!$A$5:$P$54,2,FALSE),0) -> 16 | E57: =IFERROR(VLOOKUP($A57,Filtro_!$A$5:$P$54,3,FALSE),0) -> 0 | F57: =IFERROR(VLOOKUP($A57,Filtro_!$A$5:$P$54,4,FALSE),0) -> 0 | G57: =IFERROR(VLOOKUP($A57,Filtro_!$A$5:$P$54,5,FALSE),0) -> 2 | H57: =IFERROR(VLOOKUP($A57,Filtro_!$A$5:$P$54,6,FALSE),0) -> 2 | I57: =IFERROR(VLOOKUP($A57,Filtro_!$A$5:$P$54,7,FALSE),0) -> 2 | J57: =IFERROR(VLOOKUP($A57,Filtro_!$A$5:$P$54,8,FALSE),0) -> 8 | K57: =IFERROR(VLOOKUP($A57,Filtro_!$A$5:$P$54,9,FALSE),0) -> 2 | L57: =IFERROR(VLOOKUP($A57,Filtro_!$A$5:$P$54,10,FALSE),0) -> 0 | M57: =IFERROR(VLOOKUP($A57,Filtro_!$A$5:$P$54,11,FALSE),0) -> 0 | N57: =IFERROR(VLOOKUP($A57,Filtro_!$A$5:$P$54,12,FALSE),0) -> 0 | O57: =IFERROR(VLOOKUP($A57,Filtro_!$A$5:$P$54,13,FALSE),0) -> 0 | P57: =IFERROR(VLOOKUP($A57,Filtro_!$A$5:$P$54,14,FALSE),0) -> 0 | Q57: =AB57&" "&AC57&" "&AD57&" "&AE57&" "&AB58&" "&AC58 ->  | AG57: =IF(L57=N80,0,1) -> 0 | AH57: =IF(N57=(P80*2),0,1) -> 0 | AI57: =IF(O57=Q80,0,1) -> 0 | AJ57: =IF(P57=R80,0,1) -> 0
A58: 15080011 | C58: Purita Mamá (PM) | D58: =IFERROR(VLOOKUP($A58,Filtro_!$A$5:$P$54,2,FALSE),0) -> 0.0 | E58: =IFERROR(VLOOKUP($A58,Filtro_!$A$5:$P$54,3,FALSE),0) -> 0 | F58: =IFERROR(VLOOKUP($A58,Filtro_!$A$5:$P$54,4,FALSE),0) -> 0.0 | G58: =IFERROR(VLOOKUP($A58,Filtro_!$A$5:$P$54,5,FALSE),0) -> 0 | H58: =IFERROR(VLOOKUP($A58,Filtro_!$A$5:$P$54,6,FALSE),0) -> 0 | I58: =IFERROR(VLOOKUP($A58,Filtro_!$A$5:$P$54,7,FALSE),0) -> 0 | J58: =IFERROR(VLOOKUP($A58,Filtro_!$A$5:$P$54,8,FALSE),0) -> 0 | K58: =IFERROR(VLOOKUP($A58,Filtro_!$A$5:$P$54,9,FALSE),0) -> 0 | L58: =IFERROR(VLOOKUP($A58,Filtro_!$A$5:$P$54,10,FALSE),0) -> 0 | M58: =IFERROR(VLOOKUP($A58,Filtro_!$A$5:$P$54,11,FALSE),0) -> 0.0 | N58: =IFERROR(VLOOKUP($A58,Filtro_!$A$5:$P$54,12,FALSE),0) -> 0.0 | O58: =IFERROR(VLOOKUP($A58,Filtro_!$A$5:$P$54,13,FALSE),0) -> 0.0 | P58: =IFERROR(VLOOKUP($A58,Filtro_!$A$5:$P$54,14,FALSE),0) -> 0.0 | Q58: =AD58&" "&AE58 -> 
A59: 15900080 | C59: Fórmula de Inicio (FI) | D59: =IFERROR(VLOOKUP($A59,Filtro_!$A$5:$P$54,2,FALSE),0) -> 0.000 | E59: =IFERROR(VLOOKUP($A59,Filtro_!$A$5:$P$54,3,FALSE),0) -> 0.000 | F59: =IFERROR(VLOOKUP($A59,Filtro_!$A$5:$P$54,4,FALSE),0) -> 0.000 | G59: =IFERROR(VLOOKUP($A59,Filtro_!$A$5:$P$54,5,FALSE),0) -> 0.000 | H59: =IFERROR(VLOOKUP($A59,Filtro_!$A$5:$P$54,6,FALSE),0) -> 0.0 | I59: =IFERROR(VLOOKUP($A59,Filtro_!$A$5:$P$54,7,FALSE),0) -> 0.0 | J59: =IFERROR(VLOOKUP($A59,Filtro_!$A$5:$P$54,8,FALSE),0) -> 0.0 | K59: =IFERROR(VLOOKUP($A59,Filtro_!$A$5:$P$54,9,FALSE),0) -> 0.0 | L59: =IFERROR(VLOOKUP($A59,Filtro_!$A$5:$P$54,10,FALSE),0) -> 0 | M59: =IFERROR(VLOOKUP($A59,Filtro_!$A$5:$P$54,11,FALSE),0) -> 0 | N59: =IFERROR(VLOOKUP($A59,Filtro_!$A$5:$P$54,12,FALSE),0) -> 0 | O59: =IFERROR(VLOOKUP($A59,Filtro_!$A$5:$P$54,13,FALSE),0) -> 0 | P59: =IFERROR(VLOOKUP($A59,Filtro_!$A$5:$P$54,14,FALSE),0) -> 0
C60: Subtotal | D60: =SUM(E60:P60) -> 47.00 | E60: =SUM(E59) -> 0.00 | F60: =SUM(F55:F59) -> 2.00 | G60: =SUM(G55:G59) -> 10.00 | H60: =SUM(H55:H57) -> 12.00 | I60: =SUM(I55:I57) -> 6.00 | J60: =SUM(J55:J57) -> 14.00 | K60: =SUM(K55:K57) -> 3.00 | L60: =SUM(L55) -> 0.00 | M60: =SUM(M55:M59) -> 0.00 | N60: =SUM(N55:N59) -> 0.00 | O60: =SUM(O55:O59) -> 0.00 | P60: =SUM(P55:P59) -> 0.00
A61: 15040100 | B61: Prematuros | C61: Fórmula de Prematuros (FP) | D61: =IFERROR(VLOOKUP($A61,Filtro_!$A$5:$P$54,2,FALSE),0) -> 37.600 | E61: =IFERROR(VLOOKUP($A61,Filtro_!$A$5:$P$54,3,FALSE),0) -> 22.400 | F61: =IFERROR(VLOOKUP($A61,Filtro_!$A$5:$P$54,4,FALSE),0) -> 12.000 | G61: =IFERROR(VLOOKUP($A61,Filtro_!$A$5:$P$54,5,FALSE),0) -> 3.200 | H61: =IFERROR(VLOOKUP($A61,Filtro_!$A$5:$P$54,6,FALSE),0) -> 0.000 | I61: =IFERROR(VLOOKUP($A61,Filtro_!$A$5:$P$54,7,FALSE),0) -> 0.000 | J61: =IFERROR(VLOOKUP($A61,Filtro_!$A$5:$P$54,8,FALSE),0) -> 0.000 | K61: =IFERROR(VLOOKUP($A61,Filtro_!$A$5:$P$54,9,FALSE),0) -> 0.000 | L61: =IFERROR(VLOOKUP($A61,Filtro_!$A$5:$P$54,10,FALSE),0) -> 0.000 | M61: =IFERROR(VLOOKUP($A61,Filtro_!$A$5:$P$54,11,FALSE),0) -> 0.000 | N61: =IFERROR(VLOOKUP($A61,Filtro_!$A$5:$P$54,12,FALSE),0) -> 0.000 | O61: =IFERROR(VLOOKUP($A61,Filtro_!$A$5:$P$54,13,FALSE),0) -> 0.000 | P61: =IFERROR(VLOOKUP($A61,Filtro_!$A$5:$P$54,14,FALSE),0) -> 0.000
A62: 15040200 | C62: Fórmula de Continuación (FC) | D62: =IFERROR(VLOOKUP($A62,Filtro_!$A$5:$P$54,2,FALSE),0) -> 3.600 | E62: =IFERROR(VLOOKUP($A62,Filtro_!$A$5:$P$54,3,FALSE),0) -> 0.000 | F62: =IFERROR(VLOOKUP($A62,Filtro_!$A$5:$P$54,4,FALSE),0) -> 0.000 | G62: =IFERROR(VLOOKUP($A62,Filtro_!$A$5:$P$54,5,FALSE),0) -> 3.600 | H62: =IFERROR(VLOOKUP($A62,Filtro_!$A$5:$P$54,6,FALSE),0) -> 0.000 | I62: =IFERROR(VLOOKUP($A62,Filtro_!$A$5:$P$54,7,FALSE),0) -> 0.000 | J62: =IFERROR(VLOOKUP($A62,Filtro_!$A$5:$P$54,8,FALSE),0) -> 0.000 | K62: =IFERROR(VLOOKUP($A62,Filtro_!$A$5:$P$54,9,FALSE),0) -> 0.000 | L62: =IFERROR(VLOOKUP($A62,Filtro_!$A$5:$P$54,10,FALSE),0) -> 0.000 | M62: =IFERROR(VLOOKUP($A62,Filtro_!$A$5:$P$54,11,FALSE),0) -> 0.000 | N62: =IFERROR(VLOOKUP($A62,Filtro_!$A$5:$P$54,12,FALSE),0) -> 0.000 | O62: =IFERROR(VLOOKUP($A62,Filtro_!$A$5:$P$54,13,FALSE),0) -> 0.000 | P62: =IFERROR(VLOOKUP($A62,Filtro_!$A$5:$P$54,14,FALSE),0) -> 0.000
A63: 15080013 | C63: Mi Sopita (MS) | D63: =IFERROR(VLOOKUP($A63,Filtro_!$A$5:$P$54,2,FALSE),0) -> 0 | E63: =IFERROR(VLOOKUP($A63,Filtro_!$A$5:$P$54,3,FALSE),0) -> 0 | F63: =IFERROR(VLOOKUP($A63,Filtro_!$A$5:$P$54,4,FALSE),0) -> 0 | G63: =IFERROR(VLOOKUP($A63,Filtro_!$A$5:$P$54,5,FALSE),0) -> 0 | H63: =IFERROR(VLOOKUP($A63,Filtro_!$A$5:$P$54,6,FALSE),0) -> 0 | I63: =IFERROR(VLOOKUP($A63,Filtro_!$A$5:$P$54,7,FALSE),0) -> 0 | J63: =IFERROR(VLOOKUP($A63,Filtro_!$A$5:$P$54,8,FALSE),0) -> 0 | K63: =IFERROR(VLOOKUP($A63,Filtro_!$A$5:$P$54,9,FALSE),0) -> 0 | L63: =IFERROR(VLOOKUP($A63,Filtro_!$A$5:$P$54,10,FALSE),0) -> 0 | M63: =IFERROR(VLOOKUP($A63,Filtro_!$A$5:$P$54,11,FALSE),0) -> 0 | N63: =IFERROR(VLOOKUP($A63,Filtro_!$A$5:$P$54,12,FALSE),0) -> 0 | O63: =IFERROR(VLOOKUP($A63,Filtro_!$A$5:$P$54,13,FALSE),0) -> 0 | P63: =IFERROR(VLOOKUP($A63,Filtro_!$A$5:$P$54,14,FALSE),0) -> 0
A64: 15901600 | C64: Fórmula de Inicio (FI) | D64: =IFERROR(VLOOKUP($A64,Filtro_!$A$5:$P$54,2,FALSE),0) -> 0.000 | E64: =IFERROR(VLOOKUP($A64,Filtro_!$A$5:$P$54,3,FALSE),0) -> 0.000 | F64: =IFERROR(VLOOKUP($A64,Filtro_!$A$5:$P$54,4,FALSE),0) -> 0.000 | G64: =IFERROR(VLOOKUP($A64,Filtro_!$A$5:$P$54,5,FALSE),0) -> 0.000 | H64: =IFERROR(VLOOKUP($A64,Filtro_!$A$5:$P$54,6,FALSE),0) -> 0 | I64: =IFERROR(VLOOKUP($A64,Filtro_!$A$5:$P$54,7,FALSE),0) -> 0 | J64: =IFERROR(VLOOKUP($A64,Filtro_!$A$5:$P$54,8,FALSE),0) -> 0 | K64: =IFERROR(VLOOKUP($A64,Filtro_!$A$5:$P$54,9,FALSE),0) -> 0 | L64: =IFERROR(VLOOKUP($A64,Filtro_!$A$5:$P$54,10,FALSE),0) -> 0 | M64: =IFERROR(VLOOKUP($A64,Filtro_!$A$5:$P$54,11,FALSE),0) -> 0 | N64: =IFERROR(VLOOKUP($A64,Filtro_!$A$5:$P$54,12,FALSE),0) -> 0 | O64: =IFERROR(VLOOKUP($A64,Filtro_!$A$5:$P$54,13,FALSE),0) -> 0 | P64: =IFERROR(VLOOKUP($A64,Filtro_!$A$5:$P$54,14,FALSE),0) -> 0
C65: Subtotal | D65: =SUM(E65:P65) -> 41.20 | E65: =SUM(E61:E64) -> 22.40 | F65: =SUM(F61:F64) -> 12.00 | G65: =SUM(G61:G64) -> 6.80 | H65: 0.00 | I65: 0.00 | J65: 0.00 | K65: 0.00 | L65: 0.00 | M65: 0.00 | N65: 0.00 | O65: 0.00 | P65: 0.00
A66: 15901200 | B66: Alergia a la proteína de la leche de vaca | C66: Fórmula Extensamente Hidrolizada (FEH) | D66: =IFERROR(VLOOKUP($A66,Filtro_!$A$5:$P$54,2,FALSE),0) -> 26167.000 | E66: =IFERROR(VLOOKUP($A66,Filtro_!$A$5:$P$54,3,FALSE),0) -> 71.200 | F66: =IFERROR(VLOOKUP($A66,Filtro_!$A$5:$P$54,4,FALSE),0) -> 3538.600 | G66: =IFERROR(VLOOKUP($A66,Filtro_!$A$5:$P$54,5,FALSE),0) -> 10668.400 | H66: =IFERROR(VLOOKUP($A66,Filtro_!$A$5:$P$54,6,FALSE),0) -> 11408.200 | I66: =IFERROR(VLOOKUP($A66,Filtro_!$A$5:$P$54,7,FALSE),0) -> 480.600 | J66: =IFERROR(VLOOKUP($A66,Filtro_!$A$5:$P$54,8,FALSE),0) -> 0.000 | K66: =IFERROR(VLOOKUP($A66,Filtro_!$A$5:$P$54,9,FALSE),0) -> 0.000 | L66: =IFERROR(VLOOKUP($A66,Filtro_!$A$5:$P$54,10,FALSE),0) -> 0 | M66: =IFERROR(VLOOKUP($A66,Filtro_!$A$5:$P$54,11,FALSE),0) -> 0 | N66: =IFERROR(VLOOKUP($A66,Filtro_!$A$5:$P$54,12,FALSE),0) -> 0 | O66: =IFERROR(VLOOKUP($A66,Filtro_!$A$5:$P$54,13,FALSE),0) -> 0 | P66: =IFERROR(VLOOKUP($A66,Filtro_!$A$5:$P$54,14,FALSE),0) -> 0
A67: 15901300 | C67: Fórmula Aminoacídica (FAA) | D67: =IFERROR(VLOOKUP($A67,Filtro_!$A$5:$P$54,2,FALSE),0) -> 26488.200 | E67: =IFERROR(VLOOKUP($A67,Filtro_!$A$5:$P$54,3,FALSE),0) -> 38.800 | F67: =IFERROR(VLOOKUP($A67,Filtro_!$A$5:$P$54,4,FALSE),0) -> 10110.000 | G67: =IFERROR(VLOOKUP($A67,Filtro_!$A$5:$P$54,5,FALSE),0) -> 9142.600 | H67: =IFERROR(VLOOKUP($A67,Filtro_!$A$5:$P$54,6,FALSE),0) -> 252.400 | I67: =IFERROR(VLOOKUP($A67,Filtro_!$A$5:$P$54,7,FALSE),0) -> 6935.600 | J67: =IFERROR(VLOOKUP($A67,Filtro_!$A$5:$P$54,8,FALSE),0) -> 8.800 | K67: =IFERROR(VLOOKUP($A67,Filtro_!$A$5:$P$54,9,FALSE),0) -> 0.000 | L67: =IFERROR(VLOOKUP($A67,Filtro_!$A$5:$P$54,10,FALSE),0) -> 0 | M67: =IFERROR(VLOOKUP($A67,Filtro_!$A$5:$P$54,11,FALSE),0) -> 0 | N67: =IFERROR(VLOOKUP($A67,Filtro_!$A$5:$P$54,12,FALSE),0) -> 0 | O67: =IFERROR(VLOOKUP($A67,Filtro_!$A$5:$P$54,13,FALSE),0) -> 0 | P67: =IFERROR(VLOOKUP($A67,Filtro_!$A$5:$P$54,14,FALSE),0) -> 0
C68: Subtotal | D68: =SUM(E68:P68) -> 52655.200 | E68: =SUM(E66:E67) -> 110.000 | F68: 13648.600 | G68: 19811.000 | H68: 11660.600 | I68: 7416.200 | J68: 8.800 | K68: 0.000 | L68: 0.000 | M68: 0.000 | N68: 0.000 | O68: 0.000 | P68: 0.000
B69: Total | D69: =SUM(E69:P69) -> 57424.40 | E69: =+E54+E60+E65+E68 -> 132.40 | F69: 13662.60 | G69: 20387.80 | H69: 12485.60 | I69: 8130.20 | J69: 1330.80 | K69: 1189.00 | L69: 32.00 | M69: 0.00 | N69: 40.00 | O69: 28.00 | P69: 6.00
B70: Sección D: PNAC - Número de personas extrasistema que retiran
B71: Subprogramas | D71: Total | E71: Total Hombre | F71: Total Mujer | G71: Menores a 6 años | N71: Gestantes | P71: Mujer con hijo/a menor a 12 meses
G72: 0 - 2 meses | H72: 3 - 5 meses | I72: 6 - 11 meses | J72: 12 - 17 meses | K72: 18 - 23 meses | L72: 24 - 47 meses | M72: 48 - 71 meses | N72: Normal, sobrepeso y obesas | O72: Bajo peso | P72: 0-5 meses con Lactancia Materna exclusiva | Q72: 0-5 meses Lactancia materna predominante, formula predominante o formula exclusiva | R72: 6 a 11 meses Lactancia Materna
A75: 15060100 | B75: Básico | D75: =IFERROR(VLOOKUP($A75,Filtro_!$A$5:$P$54,2,FALSE),0) -> 2447 | E75: =IFERROR(VLOOKUP($A75,Filtro_!$A$5:$P$54,3,FALSE),0) -> 1255 | F75: =IFERROR(VLOOKUP($A75,Filtro_!$A$5:$P$54,4,FALSE),0) -> 1179 | G75: =IFERROR(VLOOKUP($A75,Filtro_!$A$5:$P$54,5,FALSE),0) -> 27 | H75: =IFERROR(VLOOKUP($A75,Filtro_!$A$5:$P$54,6,FALSE),0) -> 55 | I75: =IFERROR(VLOOKUP($A75,Filtro_!$A$5:$P$54,7,FALSE),0) -> 284 | J75: =IFERROR(VLOOKUP($A75,Filtro_!$A$5:$P$54,8,FALSE),0) -> 388 | K75: =IFERROR(VLOOKUP($A75,Filtro_!$A$5:$P$54,9,FALSE),0) -> 358 | L75: =IFERROR(VLOOKUP($A75,Filtro_!$A$5:$P$54,10,FALSE),0) -> 656 | M75: =IFERROR(VLOOKUP($A75,Filtro_!$A$5:$P$54,11,FALSE),0) -> 593 | N75: =IFERROR(VLOOKUP($A75,Filtro_!$A$5:$P$54,12,FALSE),0) -> 32 | O75: =IFERROR(VLOOKUP($A75,Filtro_!$A$5:$P$54,13,FALSE),0) -> 0 | P75: =IFERROR(VLOOKUP($A75,Filtro_!$A$5:$P$54,14,FALSE),0) -> 20 | Q75: =IFERROR(VLOOKUP($A75,Filtro_!$A$5:$P$54,15,FALSE),0) -> 28 | R75: =IFERROR(VLOOKUP($A75,Filtro_!$A$5:$P$54,16,FALSE),0) -> 6 | S75: =AB75 -> * La suma de los valores Total Hombres y Total Mujeres debe ser igual al Total. | AB75: =IF(AG75=1,"* La suma de los valores Total Hombres y Total Mujeres debe ser igual al Total.","") -> * La suma de los valores Total Hombres y Total Mujeres debe ser igual al Total. | AG75: =IF(E75+F75=D75,0,1) -> 1
A76: 15060200 | B76: Refuerzo | D76: =IFERROR(VLOOKUP($A76,Filtro_!$A$5:$P$54,2,FALSE),0) -> 27 | E76: =IFERROR(VLOOKUP($A76,Filtro_!$A$5:$P$54,3,FALSE),0) -> 13 | F76: =IFERROR(VLOOKUP($A76,Filtro_!$A$5:$P$54,4,FALSE),0) -> 14 | G76: =IFERROR(VLOOKUP($A76,Filtro_!$A$5:$P$54,5,FALSE),0) -> 1 | H76: =IFERROR(VLOOKUP($A76,Filtro_!$A$5:$P$54,6,FALSE),0) -> 1 | I76: =IFERROR(VLOOKUP($A76,Filtro_!$A$5:$P$54,7,FALSE),0) -> 2 | J76: =IFERROR(VLOOKUP($A76,Filtro_!$A$5:$P$54,8,FALSE),0) -> 5 | K76: =IFERROR(VLOOKUP($A76,Filtro_!$A$5:$P$54,9,FALSE),0) -> 1 | L76: =IFERROR(VLOOKUP($A76,Filtro_!$A$5:$P$54,10,FALSE),0) -> 5 | M76: =IFERROR(VLOOKUP($A76,Filtro_!$A$5:$P$54,11,FALSE),0) -> 11 | N76: =IFERROR(VLOOKUP($A76,Filtro_!$A$5:$P$54,12,FALSE),0) -> 0 | O76: =IFERROR(VLOOKUP($A76,Filtro_!$A$5:$P$54,13,FALSE),0) -> 0 | P76: =IFERROR(VLOOKUP($A76,Filtro_!$A$5:$P$54,14,FALSE),0) -> 1 | Q76: =IFERROR(VLOOKUP($A76,Filtro_!$A$5:$P$54,15,FALSE),0) -> 0 | R76: =IFERROR(VLOOKUP($A76,Filtro_!$A$5:$P$54,16,FALSE),0) -> 0 | S76: =AB76 ->  | AB76: =IF(AG76=1,"* La suma de los valores Total Hombres y Total Mujeres debe ser igual al Total.","") ->  | AG76: =IF(E76+F76=D76,0,1) -> 0
A77: 15060600 | B77: Prematuros | D77: =IFERROR(VLOOKUP($A77,Filtro_!$A$5:$P$54,2,FALSE),0) -> 10 | E77: =IFERROR(VLOOKUP($A77,Filtro_!$A$5:$P$54,3,FALSE),0) -> 5 | F77: =IFERROR(VLOOKUP($A77,Filtro_!$A$5:$P$54,4,FALSE),0) -> 5 | G77: =IFERROR(VLOOKUP($A77,Filtro_!$A$5:$P$54,5,FALSE),0) -> 6 | H77: =IFERROR(VLOOKUP($A77,Filtro_!$A$5:$P$54,6,FALSE),0) -> 2 | I77: =IFERROR(VLOOKUP($A77,Filtro_!$A$5:$P$54,7,FALSE),0) -> 2 | J77: =IFERROR(VLOOKUP($A77,Filtro_!$A$5:$P$54,8,FALSE),0) -> 0 | K77: =IFERROR(VLOOKUP($A77,Filtro_!$A$5:$P$54,9,FALSE),0) -> 0 | L77: =IFERROR(VLOOKUP($A77,Filtro_!$A$5:$P$54,10,FALSE),0) -> 0 | M77: =IFERROR(VLOOKUP($A77,Filtro_!$A$5:$P$54,11,FALSE),0) -> 0 | N77: =IFERROR(VLOOKUP($A77,Filtro_!$A$5:$P$54,12,FALSE),0) -> 0 | O77: =IFERROR(VLOOKUP($A77,Filtro_!$A$5:$P$54,13,FALSE),0) -> 0 | P77: =IFERROR(VLOOKUP($A77,Filtro_!$A$5:$P$54,14,FALSE),0) -> 0 | Q77: =IFERROR(VLOOKUP($A77,Filtro_!$A$5:$P$54,15,FALSE),0) -> 0 | R77: =IFERROR(VLOOKUP($A77,Filtro_!$A$5:$P$54,16,FALSE),0) -> 0 | AG77: =IF(E77+F77=D77,0,1) -> 0
A78: 15901400 | B78: Alergia a la Proteína de la leche de vaca | D78: =IFERROR(VLOOKUP($A78,Filtro_!$A$5:$P$54,2,FALSE),0) -> 853 | E78: =IFERROR(VLOOKUP($A78,Filtro_!$A$5:$P$54,3,FALSE),0) -> 517 | F78: =IFERROR(VLOOKUP($A78,Filtro_!$A$5:$P$54,4,FALSE),0) -> 335 | G78: =IFERROR(VLOOKUP($A78,Filtro_!$A$5:$P$54,5,FALSE),0) -> 35 | H78: =IFERROR(VLOOKUP($A78,Filtro_!$A$5:$P$54,6,FALSE),0) -> 135 | I78: =IFERROR(VLOOKUP($A78,Filtro_!$A$5:$P$54,7,FALSE),0) -> 286 | J78: =IFERROR(VLOOKUP($A78,Filtro_!$A$5:$P$54,8,FALSE),0) -> 235 | K78: =IFERROR(VLOOKUP($A78,Filtro_!$A$5:$P$54,9,FALSE),0) -> 160 | L78: =IFERROR(VLOOKUP($A78,Filtro_!$A$5:$P$54,10,FALSE),0) -> 2 | M78: =IFERROR(VLOOKUP($A78,Filtro_!$A$5:$P$54,11,FALSE),0) -> 0 | N78: =IFERROR(VLOOKUP($A78,Filtro_!$A$5:$P$54,12,FALSE),0) -> 0 | O78: =IFERROR(VLOOKUP($A78,Filtro_!$A$5:$P$54,13,FALSE),0) -> 0 | P78: =IFERROR(VLOOKUP($A78,Filtro_!$A$5:$P$54,14,FALSE),0) -> 0 | Q78: =IFERROR(VLOOKUP($A78,Filtro_!$A$5:$P$54,15,FALSE),0) -> 0 | R78: =IFERROR(VLOOKUP($A78,Filtro_!$A$5:$P$54,16,FALSE),0) -> 0 | S78: * La suma de los valores Total Hombres y Total Mujeres debe ser igual al Total. | AB78: * La suma de los valores Total Hombres y Total Mujeres debe ser igual al Total. | AG78: =IF(E78+F78=D78,0,1) -> 1
B79: Total | D79: =SUM(G79:R79) -> 3337 | E79: =SUM(E75:E78) -> 1790 | F79: 1533 | G79: 69 | H79: 193 | I79: 574 | J79: 628 | K79: 519 | L79: 663 | M79: 604 | N79: =SUM(N75) -> 32 | O79: =SUM(O76) -> 0 | P79: =SUM(P75:P76) -> 21 | Q79: =SUM(Q75:Q76) -> 28 | R79: =SUM(R75:R76) -> 6
A80: 15900090 | B80: Programas Sociales (*) | D80: =IFERROR(VLOOKUP($A80,Filtro_!$A$5:$P$54,2,FALSE),0) -> 0 | E80: =IFERROR(VLOOKUP($A80,Filtro_!$A$5:$P$54,3,FALSE),0) -> 0 | F80: =IFERROR(VLOOKUP($A80,Filtro_!$A$5:$P$54,4,FALSE),0) -> 0 | G80: =IFERROR(VLOOKUP($A80,Filtro_!$A$5:$P$54,5,FALSE),0) -> 0 | H80: =IFERROR(VLOOKUP($A80,Filtro_!$A$5:$P$54,6,FALSE),0) -> 0 | I80: =IFERROR(VLOOKUP($A80,Filtro_!$A$5:$P$54,7,FALSE),0) -> 0 | J80: =IFERROR(VLOOKUP($A80,Filtro_!$A$5:$P$54,8,FALSE),0) -> 0 | K80: =IFERROR(VLOOKUP($A80,Filtro_!$A$5:$P$54,9,FALSE),0) -> 0 | L80: =IFERROR(VLOOKUP($A80,Filtro_!$A$5:$P$54,10,FALSE),0) -> 0 | M80: =IFERROR(VLOOKUP($A80,Filtro_!$A$5:$P$54,11,FALSE),0) -> 0 | N80: =IFERROR(VLOOKUP($A80,Filtro_!$A$5:$P$54,12,FALSE),0) -> 0 | O80: =IFERROR(VLOOKUP($A80,Filtro_!$A$5:$P$54,13,FALSE),0) -> 0 | P80: =IFERROR(VLOOKUP($A80,Filtro_!$A$5:$P$54,14,FALSE),0) -> 0 | Q80: =IFERROR(VLOOKUP($A80,Filtro_!$A$5:$P$54,15,FALSE),0) -> 0 | R80: =IFERROR(VLOOKUP($A80,Filtro_!$A$5:$P$54,16,FALSE),0) -> 0 | AG80: =IF(E80+F80=D80,0,1) -> 0
B81: Nota: (*) Información referencial, ya incluida en los subprogramas.
B83: Sección E: Existencia y movimiento total de productos (Intrasistema y Extrasistema)
B84: Productos | D84: Saldo Mes Anterior | E84: Ingresos | G84: Total Disponible | H84: Egresos | O84: Saldo mes siguiente | P84: Necesidades
E85: Planta | F85: Por traspaso | H85: Distribuido | K85: Mermas (Incluye faltantes) | L85: Otros: demostra- ciones, dona- ciones, etc | M85: Traspaso | N85: Total Egresos | P85: Bodega del establecimiento | Q85: Bodegas centrales
H86: Intrasistema | I86: Extrasistema | J86: Total
B87: Leche Purita Fortificada (LPF) | D87: =IFERROR(VLOOKUP($A87,Filtro_!$A$5:$P$54,2,FALSE),0) -> 0 | E87: =IFERROR(VLOOKUP($A87,Filtro_!$A$5:$P$54,3,FALSE),0) -> 0 | F87: =IFERROR(VLOOKUP($A87,Filtro_!$A$5:$P$54,4,FALSE),0) -> 0 | G87: =IFERROR(VLOOKUP($A87,Filtro_!$A$5:$P$54,5,FALSE),0) -> 0 | H87: =IFERROR(VLOOKUP($A87,Filtro_!$A$5:$P$54,6,FALSE),0) -> 0 | I87: =IFERROR(VLOOKUP($A87,Filtro_!$A$5:$P$54,7,FALSE),0) -> 0 | J87: =IFERROR(VLOOKUP($A87,Filtro_!$A$5:$P$54,8,FALSE),0) -> 0 | K87: =IFERROR(VLOOKUP($A87,Filtro_!$A$5:$P$54,9,FALSE),0) -> 0 | L87: =IFERROR(VLOOKUP($A87,Filtro_!$A$5:$P$54,10,FALSE),0) -> 0 | M87: =IFERROR(VLOOKUP($A87,Filtro_!$A$5:$P$54,11,FALSE),0) -> 0 | N87: =IFERROR(VLOOKUP($A87,Filtro_!$A$5:$P$54,12,FALSE),0) -> 0 | O87: =IFERROR(VLOOKUP($A87,Filtro_!$A$5:$P$54,13,FALSE),0) -> 0 | P87: =IFERROR(VLOOKUP($A87,Filtro_!$A$5:$P$54,14,FALSE),0) -> 0 | Q87: =IFERROR(VLOOKUP($A87,Filtro_!$A$5:$P$54,15,FALSE),0) -> 0 | R87: =IFERROR(VLOOKUP($A87,Filtro_!$A$5:$P$54,16,FALSE),0) -> 0
B88: Purita Cereal (PC) | D88: =IFERROR(VLOOKUP($A88,Filtro_!$A$5:$P$54,2,FALSE),0) -> 0 | E88: =IFERROR(VLOOKUP($A88,Filtro_!$A$5:$P$54,3,FALSE),0) -> 0 | F88: =IFERROR(VLOOKUP($A88,Filtro_!$A$5:$P$54,4,FALSE),0) -> 0 | G88: =IFERROR(VLOOKUP($A88,Filtro_!$A$5:$P$54,5,FALSE),0) -> 0 | H88: =IFERROR(VLOOKUP($A88,Filtro_!$A$5:$P$54,6,FALSE),0) -> 0 | I88: =IFERROR(VLOOKUP($A88,Filtro_!$A$5:$P$54,7,FALSE),0) -> 0 | J88: =IFERROR(VLOOKUP($A88,Filtro_!$A$5:$P$54,8,FALSE),0) -> 0 | K88: =IFERROR(VLOOKUP($A88,Filtro_!$A$5:$P$54,9,FALSE),0) -> 0 | L88: =IFERROR(VLOOKUP($A88,Filtro_!$A$5:$P$54,10,FALSE),0) -> 0 | M88: =IFERROR(VLOOKUP($A88,Filtro_!$A$5:$P$54,11,FALSE),0) -> 0 | N88: =IFERROR(VLOOKUP($A88,Filtro_!$A$5:$P$54,12,FALSE),0) -> 0 | O88: =IFERROR(VLOOKUP($A88,Filtro_!$A$5:$P$54,13,FALSE),0) -> 0 | P88: =IFERROR(VLOOKUP($A88,Filtro_!$A$5:$P$54,14,FALSE),0) -> 0 | Q88: =IFERROR(VLOOKUP($A88,Filtro_!$A$5:$P$54,15,FALSE),0) -> 0 | R88: =IFERROR(VLOOKUP($A88,Filtro_!$A$5:$P$54,16,FALSE),0) -> 0
B89: Mi Sopita (MS) | D89: =IFERROR(VLOOKUP($A89,Filtro_!$A$5:$P$54,2,FALSE),0) -> 0 | E89: =IFERROR(VLOOKUP($A89,Filtro_!$A$5:$P$54,3,FALSE),0) -> 0 | F89: =IFERROR(VLOOKUP($A89,Filtro_!$A$5:$P$54,4,FALSE),0) -> 0 | G89: =IFERROR(VLOOKUP($A89,Filtro_!$A$5:$P$54,5,FALSE),0) -> 0 | H89: =IFERROR(VLOOKUP($A89,Filtro_!$A$5:$P$54,6,FALSE),0) -> 0 | I89: =IFERROR(VLOOKUP($A89,Filtro_!$A$5:$P$54,7,FALSE),0) -> 0 | J89: =IFERROR(VLOOKUP($A89,Filtro_!$A$5:$P$54,8,FALSE),0) -> 0 | K89: =IFERROR(VLOOKUP($A89,Filtro_!$A$5:$P$54,9,FALSE),0) -> 0 | L89: =IFERROR(VLOOKUP($A89,Filtro_!$A$5:$P$54,10,FALSE),0) -> 0 | M89: =IFERROR(VLOOKUP($A89,Filtro_!$A$5:$P$54,11,FALSE),0) -> 0 | N89: =IFERROR(VLOOKUP($A89,Filtro_!$A$5:$P$54,12,FALSE),0) -> 0 | O89: =IFERROR(VLOOKUP($A89,Filtro_!$A$5:$P$54,13,FALSE),0) -> 0 | P89: =IFERROR(VLOOKUP($A89,Filtro_!$A$5:$P$54,14,FALSE),0) -> 0 | Q89: =IFERROR(VLOOKUP($A89,Filtro_!$A$5:$P$54,15,FALSE),0) -> 0 | R89: =IFERROR(VLOOKUP($A89,Filtro_!$A$5:$P$54,16,FALSE),0) -> 0
B90: Purita Mamá (PM) | D90: =IFERROR(VLOOKUP($A90,Filtro_!$A$5:$P$54,2,FALSE),0) -> 0.000 | E90: =IFERROR(VLOOKUP($A90,Filtro_!$A$5:$P$54,3,FALSE),0) -> 0.000 | F90: =IFERROR(VLOOKUP($A90,Filtro_!$A$5:$P$54,4,FALSE),0) -> 0.000 | G90: =IFERROR(VLOOKUP($A90,Filtro_!$A$5:$P$54,5,FALSE),0) -> 0.000 | H90: =IFERROR(VLOOKUP($A90,Filtro_!$A$5:$P$54,6,FALSE),0) -> 0.000 | I90: =IFERROR(VLOOKUP($A90,Filtro_!$A$5:$P$54,7,FALSE),0) -> 0.000 | J90: =IFERROR(VLOOKUP($A90,Filtro_!$A$5:$P$54,8,FALSE),0) -> 0.000 | K90: =IFERROR(VLOOKUP($A90,Filtro_!$A$5:$P$54,9,FALSE),0) -> 0.000 | L90: =IFERROR(VLOOKUP($A90,Filtro_!$A$5:$P$54,10,FALSE),0) -> 0.000 | M90: =IFERROR(VLOOKUP($A90,Filtro_!$A$5:$P$54,11,FALSE),0) -> 0.000 | N90: =IFERROR(VLOOKUP($A90,Filtro_!$A$5:$P$54,12,FALSE),0) -> 0.000 | O90: =IFERROR(VLOOKUP($A90,Filtro_!$A$5:$P$54,13,FALSE),0) -> 0.000 | P90: =IFERROR(VLOOKUP($A90,Filtro_!$A$5:$P$54,14,FALSE),0) -> 0.000 | Q90: =IFERROR(VLOOKUP($A90,Filtro_!$A$5:$P$54,15,FALSE),0) -> 0.000 | R90: =IFERROR(VLOOKUP($A90,Filtro_!$A$5:$P$54,16,FALSE),0) -> 0
B91: Fórmula de Inicio (FI) | D91: =IFERROR(VLOOKUP($A91,Filtro_!$A$5:$P$54,2,FALSE),0) -> 0.000 | E91: =IFERROR(VLOOKUP($A91,Filtro_!$A$5:$P$54,3,FALSE),0) -> 0.000 | F91: =IFERROR(VLOOKUP($A91,Filtro_!$A$5:$P$54,4,FALSE),0) -> 0.000 | G91: =IFERROR(VLOOKUP($A91,Filtro_!$A$5:$P$54,5,FALSE),0) -> 0.000 | H91: =IFERROR(VLOOKUP($A91,Filtro_!$A$5:$P$54,6,FALSE),0) -> 0.000 | I91: =IFERROR(VLOOKUP($A91,Filtro_!$A$5:$P$54,7,FALSE),0) -> 0.000 | J91: =IFERROR(VLOOKUP($A91,Filtro_!$A$5:$P$54,8,FALSE),0) -> 0.000 | K91: =IFERROR(VLOOKUP($A91,Filtro_!$A$5:$P$54,9,FALSE),0) -> 0.000 | L91: =IFERROR(VLOOKUP($A91,Filtro_!$A$5:$P$54,10,FALSE),0) -> 0.000 | M91: =IFERROR(VLOOKUP($A91,Filtro_!$A$5:$P$54,11,FALSE),0) -> 0.000 | N91: =IFERROR(VLOOKUP($A91,Filtro_!$A$5:$P$54,12,FALSE),0) -> 0.000 | O91: =IFERROR(VLOOKUP($A91,Filtro_!$A$5:$P$54,13,FALSE),0) -> 0.000 | P91: =IFERROR(VLOOKUP($A91,Filtro_!$A$5:$P$54,14,FALSE),0) -> 0.000 | Q91: =IFERROR(VLOOKUP($A91,Filtro_!$A$5:$P$54,15,FALSE),0) -> 0.000 | R91: =IFERROR(VLOOKUP($A91,Filtro_!$A$5:$P$54,16,FALSE),0) -> 0
B92: Fórmula Prematuros | D92: =IFERROR(VLOOKUP($A92,Filtro_!$A$5:$P$54,2,FALSE),0) -> 0.000 | E92: =IFERROR(VLOOKUP($A92,Filtro_!$A$5:$P$54,3,FALSE),0) -> 0.000 | F92: =IFERROR(VLOOKUP($A92,Filtro_!$A$5:$P$54,4,FALSE),0) -> 0.000 | G92: =IFERROR(VLOOKUP($A92,Filtro_!$A$5:$P$54,5,FALSE),0) -> 0.000 | H92: =IFERROR(VLOOKUP($A92,Filtro_!$A$5:$P$54,6,FALSE),0) -> 0.000 | I92: =IFERROR(VLOOKUP($A92,Filtro_!$A$5:$P$54,7,FALSE),0) -> 0.000 | J92: =IFERROR(VLOOKUP($A92,Filtro_!$A$5:$P$54,8,FALSE),0) -> 0.000 | K92: =IFERROR(VLOOKUP($A92,Filtro_!$A$5:$P$54,9,FALSE),0) -> 0.000 | L92: =IFERROR(VLOOKUP($A92,Filtro_!$A$5:$P$54,10,FALSE),0) -> 0.000 | M92: =IFERROR(VLOOKUP($A92,Filtro_!$A$5:$P$54,11,FALSE),0) -> 0.000 | N92: =IFERROR(VLOOKUP($A92,Filtro_!$A$5:$P$54,12,FALSE),0) -> 0.000 | O92: =IFERROR(VLOOKUP($A92,Filtro_!$A$5:$P$54,13,FALSE),0) -> 0.000 | P92: =IFERROR(VLOOKUP($A92,Filtro_!$A$5:$P$54,14,FALSE),0) -> 0.000 | Q92: =IFERROR(VLOOKUP($A92,Filtro_!$A$5:$P$54,15,FALSE),0) -> 0.000 | R92: =IFERROR(VLOOKUP($A92,Filtro_!$A$5:$P$54,16,FALSE),0) -> 0
B93: Fórmula Continuación | D93: =IFERROR(VLOOKUP($A93,Filtro_!$A$5:$P$54,2,FALSE),0) -> 0.000 | E93: =IFERROR(VLOOKUP($A93,Filtro_!$A$5:$P$54,3,FALSE),0) -> 0.000 | F93: =IFERROR(VLOOKUP($A93,Filtro_!$A$5:$P$54,4,FALSE),0) -> 0.000 | G93: =IFERROR(VLOOKUP($A93,Filtro_!$A$5:$P$54,5,FALSE),0) -> 0.000 | H93: =IFERROR(VLOOKUP($A93,Filtro_!$A$5:$P$54,6,FALSE),0) -> 0.000 | I93: =IFERROR(VLOOKUP($A93,Filtro_!$A$5:$P$54,7,FALSE),0) -> 0.000 | J93: =IFERROR(VLOOKUP($A93,Filtro_!$A$5:$P$54,8,FALSE),0) -> 0.000 | K93: =IFERROR(VLOOKUP($A93,Filtro_!$A$5:$P$54,9,FALSE),0) -> 0.000 | L93: =IFERROR(VLOOKUP($A93,Filtro_!$A$5:$P$54,10,FALSE),0) -> 0.000 | M93: =IFERROR(VLOOKUP($A93,Filtro_!$A$5:$P$54,11,FALSE),0) -> 0.000 | N93: =IFERROR(VLOOKUP($A93,Filtro_!$A$5:$P$54,12,FALSE),0) -> 0.000 | O93: =IFERROR(VLOOKUP($A93,Filtro_!$A$5:$P$54,13,FALSE),0) -> 0.000 | P93: =IFERROR(VLOOKUP($A93,Filtro_!$A$5:$P$54,14,FALSE),0) -> 0.000 | Q93: =IFERROR(VLOOKUP($A93,Filtro_!$A$5:$P$54,15,FALSE),0) -> 0.000 | R93: =IFERROR(VLOOKUP($A93,Filtro_!$A$5:$P$54,16,FALSE),0) -> 0
B94: Formula Extensamente Hidrolizada (FEH) | D94: =IFERROR(VLOOKUP($A94,Filtro_!$A$5:$P$54,2,FALSE),0) -> 0.000 | E94: =IFERROR(VLOOKUP($A94,Filtro_!$A$5:$P$54,3,FALSE),0) -> 0.000 | F94: =IFERROR(VLOOKUP($A94,Filtro_!$A$5:$P$54,4,FALSE),0) -> 0.000 | G94: =IFERROR(VLOOKUP($A94,Filtro_!$A$5:$P$54,5,FALSE),0) -> 0.000 | H94: =IFERROR(VLOOKUP($A94,Filtro_!$A$5:$P$54,6,FALSE),0) -> 0.000 | I94: =IFERROR(VLOOKUP($A94,Filtro_!$A$5:$P$54,7,FALSE),0) -> 0.000 | J94: =IFERROR(VLOOKUP($A94,Filtro_!$A$5:$P$54,8,FALSE),0) -> 0.000 | K94: =IFERROR(VLOOKUP($A94,Filtro_!$A$5:$P$54,9,FALSE),0) -> 0.000 | L94: =IFERROR(VLOOKUP($A94,Filtro_!$A$5:$P$54,10,FALSE),0) -> 0.000 | M94: =IFERROR(VLOOKUP($A94,Filtro_!$A$5:$P$54,11,FALSE),0) -> 0.000 | N94: =IFERROR(VLOOKUP($A94,Filtro_!$A$5:$P$54,12,FALSE),0) -> 0.000 | O94: =IFERROR(VLOOKUP($A94,Filtro_!$A$5:$P$54,13,FALSE),0) -> 0.000 | P94: =IFERROR(VLOOKUP($A94,Filtro_!$A$5:$P$54,14,FALSE),0) -> 0.000 | Q94: =IFERROR(VLOOKUP($A94,Filtro_!$A$5:$P$54,15,FALSE),0) -> 0.000 | R94: =IFERROR(VLOOKUP($A94,Filtro_!$A$5:$P$54,16,FALSE),0) -> 0
B95: Formula aminoacídica (FAA) | D95: =IFERROR(VLOOKUP($A95,Filtro_!$A$5:$P$54,2,FALSE),0) -> 0.000 | E95: =IFERROR(VLOOKUP($A95,Filtro_!$A$5:$P$54,3,FALSE),0) -> 0.000 | F95: =IFERROR(VLOOKUP($A95,Filtro_!$A$5:$P$54,4,FALSE),0) -> 0.000 | G95: =IFERROR(VLOOKUP($A95,Filtro_!$A$5:$P$54,5,FALSE),0) -> 0.000 | H95: =IFERROR(VLOOKUP($A95,Filtro_!$A$5:$P$54,6,FALSE),0) -> 0.000 | I95: =IFERROR(VLOOKUP($A95,Filtro_!$A$5:$P$54,7,FALSE),0) -> 0.000 | J95: =IFERROR(VLOOKUP($A95,Filtro_!$A$5:$P$54,8,FALSE),0) -> 0.000 | K95: =IFERROR(VLOOKUP($A95,Filtro_!$A$5:$P$54,9,FALSE),0) -> 0.000 | L95: =IFERROR(VLOOKUP($A95,Filtro_!$A$5:$P$54,10,FALSE),0) -> 0.000 | M95: =IFERROR(VLOOKUP($A95,Filtro_!$A$5:$P$54,11,FALSE),0) -> 0.000 | N95: =IFERROR(VLOOKUP($A95,Filtro_!$A$5:$P$54,12,FALSE),0) -> 0.000 | O95: =IFERROR(VLOOKUP($A95,Filtro_!$A$5:$P$54,13,FALSE),0) -> 0.000 | P95: =IFERROR(VLOOKUP($A95,Filtro_!$A$5:$P$54,14,FALSE),0) -> 0.000 | Q95: =IFERROR(VLOOKUP($A95,Filtro_!$A$5:$P$54,15,FALSE),0) -> 0.000 | R95: =IFERROR(VLOOKUP($A95,Filtro_!$A$5:$P$54,16,FALSE),0) -> 0
B96: Total (Kg) | D96: =SUM(D87:D95) -> 0.000 | E96: 0.000 | F96: 0.000 | G96: =SUM(G87:G95) -> 0.000 | H96: 0.000 | I96: 0.000 | J96: =SUM(J87:J95) -> 0.000 | K96: =SUM(K87:K95) -> 0.000 | L96: 0.000 | M96: 0.000 | N96: 0.000 | O96: 0.000 | P96: 0.000 | Q96: =SUM(Q87:Q95) -> 0.000
A104: CODIGOS ELIMINADOS
A105: 15080006
A106: 15080007
A110: CODIGOS NUEVOS
A111: 15901500
A112: 15901600
B149: =SUM(B8:R96) -> 15626348.5 | AG149: =SUM(AG1:AJ148) -> 11

Sheet D16
B1: MINISTERIO DE SALUD
B2: SERVICIO SALUD COQUIMBO
B3: SUBDEPTO. DE ESTADISTICAS Y GESTION DE LA INFORMACION
B4: COMUNA/HOSPITAL
B5: MES
B6: AÑO: 2022
B7: REM-D.16. Programa de Alimentación Complementaria del Adulto Mayor (PACAM)
B8: Sección A: PACAM - Cantidad distribuida (kg)
B9: Grupo Programático | C9: Crema Años Dorados (CAD) | D9: Bebida Láctea Años Dorados (BLAD)
A10: 16090300 | B10: 70 años y más (independiente del motivo de ingreso) | C10: =IFERROR(VLOOKUP($A10,Filtro_!$A$5:$P$54,2,FALSE),0) -> 219932.00 | D10: =IFERROR(VLOOKUP($A10,Filtro_!$A$5:$P$54,3,FALSE),0) -> 220616 | E10: =$AB10&" "&$AC10 -> La cantidad distribuída de Crema Años Dorados es distinta a la cantidad distribuída de Bebida Láctea Años Dorados.- | AB10: =IF(C10<>D10,"La cantidad distribuída de Crema Años Dorados es distinta a la cantidad distribuída de Bebida Láctea Años Dorados.- ","") -> La cantidad distribuída de Crema Años Dorados es distinta a la cantidad distribuída de Bebida Láctea Años Dorados.-
A11: 16200210 | B11: 65 - 69 años con alteración de la funcionalidad | C11: =IFERROR(VLOOKUP($A11,Filtro_!$A$5:$P$54,2,FALSE),0) -> 14260.00 | D11: =IFERROR(VLOOKUP($A11,Filtro_!$A$5:$P$54,3,FALSE),0) -> 14313 | E11: =$AB11&" "&$AC11 -> La cantidad distribuída de Crema Años Dorados es distinta a la cantidad distribuída de Bebida Láctea Años Dorados.- | AB11: =IF(C11<>D11,"La cantidad distribuída de Crema Años Dorados es distinta a la cantidad distribuída de Bebida Láctea Años Dorados.- ","") -> La cantidad distribuída de Crema Años Dorados es distinta a la cantidad distribuída de Bebida Láctea Años Dorados.-
A12: 16090500 | B12: 65 - 69 años en programa social (Vínculos, Familia, Calle u otro) | C12: =IFERROR(VLOOKUP($A12,Filtro_!$A$5:$P$54,2,FALSE),0) -> 690.00 | D12: =IFERROR(VLOOKUP($A12,Filtro_!$A$5:$P$54,3,FALSE),0) -> 690 | E12: =$AB12&" "&$AC12 -> 
A13: 16090600 | B13: 60 - 69 años con tuberculosis | C13: =IFERROR(VLOOKUP($A13,Filtro_!$A$5:$P$54,2,FALSE),0) -> 44.00 | D13: =IFERROR(VLOOKUP($A13,Filtro_!$A$5:$P$54,3,FALSE),0) -> 44 | E13: =$AB13&" "&$AC13 -> 
A14: 16090100 | B14: 60 - 69 años en ELEAM autorizado o similar | C14: =IFERROR(VLOOKUP($A14,Filtro_!$A$5:$P$54,2,FALSE),0) -> 725.00 | D14: =IFERROR(VLOOKUP($A14,Filtro_!$A$5:$P$54,3,FALSE),0) -> 727 | E14: =$AB14&" "&$AC14 -> La cantidad distribuída de Crema Años Dorados es distinta a la cantidad distribuída de Bebida Láctea Años Dorados.- | AB14: La cantidad distribuída de Crema Años Dorados es distinta a la cantidad distribuída de Bebida Láctea Años Dorados.-
B15: TOTAL | C15: =SUM(C10:C14) -> 235651.00 | D15: =SUM(D10:D14) -> 236,390
B16: Sección B: PACAM - Número de personas que retiran
B17: Grupo Programático | C17: Crema Años Dorados-Bebida Lactea
C18: Ambos Sexos | D18: Hombres | E18: Mujeres | F18: Ingresos del mes | G18: Inasistentes del mes
A19: 16100300 | B19: 70 años y más (independiente del motivo de ingreso | C19: =IFERROR(VLOOKUP($A19,Filtro_!$A$5:$P$54,2,FALSE),0) -> 212634 | D19: =IFERROR(VLOOKUP($A19,Filtro_!$A$5:$P$54,3,FALSE),0) -> 90067 | E19: =IFERROR(VLOOKUP($A19,Filtro_!$A$5:$P$54,4,FALSE),0) -> 122567 | F19: =IFERROR(VLOOKUP($A19,Filtro_!$A$5:$P$54,5,FALSE),0) -> 3269 | G19: =IFERROR(VLOOKUP($A19,Filtro_!$A$5:$P$54,6,FALSE),0) -> 54046 | H19: =$AC19 -> No olvide que el Nº de personas que retiran debe ser igual al promedio de Kilos que retiran en Seccion A.- | AC19: =IF(((C10+D10)/2)<>(D19+E19)," No olvide que el Nº de personas que retiran debe ser igual al promedio de Kilos que retiran en Seccion A.-","") -> No olvide que el Nº de personas que retiran debe ser igual al promedio de Kilos que retiran en Seccion A.- | AE19: =IF($D19+$E19=0,"",IF($C10+$D10="",IF($D19+$E19="",0,1),"")) ->  | AF19: =IF(D19+E19=0,"",IF(C10+D10=0,"",IF(((C10+D10)/2)<>D19+E19,1,0))) -> 1
A20: 16200220 | B20: 65 - 69 años con alteración de la funcionalidad | C20: =IFERROR(VLOOKUP($A20,Filtro_!$A$5:$P$54,2,FALSE),0) -> 13714 | D20: =IFERROR(VLOOKUP($A20,Filtro_!$A$5:$P$54,3,FALSE),0) -> 5460 | E20: =IFERROR(VLOOKUP($A20,Filtro_!$A$5:$P$54,4,FALSE),0) -> 8254 | F20: =IFERROR(VLOOKUP($A20,Filtro_!$A$5:$P$54,5,FALSE),0) -> 581 | G20: =IFERROR(VLOOKUP($A20,Filtro_!$A$5:$P$54,6,FALSE),0) -> 4257 | H20: =$AC20 -> No olvide que el Nº de personas que retiran debe ser igual al promedio de Kilos que retiran en Seccion A.- | AC20: =IF(((C11+D11)/2)<>(D20+E20)," No olvide que el Nº de personas que retiran debe ser igual al promedio de Kilos que retiran en Seccion A.-","") -> No olvide que el Nº de personas que retiran debe ser igual al promedio de Kilos que retiran en Seccion A.- | AE20: =IF($D20+$E20=0,"",IF($C11+$D11="",IF($D20+$E20="",0,1),"")) ->  | AF20: =IF(D20+E20=0,"",IF(C11+D11=0,"",IF(((C11+D11)/2)<>D20+E20,1,0))) -> 1
A21: 16100600 | B21: 65 - 69 años en programa social (Vínculos, Familia, Calle u otro) | C21: =IFERROR(VLOOKUP($A21,Filtro_!$A$5:$P$54,2,FALSE),0) -> 729 | D21: =IFERROR(VLOOKUP($A21,Filtro_!$A$5:$P$54,3,FALSE),0) -> 276 | E21: =IFERROR(VLOOKUP($A21,Filtro_!$A$5:$P$54,4,FALSE),0) -> 453 | F21: =IFERROR(VLOOKUP($A21,Filtro_!$A$5:$P$54,5,FALSE),0) -> 4 | G21: =IFERROR(VLOOKUP($A21,Filtro_!$A$5:$P$54,6,FALSE),0) -> 97 | H21: No olvide que el Nº de personas que retiran debe ser igual al promedio de Kilos que retiran en Seccion A.- | AC21: No olvide que el Nº de personas que retiran debe ser igual al promedio de Kilos que retiran en Seccion A.- | AF21: 1
A22: 16100700 | B22: 60 - 69 años con tuberculosis | C22: =IFERROR(VLOOKUP($A22,Filtro_!$A$5:$P$54,2,FALSE),0) -> 43 | D22: =IFERROR(VLOOKUP($A22,Filtro_!$A$5:$P$54,3,FALSE),0) -> 33 | E22: =IFERROR(VLOOKUP($A22,Filtro_!$A$5:$P$54,4,FALSE),0) -> 10 | F22: =IFERROR(VLOOKUP($A22,Filtro_!$A$5:$P$54,5,FALSE),0) -> 1 | G22: =IFERROR(VLOOKUP($A22,Filtro_!$A$5:$P$54,6,FALSE),0) -> 43 | H22: No olvide que el Nº de personas que retiran debe ser igual al promedio de Kilos que retiran en Seccion A.- | AC22: No olvide que el Nº de personas que retiran debe ser igual al promedio de Kilos que retiran en Seccion A.- | AF22: 1
A23: 16100100 | B23: 60 - 69 años en ELEAM autorizado o similar | C23: =IFERROR(VLOOKUP($A23,Filtro_!$A$5:$P$54,2,FALSE),0) -> 718 | D23: =IFERROR(VLOOKUP($A23,Filtro_!$A$5:$P$54,3,FALSE),0) -> 304 | E23: =IFERROR(VLOOKUP($A23,Filtro_!$A$5:$P$54,4,FALSE),0) -> 414 | F23: =IFERROR(VLOOKUP($A23,Filtro_!$A$5:$P$54,5,FALSE),0) -> 11 | G23: =IFERROR(VLOOKUP($A23,Filtro_!$A$5:$P$54,6,FALSE),0) -> 56 | H23: No olvide que el Nº de personas que retiran debe ser igual al promedio de Kilos que retiran en Seccion A.- | AC23: No olvide que el Nº de personas que retiran debe ser igual al promedio de Kilos que retiran en Seccion A.- | AF23: 1
B24: TOTAL | C24: =SUM(C19:C23) -> 227,838 | D24: 96,140 | E24: 131,698 | F24: 3,866 | G24: 58,499
B25: Sección C: Existencia y movimiento de productos
B26: Alimentos | C26: Saldo mes anterior | D26: Ingresos | F26: Total disponible | G26: Egresos | L26: Saldo mes siguiente | M26: Necesidades
D27: Planta | E27: Por traspaso | G27: Distribuido a beneficiarios | H27: Mermas (Incluye faltantes) | I27: Otros: (demostraciones, donaciones, etc.) | J27: Traspaso | K27: Total egresos | M27: Bodega del estableci- miento | N27: Bodegas Centrales
B29: Crema Años Dorados (CAD) | C29: =IFERROR(VLOOKUP($A29,Filtro_!$A$5:$P$54,2,FALSE),0) -> 0.0 | D29: =IFERROR(VLOOKUP($A29,Filtro_!$A$5:$P$54,3,FALSE),0) -> 0.0 | E29: =IFERROR(VLOOKUP($A29,Filtro_!$A$5:$P$54,4,FALSE),0) -> 0.0 | F29: =IFERROR(VLOOKUP($A29,Filtro_!$A$5:$P$54,5,FALSE),0) -> 0.0 | G29: =IFERROR(VLOOKUP($A29,Filtro_!$A$5:$P$54,6,FALSE),0) -> 0.0 | H29: =IFERROR(VLOOKUP($A29,Filtro_!$A$5:$P$54,7,FALSE),0) -> 0.0 | I29: =IFERROR(VLOOKUP($A29,Filtro_!$A$5:$P$54,8,FALSE),0) -> 0.0 | J29: =IFERROR(VLOOKUP($A29,Filtro_!$A$5:$P$54,9,FALSE),0) -> 0.0 | K29: =IFERROR(VLOOKUP($A29,Filtro_!$A$5:$P$54,10,FALSE),0) -> 0.0 | L29: =IFERROR(VLOOKUP($A29,Filtro_!$A$5:$P$54,11,FALSE),0) -> 0.0 | M29: =IFERROR(VLOOKUP($A29,Filtro_!$A$5:$P$54,12,FALSE),0) -> 0.0 | N29: =IFERROR(VLOOKUP($A29,Filtro_!$A$5:$P$54,13,FALSE),0) -> 0.0
B30: Bebida Láctea Años Dorados (BLAD) | C30: =IFERROR(VLOOKUP($A30,Filtro_!$A$5:$P$54,2,FALSE),0) -> 0 | D30: =IFERROR(VLOOKUP($A30,Filtro_!$A$5:$P$54,3,FALSE),0) -> 0 | E30: =IFERROR(VLOOKUP($A30,Filtro_!$A$5:$P$54,4,FALSE),0) -> 0 | F30: =IFERROR(VLOOKUP($A30,Filtro_!$A$5:$P$54,5,FALSE),0) -> 0 | G30: =IFERROR(VLOOKUP($A30,Filtro_!$A$5:$P$54,6,FALSE),0) -> 0 | H30: =IFERROR(VLOOKUP($A30,Filtro_!$A$5:$P$54,7,FALSE),0) -> 0 | I30: =IFERROR(VLOOKUP($A30,Filtro_!$A$5:$P$54,8,FALSE),0) -> 0 | J30: =IFERROR(VLOOKUP($A30,Filtro_!$A$5:$P$54,9,FALSE),0) -> 0 | K30: =IFERROR(VLOOKUP($A30,Filtro_!$A$5:$P$54,10,FALSE),0) -> 0 | L30: =IFERROR(VLOOKUP($A30,Filtro_!$A$5:$P$54,11,FALSE),0) -> 0 | M30: =IFERROR(VLOOKUP($A30,Filtro_!$A$5:$P$54,12,FALSE),0) -> 0 | N30: =IFERROR(VLOOKUP($A30,Filtro_!$A$5:$P$54,13,FALSE),0) -> 0
B31: Sección D: PACAM - Número de personas que retiran, pertenecientes al PRAIS (incluidos en Sección B)
B32: Grupo Programático | C32: Crema Años Dorados-Bebida Lactea
C33: Ambos Sexos | D33: Hombres | E33: Mujeres | F33: Ingresos del mes | G33: Inasistentes del mes
A34: 16200100 | B34: 70 años y más (independiente del motivo de ingreso | C34: =IFERROR(VLOOKUP($A34,Filtro_!$A$5:$P$54,2,FALSE),0) -> 2981 | D34: =IFERROR(VLOOKUP($A34,Filtro_!$A$5:$P$54,3,FALSE),0) -> 1646 | E34: =IFERROR(VLOOKUP($A34,Filtro_!$A$5:$P$54,4,FALSE),0) -> 1309 | F34: =IFERROR(VLOOKUP($A34,Filtro_!$A$5:$P$54,5,FALSE),0) -> 13 | G34: =IFERROR(VLOOKUP($A34,Filtro_!$A$5:$P$54,6,FALSE),0) -> 762
A35: 16200230 | B35: 65 - 69 años con alteración de la funcionalidad | C35: =IFERROR(VLOOKUP($A35,Filtro_!$A$5:$P$54,2,FALSE),0) -> 72 | D35: =IFERROR(VLOOKUP($A35,Filtro_!$A$5:$P$54,3,FALSE),0) -> 21 | E35: =IFERROR(VLOOKUP($A35,Filtro_!$A$5:$P$54,4,FALSE),0) -> 51 | F35: =IFERROR(VLOOKUP($A35,Filtro_!$A$5:$P$54,5,FALSE),0) -> 0 | G35: =IFERROR(VLOOKUP($A35,Filtro_!$A$5:$P$54,6,FALSE),0) -> 16
A36: 16200240 | B36: 65 - 69 años en programa social (Vínculos, Familia, Calle u otro) | C36: =IFERROR(VLOOKUP($A36,Filtro_!$A$5:$P$54,2,FALSE),0) -> 1 | D36: =IFERROR(VLOOKUP($A36,Filtro_!$A$5:$P$54,3,FALSE),0) -> 1 | E36: =IFERROR(VLOOKUP($A36,Filtro_!$A$5:$P$54,4,FALSE),0) -> 0 | F36: =IFERROR(VLOOKUP($A36,Filtro_!$A$5:$P$54,5,FALSE),0) -> 0 | G36: =IFERROR(VLOOKUP($A36,Filtro_!$A$5:$P$54,6,FALSE),0) -> 0
A37: 16200200 | B37: 60 - 69 años con tuberculosis | C37: =IFERROR(VLOOKUP($A37,Filtro_!$A$5:$P$54,2,FALSE),0) -> 1 | D37: =IFERROR(VLOOKUP($A37,Filtro_!$A$5:$P$54,3,FALSE),0) -> 1 | E37: =IFERROR(VLOOKUP($A37,Filtro_!$A$5:$P$54,4,FALSE),0) -> 0 | F37: =IFERROR(VLOOKUP($A37,Filtro_!$A$5:$P$54,5,FALSE),0) -> 0 | G37: =IFERROR(VLOOKUP($A37,Filtro_!$A$5:$P$54,6,FALSE),0) -> 0
A38: 16200250 | B38: 60 - 69 años en ELEAM autorizado o similar | C38: =IFERROR(VLOOKUP($A38,Filtro_!$A$5:$P$54,2,FALSE),0) -> 0 | D38: =IFERROR(VLOOKUP($A38,Filtro_!$A$5:$P$54,3,FALSE),0) -> 0 | E38: =IFERROR(VLOOKUP($A38,Filtro_!$A$5:$P$54,4,FALSE),0) -> 0 | F38: =IFERROR(VLOOKUP($A38,Filtro_!$A$5:$P$54,5,FALSE),0) -> 0 | G38: =IFERROR(VLOOKUP($A38,Filtro_!$A$5:$P$54,6,FALSE),0) -> 0
B39: TOTAL | C39: =SUM(C34:C38) -> 3,055 | D39: 1,669 | E39: 1,360 | F39: 13 | G39: 778
B205: =SUM(B8:O39) -> 1993914 | AE205: =SUM(AE1:AF204) -> 5

Sheet Filtro_
A1: Establecimiento | B1: (Todas)
A2: Comuna | B2: (Todas)
A3: Mes | B3: (Todas)
A5: Etiquetas de fila | B5: Suma de Col01 | C5: Suma de Col02 | D5: Suma de Col03 | E5: Suma de Col04 | F5: Suma de Col05 | G5: Suma de Col06 | H5: Suma de Col07 | I5: Suma de Col08 | J5: Suma de Col09 | K5: Suma de Col10 | L5: Suma de Col11 | M5: Suma de Col12 | N5: Suma de Col13 | O5: Suma de Col14 | P5: Suma de Col15
A6: 15010100 | B6: 37337 | E6: 1996 | F6: 34737 | G6: 234 | H6: 12 | I6: 16 | J6: 181 | K6: 0 | L6: 157 | M6: 2 | N6: 6
A7: 15010200 | B7: 153600 | G7: 30394 | H7: 67557 | I7: 55651
A8: 15010300 | B8: 826 | E8: 73 | F8: 679 | G8: 74 | H8: 0 | I8: 0 | J8: 0 | K8: 0 | L8: 0 | M8: 0 | N8: 0
A9: 15010400 | B9: 3861 | G9: 584 | H9: 2166 | I9: 1111
A10: 15010500 | B10: 5380 | D10: 12 | E10: 724 | F10: 698 | G10: 658 | H10: 2177 | I10: 1111
A11: 15020100 | B11: 1507 | C11: 47 | D11: 96 | E11: 560 | F11: 813 | G11: 4 | H11: 0 | I11: 0 | J11: 0 | K11: 0 | L11: 2 | M11: 0 | N11: 0
A12: 15020200 | B12: 3198 | G12: 704 | H12: 1308 | I12: 1186
A13: 15020300 | B13: 21 | C13: 1 | D13: 2 | E13: 8 | F13: 10 | G13: 0
A14: 15020400 | B14: 11 | G14: 4 | H14: 6 | I14: 1
A15: 15020500 | B15: 16 | D15: 0 | E15: 2 | F15: 2 | G15: 2 | H15: 8 | I15: 2
A16: 15030100 | B16: 87432.4 | C16: 36552.4 | D16: 29339.2 | E16: 21540.8
A17: 15030200 | B17: 30949.6 | E17: 30949.6
A18: 15040100 | B18: 37.6 | C18: 22.4 | D18: 12 | E18: 3.2
A19: 15040200 | B19: 3.6 | E19: 3.6
A20: 15050100 | B20: 147688 | C20: 59303 | D20: 87896 | E20: 1331 | F20: 3510 | G20: 11413 | H20: 17017 | I20: 15080 | J20: 33801 | K20: 28296 | L20: 22518 | N20: 7803 | O20: 1948 | P20: 4971
A21: 15050200 | B21: 3327 | C21: 1604 | D21: 1708 | E21: 58 | F21: 101 | G21: 366 | H21: 371 | I21: 328 | J21: 1070 | K21: 529 | M21: 410 | N21: 50 | O21: 33 | P21: 11
A22: 15050500 | B22: 655 | C22: 360 | D22: 294 | E22: 206 | F22: 184 | G22: 265
A23: 15060100 | B23: 2447 | C23: 1255 | D23: 1179 | E23: 27 | F23: 55 | G23: 284 | H23: 388 | I23: 358 | J23: 656 | K23: 593 | L23: 32 | N23: 20 | O23: 28 | P23: 6
A24: 15060200 | B24: 27 | C24: 13 | D24: 14 | E24: 1 | F24: 1 | G24: 2 | H24: 5 | I24: 1 | J24: 5 | K24: 11 | M24: 0 | N24: 1 | O24: 0 | P24: 0
A25: 15060600 | B25: 10 | C25: 5 | D25: 5 | E25: 6 | F25: 2 | G25: 2
A26: 15080008 | B26: 44835 | J26: 22493 | L26: 15392 | M26: 1967 | N26: 4983
A27: 15080009 | B27: 1411 | K27: 1221 | L27: 143 | M27: 34 | N27: 13
A28: 15080010 | B28: 104 | J28: 32 | L28: 38 | M28: 28 | N28: 6
A29: 15080012 | B29: 18 | E29: 18
A30: 15900010 | B30: 1835321.3 | C30: 121515 | D30: 370332.1 | E30: 1343465.2
A31: 15900020 | B31: 26685.5 | C31: 11366.4 | D31: 10332.6 | E31: 4986.5
A32: 15900030 | B32: 121540.65 | C32: 6600.8 | D32: 12076.8 | E32: 59761.05 | F32: 34893.2 | G32: 8182 | H32: 26.8 | I32: 0
A33: 15900040 | B33: 40601.2 | C33: 5318.4 | D33: 12317.2 | E33: 6849.6 | F33: 15870.8 | G33: 237.6 | H33: 7.6 | I33: 0
A34: 15900050 | B34: 1465 | C34: 798 | D34: 663 | E34: 108 | F34: 238 | G34: 542 | H34: 342 | I34: 225 | J34: 10
A35: 15900060 | B35: 2 | C35: 2 | K35: 2
A36: 15901200 | B36: 26167 | C36: 71.2 | D36: 3538.6 | E36: 10668.4 | F36: 11408.2 | G36: 480.6 | H36: 0 | I36: 0
A37: 15901300 | B37: 26488.2 | C37: 38.8 | D37: 10110 | E37: 9142.6 | F37: 252.4 | G37: 6935.6 | H37: 8.8 | I37: 0
A38: 15901400 | B38: 853 | C38: 517 | D38: 335 | E38: 35 | F38: 135 | G38: 286 | H38: 235 | I38: 160 | J38: 2 | K38: 0
A39: 15901500 | B39: 826.7 | C39: 131.9 | D39: 200 | E39: 494.8
A40: 16090100 | B40: 725 | C40: 727
A41: 16090300 | B41: 219932 | C41: 220616
A42: 16090500 | B42: 690 | C42: 690
A43: 16090600 | B43: 44 | C43: 44
A44: 16100100 | B44: 718 | C44: 304 | D44: 414 | E44: 11 | F44: 56
A45: 16100300 | B45: 212634 | C45: 90067 | D45: 122567 | E45: 3269 | F45: 54046
A46: 16100600 | B46: 729 | C46: 276 | D46: 453 | E46: 4 | F46: 97
A47: 16100700 | B47: 43 | C47: 33 | D47: 10 | E47: 1 | F47: 43
A48: 16200100 | B48: 2981 | C48: 1646 | D48: 1309 | E48: 13 | F48: 762
A49: 16200200 | B49: 1 | C49: 1
A50: 16200210 | B50: 14260 | C50: 14313
A51: 16200220 | B51: 13714 | C51: 5460 | D51: 8254 | E51: 581 | F51: 4257
A52: 16200230 | B52: 72 | C52: 21 | D52: 51 | E52: 0 | F52: 16
A53: 16200240 | B53: 1 | C53: 1
A54: Total general | B54: 3071196.75 | C54: 579721.3 | D54: 673520.5 | E54: 1496897.35 | F54: 162866.6 | G54: 61653.8 | H54: 91635.2 | I54: 75230 | J54: 58250 | K54: 30652 | L54: 38282 | M54: 2441 | N54: 12882 | O54: 2009 | P54: 4988

Sheet BBDD_ (hidden)
X1: Mes | Y1: IdServicio | Z1: Ano | AA1: IdEstablecimiento | AB1: Establecimiento | AC1: Comuna | AD1: CodigoPrestacion | AE1: fechaIngreso | AF1: Col01 | AG1: Col02 | AH1: Col03 | AI1: Col04 | AJ1: Col05 | AK1: Col06 | AL1: Col07 | AM1: Col08 | AN1: Col09 | AO1: Col10 | AP1: Col11 | AQ1: Col12 | AR1: Col13 | AS1: Col14 | AT1: Col15 | AU1: Col16 | AV1: Col17 | AW1: Col18 | AX1: Col19 | AY1: Col20 | AZ1: Col21 | BA1: Col22 | BB1: Col23 | BC1: Col24 | BD1: Col25 | BE1: Col26 | BF1: Col27 | BG1: Col28 | BH1: Col29 | BI1: Col30 | BJ1: Col31 | BK1: Col32 | BL1: Col33 | BM1: Col34 | BN1: Col35 | BO1: Col36 | BP1: Col37 | BQ1: Col38 | BR1: Col39 | BS1: Col40 | BT1: Col41 | BU1: col42 | BV1: col43 | BW1: col44 | BX1: col45 | BY1: col46 | BZ1: col47 | CA1: col48 | CB1: col49 | CC1: col50
X2: 1 | Y2: 5 | Z2: 2022 | AA2: 105701 | AB2: =IFERROR(VLOOKUP(Tabla_SERIED_12_5[[#This Row],[IdEstablecimiento]],'[1]Establecimiento 2023'!$A$1:$E$183,3,FALSE),0) -> 105701-Centro Comunitario de Salud Familiar Villa Alemania | AC2: =IFERROR(VLOOKUP(Tabla_SERIED_12_5[[#This Row],[IdEstablecimiento]],'[1]Establecimiento 2023'!$A$1:$E$183,5,FALSE),0) -> 04101-La Serena | AD2: 15080008 | AE2: 2022-02-17T04:22:49 | AF2: 15 | AN2: 7 | AP2: 6 | AR2: 2
X3: 1 | Y3: 5 | Z3: 2022 | AA3: 105701 | AB3: =IFERROR(VLOOKUP(Tabla_SERIED_12_5[[#This Row],[IdEstablecimiento]],'[1]Establecimiento 2023'!$A$1:$E$183,3,FALSE),0) -> 105701-Centro Comunitario de Salud Familiar Villa Alemania | AC3: =IFERROR(VLOOKUP(Tabla_SERIED_12_5[[#This Row],[IdEstablecimiento]],'[1]Establecimiento 2023'!$A$1:$E$183,5,FALSE),0) -> 04101-La Serena | AD3: 15900010 | AE3: 2022-02-17T04:22:49 | AF3: 15.2 | AH3: 3.2 | AI3: 12
X4: 1 | Y4: 5 | Z4: 2022 | AA4: 105701 | AB4: =IFERROR(VLOOKUP(Tabla_SERIED_12_5[[#This Row],[IdEstablecimiento]],'[1]Establecimiento 2023'!$A$1:$E$183,3,FALSE),0) -> 105701-Centro Comunitario de Salud Familiar Villa Alemania | AC4: =IFERROR(VLOOKUP(Tabla_SERIED_12_5[[#This Row],[IdEstablecimiento]],'[1]Establecimiento 2023'!$A$1:$E$183,5,FALSE),0) -> 04101-La Serena | AD4: 15080009 | AE4: 2022-02-17T04:22:49 | AF4: 3 | AO4: 3
X5: 1 | Y5: 5 | Z5: 2022 | AA5: 105701 | AB5: =IFERROR(VLOOKUP(Tabla_SERIED_12_5[[#This Row],[IdEstablecimiento]],'[1]Establecimiento 2023'!$A$1:$E$183,3,FALSE),0) -> 105701-Centro Comunitario de Salud Familiar Villa Alemania | AC5: =IFERROR(VLOOKUP(Tabla_SERIED_12_5[[#This Row],[IdEstablecimiento]],'[1]Establecimiento 2023'!$A$1:$E$183,5,FALSE),0) -> 04101-La Serena | AD5: 15900040 | AE5: 2022-02-17T04:22:49 | AF5: 4 | AI5: 4
X6: 1 | Y6: 5 | Z6: 2022 | AA6: 105701 | AB6: =IFERROR(VLOOKUP(Tabla_SERIED_12_5[[#This Row],[IdEstablecimiento]],'[1]Establecimiento 2023'!$A$1:$E$183,3,FALSE),0) -> 105701-Centro Comunitario de Salud Familiar Villa Alemania | AC6: =IFERROR(VLOOKUP(Tabla_SERIED_12_5[[#This Row],[IdEstablecimiento]],'[1]Establecimiento 2023'!$A$1:$E$183,5,FALSE),0) -> 04101-La Serena | AD6: 15050100 | AE6: 2022-02-17T04:22:49 | AF6: 34 | AG6: 10 | AH6: 24 | AJ6: 1 | AK6: 4 | AL6: 4 | AN6: 8 | AO6: 5 | AP6: 7 | AR6: 3 | AT6: 2
X7: 1 | Y7: 5 | Z7: 2022 | AA7: 105701 | AB7: =IFERROR(VLOOKUP(Tabla_SERIED_12_5[[#This Row],[IdEstablecimiento]],'[1]Establecimiento 2023'!$A$1:$E$183,3,FALSE),0) -> 105701-Centro Comunitario de Salud Familiar Villa Alemania | AC7: =IFERROR(VLOOKUP(Tabla_SERIED_12_5[[#This Row],[IdEstablecimiento]],'[1]Establecimiento 2023'!$A$1:$E$183,5,FALSE),0) -> 04101-La Serena | AD7: 15050200 | AE7: 2022-02-17T04:22:49 | AF7: 1 | AH7: 1 | AQ7: 1
X8: 1 | Y8: 5 | Z8: 2022 | AA8: 105701 | AB8: =IFERROR(VLOOKUP(Tabla_SERIED_12_5[[#This Row],[IdEstablecimiento]],'[1]Establecimiento 2023'!$A$1:$E$183,3,FALSE),0) -> 105701-Centro Comunitario de Salud Familiar Villa Alemania | AC8: =IFERROR(VLOOKUP(Tabla_SERIED_12_5[[#This Row],[IdEstablecimiento]],'[1]Establecimiento 2023'!$A$1:$E$183,5,FALSE),0) -> 04101-La Serena | AD8: 15900050 | AE8: 2022-02-17T04:22:49 | AF8: 1 | AH8: 1 | AK8: 1
X9: 1 | Y9: 5 | Z9: 2022 | AA9: 105701 | AB9: =IFERROR(VLOOKUP(Tabla_SERIED_12_5[[#This Row],[IdEstablecimiento]],'[1]Establecimiento 2023'!$A$1:$E$183,3,FALSE),0) -> 105701-Centro Comunitario de Salud Familiar Villa Alemania | AC9: =IFERROR(VLOOKUP(Tabla_SERIED_12_5[[#This Row],[IdEstablecimiento]],'[1]Establecimiento 2023'!$A$1:$E$183,5,FALSE),0) -> 04101-La Serena | AD9: 15901300 | AE9: 2022-02-17T04:22:49 | AF9: 4.4 | AI9: 4.4
X10: 1 | Y10: 5 | Z10: 2022 | AA10: 105701 | AB10: =IFERROR(VLOOKUP(Tabla_SERIED_12_5[[#This Row],[IdEstablecimiento]],'[1]Establecimiento 2023'!$A$1:$E$183,3,FALSE),0) -> 105701-Centro Comunitario de Salud Familiar Villa Alemania | AC10: =IFERROR(VLOOKUP(Tabla_SERIED_12_5[[#This Row],[IdEstablecimiento]],'[1]Establecimiento 2023'!$A$1:$E$183,5,FALSE),0) -> 04101-La Serena | AD10: 15901400 | AE10: 2022-02-17T04:22:49 | AF10: 1 | AH10: 1 | AK10: 1
X11: 1 | Y11: 5 | Z11: 2022 | AA11: 105701 | AB11: =IFERROR(VLOOKUP(Tabla_SERIED_12_5[[#This Row],[IdEstablecimiento]],'[1]Establecimiento 2023'!$A$1:$E$183,3,FALSE),0) -> 105701-Centro Comunitario de Salud Familiar Villa Alemania | AC11: =IFERROR(VLOOKUP(Tabla_SERIED_12_5[[#This Row],[IdEstablecimiento]],'[1]Establecimiento 2023'!$A$1:$E$183,5,FALSE),0) -> 04101-La Serena | AD11: 16090300 | AE11: 2022-02-17T04:22:49 | AF11: 24 | AG11: 24
X12: 1 | Y12: 5 | Z12: 2022 | AA12: 105701 | AB12: =IFERROR(VLOOKUP(Tabla_SERIED_12_5[[#This Row],[IdEstablecimiento]],'[1]Establecimiento 2023'!$A$1:$E$183,3,FALSE),0) -> 105701-Centro Comunitario de Salud Familiar Villa Alemania | AC12: =IFERROR(VLOOKUP(Tabla_SERIED_12_5[[#This Row],[IdEstablecimiento]],'[1]Establecimiento 2023'!$A$1:$E$183,5,FALSE),0) -> 04101-La Serena | AD12: 16090500 | AE12: 2022-02-17T04:22:49 | AF12: 3 | AG12: 3
X13: 1 | Y13: 5 | Z13: 2022 | AA13: 105701 | AB13: =IFERROR(VLOOKUP(Tabla_SERIED_12_5[[#This Row],[IdEstablecimiento]],'[1]Establecimiento 2023'!$A$1:$E$183,3,FALSE),0) -> 105701-Centro Comunitario de Salud Familiar Villa Alemania | AC13: =IFERROR(VLOOKUP(Tabla_SERIED_12_5[[#This Row],[IdEstablecimiento]],'[1]Establecimiento 2023'!$A$1:$E$183,5,FALSE),0) -> 04101-La Serena | AD13: 16100300 | AE13: 2022-02-17T04:22:49 | AF13: 24 | AG13: 7 | AH13: 17
X14: 1 | Y14: 5 | Z14: 2022 | AA14: 105701 | AB14: =IFERROR(VLOOKUP(Tabla_SERIED_12_5[[#This Row],[IdEstablecimiento]],'[1]Establecimiento 2023'!$A$1:$E$183,3,FALSE),0) -> 105701-Centro Comunitario de Salud Familiar Villa Alemania | AC14: =IFERROR(VLOOKUP(Tabla_SERIED_12_5[[#This Row],[IdEstablecimiento]],'[1]Establecimiento 2023'!$A$1:$E$183,5,FALSE),0) -> 04101-La Serena | AD14: 16100600 | AE14: 2022-02-17T04:22:49 | AF14: 3 | AG14: 2 | AH14: 1
X15: 1 | Y15: 5 | Z15: 2022 | AA15: 105722 | AB15: =IFERROR(VLOOKUP(Tabla_SERIED_12_5[[#This Row],[IdEstablecimiento]],'[1]Establecimiento 2023'!$A$1:$E$183,3,FALSE),0) -> 105722-Centro Comunitario de Salud Familiar San José de la Dehesa | AC15: =IFERROR(VLOOKUP(Tabla_SERIED_12_5[[#This Row],[IdEstablecimiento]],'[1]Establecimiento 2023'!$A$1:$E$183,5,FALSE),0) -> 04301-Ovalle | AD15: 15010500 | AE15: 2022-02-17T04:25:36 | AF15: 4 | AJ15: 2 | AL15: 2
X16: 3 | Y16: 5 | Z16: 2022 | AA16: 105322 | AB16: =IFERROR(VLOOKUP(Tabla_SERIED_12_5[[#This Row],[IdEstablecimiento]],'[1]Establecimiento 2023'!$A$1:$E$183,3,FALSE),0) -> 105322-Centro de Salud Familiar Marcos Macuada | AC16: =IFERROR(VLOOKUP(Tabla_SERIED_12_5[[#This Row],[IdEstablecimiento]],'[1]Establecimiento 2023'!$A$1:$E$183,5,FALSE),0) -> 04301-Ovalle | AD16: 16100300 | AE16: 2022-04-19T08:11:14 | AF16: 764 | AG16: 277 | AH16: 487 | AI16: 8 | AJ16: 542
X17: 3 | Y17: 5 | Z17: 2022 | AA17: 105322 | AB17: =IFERROR(VLOOKUP(Tabla_SERIED_12_5[[#This Row],[IdEstablecimiento]],'[1]Establecimiento 2023'!$A$1:$E$183,3,FALSE),0) -> 105322-Centro de Salud Familiar Marcos Macuada | AC17: =IFERROR(VLOOKUP(Tabla_SERIED_12_5[[#This Row],[IdEstablecimiento]],'[1]Establecimiento 2023'!$A$1:$E$183,5,FALSE),0) -> 04301-Ovalle | AD17: 16200220 | AE17: 2022-04-19T08:11:14 | AF17: 12 | AG17: 5 | AH17: 7
X18: 3 | Y18: 5 | Z18: 2022 | AA18: 105323 | AB18: =IFERROR(VLOOKUP(Tabla_SERIED_12_5[[#This Row],[IdEstablecimiento]],'[1]Establecimiento 2023'!$A$1:$E$183,3,FALSE),0) -> 105323-Centro de Salud Familiar Dr. Sergio Aguilar Delgado | AC18: =IFERROR(VLOOKUP(Tabla_SERIED_12_5[[#This Row],[IdEstablecimiento]],'[1]Establecimiento 2023'!$A$1:$E$183,5,FALSE),0) -> 04102-Coquimbo | AD18: 15010100 | AE18: 2022-04-19T08:11:27 | AF18: 106 | AI18: 0 | AJ18: 98 | AK18: 8
X19: 3 | Y19: 5 | Z19: 2022 | AA19: 105318 | AB19: =IFERROR(VLOOKUP(Tabla_SERIED_12_5[[#This Row],[IdEstablecimiento]],'[1]Establecimiento 2023'!$A$1:$E$183,3,FALSE),0) -> 105318-Centro de Salud Familiar El Palqui | AC19: =IFERROR(VLOOKUP(Tabla_SERIED_12_5[[#This Row],[IdEstablecimiento]],'[1]Establecimiento 2023'!$A$1:$E$183,5,FALSE),0) -> 04303-Monte Patria | AD19: 15010400 | AE19: 2022-04-19T08:10:14 | AF19: 10 | AK19: 4 | AL19: 2 | AM19: 4
X20: 3 | Y20: 5 | Z20: 2022 | AA20: 105318 | AB20: =IFERROR(VLOOKUP(Tabla_SERIED_12_5[[#This Row],[IdEstablecimiento]],'[1]Establecimiento 2023'!$A$1:$E$183,3,FALSE),0) -> 105318-Centro de Salud Familiar El Palqui | AC20: =IFERROR(VLOOKUP(Tabla_SERIED_12_5[[#This Row],[IdEstablecimiento]],'[1]Establecimiento 2023'!$A$1:$E$183,5,FALSE),0) -> 04303-Monte Patria | AD20: 15010500 | AE20: 2022-04-19T08:10:14 | AF20: 16 | AI20: 2 | AJ20: 4 | AK20: 4 | AL20: 2 | AM20: 4
X21: 3 | Y21: 5 | Z21: 2022 | AA21: 105318 | AB21: =IFERROR(VLOOKUP(Tabla_SERIED_12_5[[#This Row],[IdEstablecimiento]],'[1]Establecimiento 2023'!$A$1:$E$183,3,FALSE),0) -> 105318-Centro de Salud Familiar El Palqui | AC21: =IFERROR(VLOOKUP(Tabla_SERIED_12_5[[#This Row],[IdEstablecimiento]],'[1]Establecimiento 2023'!$A$1:$E$183,5,FALSE),0) -> 04303-Monte Patria | AD21: 15900020 | AE21: 2022-04-19T08:10:14 | AF21: 4 | AI21: 4
X22: 3 | Y22: 5 | Z22: 2022 | AA22: 105318 | AB22: =IFERROR(VLOOKUP(Tabla_SERIED_12_5[[#This Row],[IdEstablecimiento]],'[1]Establecimiento 2023'!$A$1:$E$183,3,FALSE),0) -> 105318-Centro de Salud Familiar El Palqui | AC22: =IFERROR(VLOOKUP(Tabla_SERIED_12_5[[#This Row],[IdEstablecimiento]],'[1]Establecimiento 2023'!$A$1:$E$183,5,FALSE),0) -> 04303-Monte Patria | AD22: 15900030 | AE22: 2022-04-19T08:10:14 | AF22: 4 | AI22: 4
X23: 3 | Y23: 5 | Z23: 2022 | AA23: 105318 | AB23: =IFERROR(VLOOKUP(Tabla_SERIED_12_5[[#This Row],[IdEstablecimiento]],'[1]Establecimiento 2023'!$A$1:$E$183,3,FALSE),0) -> 105318-Centro de Salud Familiar El Palqui | AC23: =IFERROR(VLOOKUP(Tabla_SERIED_12_5[[#This Row],[IdEstablecimiento]],'[1]Establecimiento 2023'!$A$1:$E$183,5,FALSE),0) -> 04303-Monte Patria | AD23: 15900040 | AE23: 2022-04-19T08:10:14 | AF23: 2 | AI23: 2
X24: 3 | Y24: 5 | Z24: 2022 | AA24: 105318 | AB24: =IFERROR(VLOOKUP(Tabla_SERIED_12_5[[#This Row],[IdEstablecimiento]],'[1]Establecimiento 2023'!$A$1:$E$183,3,FALSE),0) -> 105318-Centro de Salud Familiar El Palqui | AC24: =IFERROR(VLOOKUP(Tabla_SERIED_12_5[[#This Row],[IdEstablecimiento]],'[1]Establecimiento 2023'!$A$1:$E$183,5,FALSE),0) -> 04303-Monte Patria | AD24: 15050100 | AE24: 2022-04-19T08:10:14 | AF24: 306 | AG24: 129 | AH24: 177 | AI24: 2 | AJ24: 2 | AK24: 18 | AL24: 27 | AM24: 36 | AN24: 65 | AO24: 72 | AP24: 55 | AR24: 16 | AS24: 1 | AT24: 12
X25: 3 | Y25: 5 | Z25: 2022 | AA25: 105318 | AB25: =IFERROR(VLOOKUP(Tabla_SERIED_12_5[[#This Row],[IdEstablecimiento]],'[1]Establecimiento 2023'!$A$1:$E$183,3,FALSE),0) -> 105318-Centro de Salud Familiar El Palqui | AC25: =IFERROR(VLOOKUP(Tabla_SERIED_12_5[[#This Row],[IdEstablecimiento]],'[1]Establecimiento 2023'!$A$1:$E$183,5,FALSE),0) -> 04303-Monte Patria | AD25: 15050200 | AE25: 2022-04-19T08:10:14 | AF25: 8 | AG25: 6 | AH25: 2 | AK25: 1 | AL25: 2 | AM25: 2 | AN25: 1 | AO25: 2
X26: 3 | Y26: 5 | Z26: 2022 | AA26: 105318 | AB26: =IFERROR(VLOOKUP(Tabla_SERIED_12_5[[#This Row],[IdEstablecimiento]],'[1]Establecimiento 2023'!$A$1:$E$183,3,FALSE),0) -> 105318-Centro de Salud Familiar El Palqui | AC26: =IFERROR(VLOOKUP(Tabla_SERIED_12_5[[#This Row],[IdEstablecimiento]],'[1]Establecimiento 2023'!$A$1:$E$183,5,FALSE),0) -> 04303-Monte Patria | AD26: 15900050 | AE26: 2022-04-19T08:10:14 | AF26: 3 | AG26: 1 | AH26: 2 | AK26: 3
X27: 3 | Y27: 5 | Z27: 2022 | AA27: 105318 | AB27: =IFERROR(VLOOKUP(Tabla_SERIED_12_5[[#This Row],[IdEstablecimiento]],'[1]Establecimiento 2023'!$A$1:$E$183,3,FALSE),0) -> 105318-Centro de Salud Familiar El Palqui | AC27: =IFERROR(VLOOKUP(Tabla_SERIED_12_5[[#This Row],[IdEstablecimiento]],'[1]Establecimiento 2023'!$A$1:$E$183,5,FALSE),0) -> 04303-Monte Patria | AD27: 15020200 | AE27: 2022-04-19T08:10:14 | AF27: 2 | AK27: 2
X28: 3 | Y28: 5 | Z28: 2022 | AA28: 105318 | AB28: =IFERROR(VLOOKUP(Tabla_SERIED_12_5[[#This Row],[IdEstablecimiento]],'[1]Establecimiento 2023'!$A$1:$E$183,3,FALSE),0) -> 105318-Centro de Salud Familiar El Palqui | AC28: =IFERROR(VLOOKUP(Tabla_SERIED_12_5[[#This Row],[IdEstablecimiento]],'[1]Establecimiento 2023'!$A$1:$E$183,5,FALSE),0) -> 04303-Monte Patria | AD28: 15060100 | AE28: 2022-04-19T08:10:14 | AF28: 1 | AG28: 1 | AM28: 1
X29: 3 | Y29: 5 | Z29: 2022 | AA29: 105318 | AB29: =IFERROR(VLOOKUP(Tabla_SERIED_12_5[[#This Row],[IdEstablecimiento]],'[1]Establecimiento 2023'!$A$1:$E$183,3,FALSE),0) -> 105318-Centro de Salud Familiar El Palqui | AC29: =IFERROR(VLOOKUP(Tabla_SERIED_12_5[[#This Row],[IdEstablecimiento]],'[1]Establecimiento 2023'!$A$1:$E$183,5,FALSE),0) -> 04303-Monte Patria | AD29: 16090300 | AE29: 2022-04-19T08:10:14 | AF29: 298 | AG29: 298
X30: 3 | Y30: 5 | Z30: 2022 | AA30: 105318 | AB30: =IFERROR(VLOOKUP(Tabla_SERIED_12_5[[#This Row],[IdEstablecimiento]],'[1]Establecimiento 2023'!$A$1:$E$183,3,FALSE),0) -> 105318-Centro de Salud Familiar El Palqui | AC30: =IFERROR(VLOOKUP(Tabla_SERIED_12_5[[#This Row],[IdEstablecimiento]],'[1]Establecimiento 2023'!$A$1:$E$183,5,FALSE),0) -> 04303-Monte Patria | AD30: 16200210 | AE30: 2022-04-19T08:10:14 | AF30: 18 | AG30: 18
X31: 3 | Y31: 5 | Z31: 2022 | AA31: 105318 | AB31: =IFERROR(VLOOKUP(Tabla_SERIED_12_5[[#This Row],[IdEstablecimiento]],'[1]Establecimiento 2023'!$A$1:$E$183,3,FALSE),0) -> 105318-Centro de Salud Familiar El Palqui | AC31: =IFERROR(VLOOKUP(Tabla_SERIED_12_5[[#This Row],[IdEstablecimiento]],'[1]Establecimiento 2023'!$A$1:$E$183,5,FALSE),0) -> 04303-Monte Patria | AD31: 16090500 | AE31: 2022-04-19T08:10:14 | AF31: 26 | AG31: 26
X32: 2 | Y32: 5 | Z32: 2022 | AA32: 200402 | AB32: =IFERROR(VLOOKUP(Tabla_SERIED_12_5[[#This Row],[IdEstablecimiento]],'[1]Establecimiento 2023'!$A$1:$E$183,3,FALSE),0) -> 200402-Centro Comunitario de Salud Familiar Arcos de Pinamar | AC32: =IFERROR(VLOOKUP(Tabla_SERIED_12_5[[#This Row],[IdEstablecimiento]],'[1]Establecimiento 2023'!$A$1:$E$183,5,FALSE),0) -> 04101-La Serena | AD32: 15010300 | AE32: 2022-03-17T10:07:47 | AF32: 2 | AJ32: 2
X33: 3 | Y33: 5 | Z33: 2022 | AA33: 105323 | AB33: =IFERROR(VLOOKUP(Tabla_SERIED_12_5[[#This Row],[IdEstablecimiento]],'[1]Establecimiento 2023'!$A$1:$E$183,3,FALSE),0) -> 105323-Centro de Salud Familiar Dr. Sergio Aguilar Delgado | AC33: =IFERROR(VLOOKUP(Tabla_SERIED_12_5[[#This Row],[IdEstablecimiento]],'[1]Establecimiento 2023'!$A$1:$E$183,5,FALSE),0) -> 04102-Coquimbo | AD33: 15010200 | AE33: 2022-04-19T08:11:27 | AF33: 476 | AK33: 90 | AL33: 188 | AM33: 198
X34: 3 | Y34: 5 | Z34: 2022 | AA34: 105323 | AB34: =IFERROR(VLOOKUP(Tabla_SERIED_12_5[[#This Row],[IdEstablecimiento]],'[1]Establecimiento 2023'!$A$1:$E$183,3,FALSE),0) -> 105323-Centro de Salud Familiar Dr. Sergio Aguilar Delgado | AC34: =IFERROR(VLOOKUP(Tabla_SERIED_12_5[[#This Row],[IdEstablecimiento]],'[1]Establecimiento 2023'!$A$1:$E$183,5,FALSE),0) -> 04102-Coquimbo | AD34: 15080008 | AE34: 2022-04-19T08:11:27 | AF34: 164 | AN34: 91 | AP34: 46 | AQ34: 6 | AR34: 21
X35: 3 | Y35: 5 | Z35: 2022 | AA35: 105323 | AB35: =IFERROR(VLOOKUP(Tabla_SERIED_12_5[[#This Row],[IdEstablecimiento]],'[1]Establecimiento 2023'!$A$1:$E$183,3,FALSE),0) -> 105323-Centro de Salud Familiar Dr. Sergio Aguilar Delgado | AC35: =IFERROR(VLOOKUP(Tabla_SERIED_12_5[[#This Row],[IdEstablecimiento]],'[1]Establecimiento 2023'!$A$1:$E$183,5,FALSE),0) -> 04102-Coquimbo | AD35: 15900010 | AE35: 2022-04-19T08:11:27 | AF35: 157.6 | AG35: 1.6 | AH35: 34.4 | AI35: 121.6
X36: 3 | Y36: 5 | Z36: 2022 | AA36: 105323 | AB36: =IFERROR(VLOOKUP(Tabla_SERIED_12_5[[#This Row],[IdEstablecimiento]],'[1]Establecimiento 2023'!$A$1:$E$183,3,FALSE),0) -> 105323-Centro de Salud Familiar Dr. Sergio Aguilar Delgado | AC36: =IFERROR(VLOOKUP(Tabla_SERIED_12_5[[#This Row],[IdEstablecimiento]],'[1]Establecimiento 2023'!$A$1:$E$183,5,FALSE),0) -> 04102-Coquimbo | AD36: 15010300 | AE36: 2022-04-19T08:11:27 | AF36: 8 | AI36: 0 | AJ36: 6 | AK36: 2
X37: 3 | Y37: 5 | Z37: 2022 | AA37: 105323 | AB37: =IFERROR(VLOOKUP(Tabla_SERIED_12_5[[#This Row],[IdEstablecimiento]],'[1]Establecimiento 2023'!$A$1:$E$183,3,FALSE),0) -> 105323-Centro de Salud Familiar Dr. Sergio Aguilar Delgado | AC37: =IFERROR(VLOOKUP(Tabla_SERIED_12_5[[#This Row],[IdEstablecimiento]],'[1]Establecimiento 2023'!$A$1:$E$183,5,FALSE),0) -> 04102-Coquimbo | AD37: 15010400 | AE37: 2022-04-19T08:11:27 | AF37: 18 | AK37: 4 | AL37: 12 | AM37: 2
X38: 3 | Y38: 5 | Z38: 2022 | AA38: 105323 | AB38: =IFERROR(VLOOKUP(Tabla_SERIED_12_5[[#This Row],[IdEstablecimiento]],'[1]Establecimiento 2023'!$A$1:$E$183,3,FALSE),0) -> 105323-Centro de Salud Familiar Dr. Sergio Aguilar Delgado | AC38: =IFERROR(VLOOKUP(Tabla_SERIED_12_5[[#This Row],[IdEstablecimiento]],'[1]Establecimiento 2023'!$A$1:$E$183,5,FALSE),0) -> 04102-Coquimbo | AD38: 15010500 | AE38: 2022-04-19T08:11:27 | AF38: 34 | AH38: 0 | AI38: 8 | AJ38: 6 | AK38: 6 | AL38: 12 | AM38: 2
X39: 3 | Y39: 5 | Z39: 2022 | AA39: 105323 | AB39: =IFERROR(VLOOKUP(Tabla_SERIED_12_5[[#This Row],[IdEstablecimiento]],'[1]Establecimiento 2023'!$A$1:$E$183,3,FALSE),0) -> 105323-Centro de Salud Familiar Dr. Sergio Aguilar Delgado | AC39: =IFERROR(VLOOKUP(Tabla_SERIED_12_5[[#This Row],[IdEstablecimiento]],'[1]Establecimiento 2023'!$A$1:$E$183,5,FALSE),0) -> 04102-Coquimbo | AD39: 15080009 | AE39: 2022-04-19T08:11:27 | AF39: 6 | AO39: 3 | AP39: 3 | AQ39: 0
X40: 3 | Y40: 5 | Z40: 2022 | AA40: 105323 | AB40: =IFERROR(VLOOKUP(Tabla_SERIED_12_5[[#This Row],[IdEstablecimiento]],'[1]Establecimiento 2023'!$A$1:$E$183,3,FALSE),0) -> 105323-Centro de Salud Familiar Dr. Sergio Aguilar Delgado | AC40: =IFERROR(VLOOKUP(Tabla_SERIED_12_5[[#This Row],[IdEstablecimiento]],'[1]Establecimiento 2023'!$A$1:$E$183,5,FALSE),0) -> 04102-Coquimbo | AD40: 15900020 | AE40: 2022-04-19T08:11:27 | AF40: 20 | AG40: 0 | AH40: 7.2 | AI40: 12.8
X41: 10 | Y41: 5 | Z41: 2022 | AA41: 105105 | AB41: =IFERROR(VLOOKUP(Tabla_SERIED_12_5[[#This Row],[IdEstablecimiento]],'[1]Establecimiento 2023'!$A$1:$E$183,3,FALSE),0) -> 105105-Hospital San Juan de Dios (Combarbalá) | AC41: =IFERROR(VLOOKUP(Tabla_SERIED_12_5[[#This Row],[IdEstablecimiento]],'[1]Establecimiento 2023'!$A$1:$E$183,5,FALSE),0) -> 105105-Hospital Combarbalá | AD41: 15080008 | AE41: 2022-11-15T13:27:27 | AF41: 65 | AN41: 22 | AP41: 24 | AQ41: 3 | AR41: 16
X42: 10 | Y42: 5 | Z42: 2022 | AA42: 105105 | AB42: =IFERROR(VLOOKUP(Tabla_SERIED_12_5[[#This Row],[IdEstablecimiento]],'[1]Establecimiento 2023'!$A$1:$E$183,3,FALSE),0) -> 105105-Hospital San Juan de Dios (Combarbalá) | AC42: =IFERROR(VLOOKUP(Tabla_SERIED_12_5[[#This Row],[IdEstablecimiento]],'[1]Establecimiento 2023'!$A$1:$E$183,5,FALSE),0) -> 105105-Hospital Combarbalá | AD42: 15900010 | AE42: 2022-11-15T13:27:27 | AF42: 31.5 | AG42: 1.8 | AH42: 9.9 | AI42: 19.8
X43: 10 | Y43: 5 | Z43: 2022 | AA43: 105105 | AB43: =IFERROR(VLOOKUP(Tabla_SERIED_12_5[[#This Row],[IdEstablecimiento]],'[1]Establecimiento 2023'!$A$1:$E$183,3,FALSE),0) -> 105105-Hospital San Juan de Dios (Combarbalá) | AC43: =IFERROR(VLOOKUP(Tabla_SERIED_12_5[[#This Row],[IdEstablecimiento]],'[1]Establecimiento 2023'!$A$1:$E$183,5,FALSE),0) -> 105105-Hospital Combarbalá | AD43: 15010300 | AE43: 2022-11-15T13:27:27 | AF43: 2 | AJ43: 2
X44: 10 | Y44: 5 | Z44: 2022 | AA44: 105105 | AB44: =IFERROR(VLOOKUP(Tabla_SERIED_12_5[[#This Row],[IdEstablecimiento]],'[1]Establecimiento 2023'!$A$1:$E$183,3,FALSE),0) -> 105105-Hospital San Juan de Dios (Combarbalá) | AC44: =IFERROR(VLOOKUP(Tabla_SERIED_12_5[[#This Row],[IdEstablecimiento]],'[1]Establecimiento 2023'!$A$1:$E$183,5,FALSE),0) -> 105105-Hospital Combarbalá | AD44: 15010400 | AE44: 2022-11-15T13:27:27 | AF44: 12 | AL44: 10 | AM44: 2
X45: 10 | Y45: 5 | Z45: 2022 | AA45: 105105 | AB45: =IFERROR(VLOOKUP(Tabla_SERIED_12_5[[#This Row],[IdEstablecimiento]],'[1]Establecimiento 2023'!$A$1:$E$183,3,FALSE),0) -> 105105-Hospital San Juan de Dios (Combarbalá) | AC45: =IFERROR(VLOOKUP(Tabla_SERIED_12_5[[#This Row],[IdEstablecimiento]],'[1]Establecimiento 2023'!$A$1:$E$183,5,FALSE),0) -> 105105-Hospital Combarbalá | AD45: 15010500 | AE45: 2022-11-15T13:27:27 | AF45: 14 | AJ45: 2 | AL45: 10 | AM45: 2
X46: 10 | Y46: 5 | Z46: 2022 | AA46: 105105 | AB46: =IFERROR(VLOOKUP(Tabla_SERIED_12_5[[#This Row],[IdEstablecimiento]],'[1]Establecimiento 2023'!$A$1:$E$183,3,FALSE),0) -> 105105-Hospital San Juan de Dios (Combarbalá) | AC46: =IFERROR(VLOOKUP(Tabla_SERIED_12_5[[#This Row],[IdEstablecimiento]],'[1]Establecimiento 2023'!$A$1:$E$183,5,FALSE),0) -> 105105-Hospital Combarbalá | AD46: 15080009 | AE46: 2022-11-15T13:27:27 | AF46: 3 | AO46: 3
X47: 10 | Y47: 5 | Z47: 2022 | AA47: 105105 | AB47: =IFERROR(VLOOKUP(Tabla_SERIED_12_5[[#This Row],[IdEstablecimiento]],'[1]Establecimiento 2023'!$A$1:$E$183,3,FALSE),0) -> 105105-Hospital San Juan de Dios (Combarbalá) | AC47: =IFERROR(VLOOKUP(Tabla_SERIED_12_5[[#This Row],[IdEstablecimiento]],'[1]Establecimiento 2023'!$A$1:$E$183,5,FALSE),0) -> 105105-Hospital Combarbalá | AD47: 15900040 | AE47: 2022-11-15T13:27:27 | AF47: 5.2 | AH47: 4.4 | AI47: 0.8
X48: 10 | Y48: 5 | Z48: 2022 | AA48: 105105 | AB48: =IFERROR(VLOOKUP(Tabla_SERIED_12_5[[#This Row],[IdEstablecimiento]],'[1]Establecimiento 2023'!$A$1:$E$183,3,FALSE),0) -> 105105-Hospital San Juan de Dios (Combarbalá) | AC48: =IFERROR(VLOOKUP(Tabla_SERIED_12_5[[#This Row],[IdEstablecimiento]],'[1]Establecimiento 2023'!$A$1:$E$183,5,FALSE),0) -> 105105-Hospital Combarbalá | AD48: 15050100 | AE48: 2022-11-15T13:27:27 | AF48: 185 | AG48: 70 | AH48: 115 | AI48: 1 | AJ48: 4 | AK48: 9 | AL48: 14 | AM48: 18 | AN48: 47 | AO48: 39 | AP48: 22 | AR48: 12 | AS48: 3 | AT48: 16
X49: 10 | Y49: 5 | Z49: 2022 | AA49: 105105 | AB49: =IFERROR(VLOOKUP(Tabla_SERIED_12_5[[#This Row],[IdEstablecimiento]],'[1]Establecimiento 2023'!$A$1:$E$183,3,FALSE),0) -> 105105-Hospital San Juan de Dios (Combarbalá) | AC49: =IFERROR(VLOOKUP(Tabla_SERIED_12_5[[#This Row],[IdEstablecimiento]],'[1]Establecimiento 2023'!$A$1:$E$183,5,FALSE),0) -> 105105-Hospital Combarbalá | AD49: 15050200 | AE49: 2022-11-15T13:27:27 | AF49: 8 | AG49: 4 | AH49: 4 | AL49: 1 | AN49: 5 | AO49: 1 | AQ49: 1
X50: 1 | Y50: 5 | Z50: 2022 | AA50: 105702 | AB50: =IFERROR(VLOOKUP(Tabla_SERIED_12_5[[#This Row],[IdEstablecimiento]],'[1]Establecimiento 2023'!$A$1:$E$183,3,FALSE),0) -> 105702-Centro Comunitario de Salud Familiar Lambert | AC50: =IFERROR(VLOOKUP(Tabla_SERIED_12_5[[#This Row],[IdEstablecimiento]],'[1]Establecimiento 2023'!$A$1:$E$183,5,FALSE),0) -> 04101-La Serena | AD50: 15080008 | AE50: 2022-02-17T04:23:12 | AF50: 5 | AN50: 2 | AP50: 2 | AR50: 1
X51: 1 | Y51: 5 | Z51: 2022 | AA51: 105702 | AB51: =IFERROR(VLOOKUP(Tabla_SERIED_12_5[[#This Row],[IdEstablecimiento]],'[1]Establecimiento 2023'!$A$1:$E$183,3,FALSE),0) -> 105702-Centro Comunitario de Salud Familiar Lambert | AC51: =IFERROR(VLOOKUP(Tabla_SERIED_12_5[[#This Row],[IdEstablecimiento]],'[1]Establecimiento 2023'!$A$1:$E$183,5,FALSE),0) -> 04101-La Serena | AD51: 15900010 | AE51: 2022-02-17T04:23:12 | AF51: 30.4 | AG51: 3.2 | AH51: 7.2 | AI51: 20
X52: 1 | Y52: 5 | Z52: 2022 | AA52: 105702 | AB52: =IFERROR(VLOOKUP(Tabla_SERIED_12_5[[#This Row],[IdEstablecimiento]],'[1]Establecimiento 2023'!$A$1:$E$183,3,FALSE),0) -> 105702-Centro Comunitario de Salud Familiar Lambert | AC52: =IFERROR(VLOOKUP(Tabla_SERIED_12_5[[#This Row],[IdEstablecimiento]],'[1]Establecimiento 2023'!$A$1:$E$183,5,FALSE),0) -> 04101-La Serena | AD52: 15010300 | AE52: 2022-02-17T04:23:12 | AF52: 3 | AI52: 3
X53: 1 | Y53: 5 | Z53: 2022 | AA53: 105702 | AB53: =IFERROR(VLOOKUP(Tabla_SERIED_12_5[[#This Row],[IdEstablecimiento]],'[1]Establecimiento 2023'!$A$1:$E$183,3,FALSE),0) -> 105702-Centro Comunitario de Salud Familiar Lambert | AC53: =IFERROR(VLOOKUP(Tabla_SERIED_12_5[[#This Row],[IdEstablecimiento]],'[1]Establecimiento 2023'!$A$1:$E$183,5,FALSE),0) -> 04101-La Serena | AD53: 15010500 | AE53: 2022-02-17T04:23:12 | AF53: 6 | AI53: 6
X54: 1 | Y54: 5 | Z54: 2022 | AA54: 105702 | AB54: =IFERROR(VLOOKUP(Tabla_SERIED_12_5[[#This Row],[IdEstablecimiento]],'[1]Establecimiento 2023'!$A$1:$E$183,3,FALSE),0) -> 105702-Centro Comunitario de Salud Familiar Lambert | AC54: =IFERROR(VLOOKUP(Tabla_SERIED_12_5[[#This Row],[IdEstablecimiento]],'[1]Establecimiento 2023'!$A$1:$E$183,5,FALSE),0) -> 04101-La Serena | AD54: 15900020 | AE54: 2022-02-17T04:23:12 | AF54: 9.6 | AI54: 9.6
X55: 1 | Y55: 5 | Z55: 2022 | AA55: 105702 | AB55: =IFERROR(VLOOKUP(Tabla_SERIED_12_5[[#This Row],[IdEstablecimiento]],'[1]Establecimiento 2023'!$A$1:$E$183,3,FALSE),0) -> 105702-Centro Comunitario de Salud Familiar Lambert | AC55: =IFERROR(VLOOKUP(Tabla_SERIED_12_5[[#This Row],[IdEstablecimiento]],'[1]Establecimiento 2023'!$A$1:$E$183,5,FALSE),0) -> 04101-La Serena | AD55: 15050100 | AE55: 2022-02-17T04:23:12 | AF55: 64 | AG55: 37 | AH55: 27 | AI55: 2 | AJ55: 12 | AK55: 8 | AL55: 9 | AM55: 18 | AN55: 11 | AP55: 2 | AR55: 1 | AT55: 1
X56: 1 | Y56: 5 | Z56: 2022 | AA56: 105702 | AB56: =IFERROR(VLOOKUP(Tabla_SERIED_12_5[[#This Row],[IdEstablecimiento]],'[1]Establecimiento 2023'!$A$1:$E$183,3,FALSE),0) -> 105702-Centro Comunitario de Salud Familiar Lambert | AC56: =IFERROR(VLOOKUP(Tabla_SERIED_12_5[[#This Row],[IdEstablecimiento]],'[1]Establecimiento 2023'!$A$1:$E$183,5,FALSE),0) -> 04101-La Serena | AD56: 15050200 | AE56: 2022-02-17T04:23:12 | AF56: 3 | AG56: 1 | AH56: 2 | AI56: 3
X57: 2 | Y57: 5 | Z57: 2022 | AA57: 105300 | AB57: =IFERROR(VLOOKUP(Tabla_SERIED_12_5[[#This Row],[IdEstablecimiento]],'[1]Establecimiento 2023'!$A$1:$E$183,3,FALSE),0) -> 105300-Centro de Salud Familiar Cardenal Caro | AC57: =IFERROR(VLOOKUP(Tabla_SERIED_12_5[[#This Row],[IdEstablecimiento]],'[1]Establecimiento 2023'!$A$1:$E$183,5,FALSE),0) -> 04101-La Serena | AD57: 15010200 | AE57: 2022-03-17T09:26:33 | AF57: 311 | AK57: 62 | AL57: 142 | AM57: 107
X58: 3 | Y58: 5 | Z58: 2022 | AA58: 105722 | AB58: =IFERROR(VLOOKUP(Tabla_SERIED_12_5[[#This Row],[IdEstablecimiento]],'[1]Establecimiento 2023'!$A$1:$E$183,3,FALSE),0) -> 105722-Centro Comunitario de Salud Familiar San José de la Dehesa | AC58: =IFERROR(VLOOKUP(Tabla_SERIED_12_5[[#This Row],[IdEstablecimiento]],'[1]Establecimiento 2023'!$A$1:$E$183,5,FALSE),0) -> 04301-Ovalle | AD58: 15010200 | AE58: 2022-04-19T10:12:59 | AF58: 174 | AK58: 42 | AL58: 68 | AM58: 64
X59: 3 | Y59: 5 | Z59: 2022 | AA59: 105722 | AB59: =IFERROR(VLOOKUP(Tabla_SERIED_12_5[[#This Row],[IdEstablecimiento]],'[1]Establecimiento 2023'!$A$1:$E$183,3,FALSE),0) -> 105722-Centro Comunitario de Salud Familiar San José de la Dehesa | AC59: =IFERROR(VLOOKUP(Tabla_SERIED_12_5[[#This Row],[IdEstablecimiento]],'[1]Establecimiento 2023'!$A$1:$E$183,5,FALSE),0) -> 04301-Ovalle | AD59: 15080008 | AE59: 2022-04-19T10:12:59 | AF59: 42 | AN59: 27 | AP59: 8 | AQ59: 2 | AR59: 5
X60: 3 | Y60: 5 | Z60: 2022 | AA60: 105722 | AB60: =IFERROR(VLOOKUP(Tabla_SERIED_12_5[[#This Row],[IdEstablecimiento]],'[1]Establecimiento 2023'!$A$1:$E$183,3,FALSE),0) -> 105722-Centro Comunitario de Salud Familiar San José de la Dehesa | AC60: =IFERROR(VLOOKUP(Tabla_SERIED_12_5[[#This Row],[IdEstablecimiento]],'[1]Establecimiento 2023'!$A$1:$E$183,5,FALSE),0) -> 04301-Ovalle | AD60: 15900010 | AE60: 2022-04-19T10:12:59 | AF60: 10.4 | AH60: 4 | AI60: 6.4
X61: 3 | Y61: 5 | Z61: 2022 | AA61: 105722 | AB61: =IFERROR(VLOOKUP(Tabla_SERIED_12_5[[#This Row],[IdEstablecimiento]],'[1]Establecimiento 2023'!$A$1:$E$183,3,FALSE),0) -> 105722-Centro Comunitario de Salud Familiar San José de la Dehesa | AC61: =IFERROR(VLOOKUP(Tabla_SERIED_12_5[[#This Row],[IdEstablecimiento]],'[1]Establecimiento 2023'!$A$1:$E$183,5,FALSE),0) -> 04301-Ovalle | AD61: 15010400 | AE61: 2022-04-19T10:12:59 | AF61: 8 | AK61: 4 | AL61: 2 | AM61: 2
X62: 3 | Y62: 5 | Z62: 2022 | AA62: 105722 | AB62: =IFERROR(VLOOKUP(Tabla_SERIED_12_5[[#This Row],[IdEstablecimiento]],'[1]Establecimiento 2023'!$A$1:$E$183,3,FALSE),0) -> 105722-Centro Comunitario de Salud Familiar San José de la Dehesa | AC62: =IFERROR(VLOOKUP(Tabla_SERIED_12_5[[#This Row],[IdEstablecimiento]],'[1]Establecimiento 2023'!$A$1:$E$183,5,FALSE),0) -> 04301-Ovalle | AD62: 15010500 | AE62: 2022-04-19T10:12:59 | AF62: 10 | AI62: 2 | AK62: 4 | AL62: 2 | AM62: 2
X63: 3 | Y63: 5 | Z63: 2022 | AA63: 105722 | AB63: =IFERROR(VLOOKUP(Tabla_SERIED_12_5[[#This Row],[IdEstablecimiento]],'[1]Establecimiento 2023'!$A$1:$E$183,3,FALSE),0) -> 105722-Centro Comunitario de Salud Familiar San José de la Dehesa | AC63: =IFERROR(VLOOKUP(Tabla_SERIED_12_5[[#This Row],[IdEstablecimiento]],'[1]Establecimiento 2023'!$A$1:$E$183,5,FALSE),0) -> 04301-Ovalle | AD63: 15900020 | AE63: 2022-04-19T10:12:59 | AF63: 3.2 | AG63: 0 | AH63: 1.6 | AI63: 1.6
X64: 3 | Y64: 5 | Z64: 2022 | AA64: 105722 | AB64: =IFERROR(VLOOKUP(Tabla_SERIED_12_5[[#This Row],[IdEstablecimiento]],'[1]Establecimiento 2023'!$A$1:$E$183,3,FALSE),0) -> 105722-Centro Comunitario de Salud Familiar San José de la Dehesa | AC64: =IFERROR(VLOOKUP(Tabla_SERIED_12_5[[#This Row],[IdEstablecimiento]],'[1]Establecimiento 2023'!$A$1:$E$183,5,FALSE),0) -> 04301-Ovalle | AD64: 15900040 | AE64: 2022-04-19T10:12:59 | AF64: 4.4 | AH64: 4.4
X65: 5 | Y65: 5 | Z65: 2022 | AA65: 105475 | AB65: =IFERROR(VLOOKUP(Tabla_SERIED_12_5[[#This Row],[IdEstablecimiento]],'[1]Establecimiento 2023'!$A$1:$E$183,3,FALSE),0) -> 105475-Posta de Salud Rural Horcón (Paiguano) | AC65: =IFERROR(VLOOKUP(Tabla_SERIED_12_5[[#This Row],[IdEstablecimiento]],'[1]Establecimiento 2023'!$A$1:$E$183,5,FALSE),0) -> 04105-Paiguano | AD65: 15010400 | AE65: 2022-06-20T17:23:03 | AF65: 2 | AM65: 2
X66: 5 | Y66: 5 | Z66: 2022 | AA66: 105475 | AB66: =IFERROR(VLOOKUP(Tabla_SERIED_12_5[[#This Row],[IdEstablecimiento]],'[1]Establecimiento 2023'!$A$1:$E$183,3,FALSE),0) -> 105475-Posta de Salud Rural Horcón (Paiguano) | AC66: =IFERROR(VLOOKUP(Tabla_SERIED_12_5[[#This Row],[IdEstablecimiento]],'[1]Establecimiento 2023'!$A$1:$E$183,5,FALSE),0) -> 04105-Paiguano | AD66: 15010500 | AE66: 2022-06-20T17:23:03 | AF66: 4 | AI66: 4
X67: 5 | Y67: 5 | Z67: 2022 | AA67: 105475 | AB67: =IFERROR(VLOOKUP(Tabla_SERIED_12_5[[#This Row],[IdEstablecimiento]],'[1]Establecimiento 2023'!$A$1:$E$183,3,FALSE),0) -> 105475-Posta de Salud Rural Horcón (Paiguano) | AC67: =IFERROR(VLOOKUP(Tabla_SERIED_12_5[[#This Row],[IdEstablecimiento]],'[1]Establecimiento 2023'!$A$1:$E$183,5,FALSE),0) -> 04105-Paiguano | AD67: 15900020 | AE67: 2022-06-20T17:23:03 | AF67: 3.2 | AI67: 3.2
X68: 5 | Y68: 5 | Z68: 2022 | AA68: 105475 | AB68: =IFERROR(VLOOKUP(Tabla_SERIED_12_5[[#This Row],[IdEstablecimiento]],'[1]Establecimiento 2023'!$A$1:$E$183,3,FALSE),0) -> 105475-Posta de Salud Rural Horcón (Paiguano) | AC68: =IFERROR(VLOOKUP(Tabla_SERIED_12_5[[#This Row],[IdEstablecimiento]],'[1]Establecimiento 2023'!$A$1:$E$183,5,FALSE),0) -> 04105-Paiguano | AD68: 15050100 | AE68: 2022-06-20T17:23:03 | AF68: 9 | AG68: 2 | AH68: 7 | AL68: 1 | AN68: 5 | AP68: 2 | AR68: 1
X69: 5 | Y69: 5 | Z69: 2022 | AA69: 105475 | AB69: =IFERROR(VLOOKUP(Tabla_SERIED_12_5[[#This Row],[IdEstablecimiento]],'[1]Establecimiento 2023'!$A$1:$E$183,3,FALSE),0) -> 105475-Posta de Salud Rural Horcón (Paiguano) | AC69: =IFERROR(VLOOKUP(Tabla_SERIED_12_5[[#This Row],[IdEstablecimiento]],'[1]Establecimiento 2023'!$A$1:$E$183,5,FALSE),0) -> 04105-Paiguano | AD69: 15050200 | AE69: 2022-06-20T17:23:03 | AF69: 2 | AH69: 2 | AK69: 1 | AO69: 1
X70: 5 | Y70: 5 | Z70: 2022 | AA70: 105475 | AB70: =IFERROR(VLOOKUP(Tabla_SERIED_12_5[[#This Row],[IdEstablecimiento]],'[1]Establecimiento 2023'!$A$1:$E$183,3,FALSE),0) -> 105475-Posta de Salud Rural Horcón (Paiguano) | AC70: =IFERROR(VLOOKUP(Tabla_SERIED_12_5[[#This Row],[IdEstablecimiento]],'[1]Establecimiento 2023'!$A$1:$E$183,5,FALSE),0) -> 04105-Paiguano | AD70: 16090300 | AE70: 2022-06-20T17:23:03 | AF70: 47 | AG70: 47
X71: 5 | Y71: 5 | Z71: 2022 | AA71: 105475 | AB71: =IFERROR(VLOOKUP(Tabla_SERIED_12_5[[#This Row],[IdEstablecimiento]],'[1]Establecimiento 2023'!$A$1:$E$183,3,FALSE),0) -> 105475-Posta de Salud Rural Horcón (Paiguano) | AC71: =IFERROR(VLOOKUP(Tabla_SERIED_12_5[[#This Row],[IdEstablecimiento]],'[1]Establecimiento 2023'!$A$1:$E$183,5,FALSE),0) -> 04105-Paiguano | AD71: 16090500 | AE71: 2022-06-20T17:23:03 | AF71: 1 | AG71: 1
X72: 5 | Y72: 5 | Z72: 2022 | AA72: 105475 | AB72: =IFERROR(VLOOKUP(Tabla_SERIED_12_5[[#This Row],[IdEstablecimiento]],'[1]Establecimiento 2023'!$A$1:$E$183,3,FALSE),0) -> 105475-Posta de Salud Rural Horcón (Paiguano) | AC72: =IFERROR(VLOOKUP(Tabla_SERIED_12_5[[#This Row],[IdEstablecimiento]],'[1]Establecimiento 2023'!$A$1:$E$183,5,FALSE),0) -> 04105-Paiguano | AD72: 16100300 | AE72: 2022-06-20T17:23:03 | AF72: 47 | AG72: 25 | AH72: 22
X73: 5 | Y73: 5 | Z73: 2022 | AA73: 105475 | AB73: =IFERROR(VLOOKUP(Tabla_SERIED_12_5[[#This Row],[IdEstablecimiento]],'[1]Establecimiento 2023'!$A$1:$E$183,3,FALSE),0) -> 105475-Posta de Salud Rural Horcón (Paiguano) | AC73: =IFERROR(VLOOKUP(Tabla_SERIED_12_5[[#This Row],[IdEstablecimiento]],'[1]Establecimiento 2023'!$A$1:$E$183,5,FALSE),0) -> 04105-Paiguano | AD73: 16100600 | AE73: 2022-06-20T17:23:03 | AF73: 1 | AH73: 1
X74: 5 | Y74: 5 | Z74: 2022 | AA74: 105476 | AB74: =IFERROR(VLOOKUP(Tabla_SERIED_12_5[[#This Row],[IdEstablecimiento]],'[1]Establecimiento 2023'!$A$1:$E$183,3,FALSE),0) -> 105476-Posta de Salud Rural Monte Grande | AC74: =IFERROR(VLOOKUP(Tabla_SERIED_12_5[[#This Row],[IdEstablecimiento]],'[1]Establecimiento 2023'!$A$1:$E$183,5,FALSE),0) -> 04105-Paiguano | AD74: 15010200 | AE74: 2022-06-20T17:23:13 | AF74: 8 | AL74: 4 | AM74: 4
X75: 5 | Y75: 5 | Z75: 2022 | AA75: 105476 | AB75: =IFERROR(VLOOKUP(Tabla_SERIED_12_5[[#This Row],[IdEstablecimiento]],'[1]Establecimiento 2023'!$A$1:$E$183,3,FALSE),0) -> 105476-Posta de Salud Rural Monte Grande | AC75: =IFERROR(VLOOKUP(Tabla_SERIED_12_5[[#This Row],[IdEstablecimiento]],'[1]Establecimiento 2023'!$A$1:$E$183,5,FALSE),0) -> 04105-Paiguano | AD75: 15050100 | AE75: 2022-06-20T17:23:13 | AF75: 4 | AG75: 2 | AH75: 2 | AN75: 2 | AO75: 2
X76: 5 | Y76: 5 | Z76: 2022 | AA76: 105476 | AB76: =IFERROR(VLOOKUP(Tabla_SERIED_12_5[[#This Row],[IdEstablecimiento]],'[1]Establecimiento 2023'!$A$1:$E$183,3,FALSE),0) -> 105476-Posta de Salud Rural Monte Grande | AC76: =IFERROR(VLOOKUP(Tabla_SERIED_12_5[[#This Row],[IdEstablecimiento]],'[1]Establecimiento 2023'!$A$1:$E$183,5,FALSE),0) -> 04105-Paiguano | AD76: 16090300 | AE76: 2022-06-20T17:23:13 | AF76: 9 | AG76: 9
X77: 5 | Y77: 5 | Z77: 2022 | AA77: 105476 | AB77: =IFERROR(VLOOKUP(Tabla_SERIED_12_5[[#This Row],[IdEstablecimiento]],'[1]Establecimiento 2023'!$A$1:$E$183,3,FALSE),0) -> 105476-Posta de Salud Rural Monte Grande | AC77: =IFERROR(VLOOKUP(Tabla_SERIED_12_5[[#This Row],[IdEstablecimiento]],'[1]Establecimiento 2023'!$A$1:$E$183,5,FALSE),0) -> 04105-Paiguano | AD77: 16100300 | AE77: 2022-06-20T17:23:13 | AF77: 9 | AG77: 4 | AH77: 5 | AJ77: 6
X78: 5 | Y78: 5 | Z78: 2022 | AA78: 105477 | AB78: =IFERROR(VLOOKUP(Tabla_SERIED_12_5[[#This Row],[IdEstablecimiento]],'[1]Establecimiento 2023'!$A$1:$E$183,3,FALSE),0) -> 105477-Posta de Salud Rural Pisco Elqui | AC78: =IFERROR(VLOOKUP(Tabla_SERIED_12_5[[#This Row],[IdEstablecimiento]],'[1]Establecimiento 2023'!$A$1:$E$183,5,FALSE),0) -> 04105-Paiguano | AD78: 15010200 | AE78: 2022-06-20T17:23:24 | AF78: 6 | AK78: 4 | AL78: 2
X79: 5 | Y79: 5 | Z79: 2022 | AA79: 105477 | AB79: =IFERROR(VLOOKUP(Tabla_SERIED_12_5[[#This Row],[IdEstablecimiento]],'[1]Establecimiento 2023'!$A$1:$E$183,3,FALSE),0) -> 105477-Posta de Salud Rural Pisco Elqui | AC79: =IFERROR(VLOOKUP(Tabla_SERIED_12_5[[#This Row],[IdEstablecimiento]],'[1]Establecimiento 2023'!$A$1:$E$183,5,FALSE),0) -> 04105-Paiguano | AD79: 15080008 | AE79: 2022-06-20T17:23:24 | AF79: 2 | AQ79: 1 | AR79: 1
X80: 5 | Y80: 5 | Z80: 2022 | AA80: 105477 | AB80: =IFERROR(VLOOKUP(Tabla_SERIED_12_5[[#This Row],[IdEstablecimiento]],'[1]Establecimiento 2023'!$A$1:$E$183,3,FALSE),0) -> 105477-Posta de Salud Rural Pisco Elqui | AC80: =IFERROR(VLOOKUP(Tabla_SERIED_12_5[[#This Row],[IdEstablecimiento]],'[1]Establecimiento 2023'!$A$1:$E$183,5,FALSE),0) -> 04105-Paiguano | AD80: 15900010 | AE80: 2022-06-20T17:23:24 | AF80: 1.6 | AH80: 1.6
X81: 5 | Y81: 5 | Z81: 2022 | AA81: 105477 | AB81: =IFERROR(VLOOKUP(Tabla_SERIED_12_5[[#This Row],[IdEstablecimiento]],'[1]Establecimiento 2023'!$A$1:$E$183,3,FALSE),0) -> 105477-Posta de Salud Rural Pisco Elqui | AC81: =IFERROR(VLOOKUP(Tabla_SERIED_12_5[[#This Row],[IdEstablecimiento]],'[1]Establecimiento 2023'!$A$1:$E$183,5,FALSE),0) -> 04105-Paiguano | AD81: 15010300 | AE81: 2022-06-20T17:23:24 | AF81: 4 | AJ81: 2 | AK81: 2
X82: 5 | Y82: 5 | Z82: 2022 | AA82: 105477 | AB82: =IFERROR(VLOOKUP(Tabla_SERIED_12_5[[#This Row],[IdEstablecimiento]],'[1]Establecimiento 2023'!$A$1:$E$183,3,FALSE),0) -> 105477-Posta de Salud Rural Pisco Elqui | AC82: =IFERROR(VLOOKUP(Tabla_SERIED_12_5[[#This Row],[IdEstablecimiento]],'[1]Establecimiento 2023'!$A$1:$E$183,5,FALSE),0) -> 04105-Paiguano | AD82: 15010500 | AE82: 2022-06-20T17:23:24 | AF82: 4 | AJ82: 2 | AK82: 2
X83: 5 | Y83: 5 | Z83: 2022 | AA83: 105477 | AB83: =IFERROR(VLOOKUP(Tabla_SERIED_12_5[[#This Row],[IdEstablecimiento]],'[1]Establecimiento 2023'!$A$1:$E$183,3,FALSE),0) -> 105477-Posta de Salud Rural Pisco Elqui | AC83: =IFERROR(VLOOKUP(Tabla_SERIED_12_5[[#This Row],[IdEstablecimiento]],'[1]Establecimiento 2023'!$A$1:$E$183,5,FALSE),0) -> 04105-Paiguano | AD83: 15050100 | AE83: 2022-06-20T17:23:24 | AF83: 6 | AG83: 3 | AH83: 3 | AJ83: 1 | AM83: 2 | AN83: 1 | AS83: 1 | AT83: 1
X84: 5 | Y84: 5 | Z84: 2022 | AA84: 105477 | AB84: =IFERROR(VLOOKUP(Tabla_SERIED_12_5[[#This Row],[IdEstablecimiento]],'[1]Establecimiento 2023'!$A$1:$E$183,3,FALSE),0) -> 105477-Posta de Salud Rural Pisco Elqui | AC84: =IFERROR(VLOOKUP(Tabla_SERIED_12_5[[#This Row],[IdEstablecimiento]],'[1]Establecimiento 2023'!$A$1:$E$183,5,FALSE),0) -> 04105-Paiguano | AD84: 15050200 | AE84: 2022-06-20T17:23:24 | AF84: 2 | AG84: 1 | AH84: 1 | AL84: 1 | AM84: 1
X85: 5 | Y85: 5 | Z85: 2022 | AA85: 105477 | AB85: =IFERROR(VLOOKUP(Tabla_SERIED_12_5[[#This Row],[IdEstablecimiento]],'[1]Establecimiento 2023'!$A$1:$E$183,3,FALSE),0) -> 105477-Posta de Salud Rural Pisco Elqui | AC85: =IFERROR(VLOOKUP(Tabla_SERIED_12_5[[#This Row],[IdEstablecimiento]],'[1]Establecimiento 2023'!$A$1:$E$183,5,FALSE),0) -> 04105-Paiguano | AD85: 16090300 | AE85: 2022-06-20T17:23:24 | AF85: 10 | AG85: 44
X86: 5 | Y86: 5 | Z86: 2022 | AA86: 105477 | AB86: =IFERROR(VLOOKUP(Tabla_SERIED_12_5[[#This Row],[IdEstablecimiento]],'[1]Establecimiento 2023'!$A$1:$E$183,3,FALSE),0) -> 105477-Posta de Salud Rural Pisco Elqui | AC86: =IFERROR(VLOOKUP(Tabla_SERIED_12_5[[#This Row],[IdEstablecimiento]],'[1]Establecimiento 2023'!$A$1:$E$183,5,FALSE),0) -> 04105-Paiguano | AD86: 16100300 | AE86: 2022-06-20T17:23:24 | AF86: 44 | AG86: 15 | AH86: 29 | AI86: 0 | AJ86: 35
X87: 5 | Y87: 5 | Z87: 2022 | AA87: 105478 | AB87: =IFERROR(VLOOKUP(Tabla_SERIED_12_5[[#This Row],[IdEstablecimiento]],'[1]Establecimiento 2023'!$A$1:$E$183,3,FALSE),0) -> 105478-Posta de Salud Rural Caimanes | AC87: =IFERROR(VLOOKUP(Tabla_SERIED_12_5[[#This Row],[IdEstablecimiento]],'[1]Establecimiento 2023'!$A$1:$E$183,5,FALSE),0) -> 04203-Los Vilos | AD87: 15010100 | AE87: 2022-06-20T17:23:35 | AF87: 2 | AJ87: 2
X88: 5 | Y88: 5 | Z88: 2022 | AA88: 105478 | AB88: =IFERROR(VLOOKUP(Tabla_SERIED_12_5[[#This Row],[IdEstablecimiento]],'[1]Establecimiento 2023'!$A$1:$E$183,3,FALSE),0) -> 105478-Posta de Salud Rural Caimanes | AC88: =IFERROR(VLOOKUP(Tabla_SERIED_12_5[[#This Row],[IdEstablecimiento]],'[1]Establecimiento 2023'!$A$1:$E$183,5,FALSE),0) -> 04203-Los Vilos | AD88: 15010200 | AE88: 2022-06-20T17:23:35 | AF88: 40 | AK88: 8 | AL88: 20 | AM88: 12
X89: 5 | Y89: 5 | Z89: 2022 | AA89: 105478 | AB89: =IFERROR(VLOOKUP(Tabla_SERIED_12_5[[#This Row],[IdEstablecimiento]],'[1]Establecimiento 2023'!$A$1:$E$183,3,FALSE),0) -> 105478-Posta de Salud Rural Caimanes | AC89: =IFERROR(VLOOKUP(Tabla_SERIED_12_5[[#This Row],[IdEstablecimiento]],'[1]Establecimiento 2023'!$A$1:$E$183,5,FALSE),0) -> 04203-Los Vilos | AD89: 15080008 | AE89: 2022-06-20T17:23:35 | AF89: 5 | AN89: 5
X90: 5 | Y90: 5 | Z90: 2022 | AA90: 105478 | AB90: =IFERROR(VLOOKUP(Tabla_SERIED_12_5[[#This Row],[IdEstablecimiento]],'[1]Establecimiento 2023'!$A$1:$E$183,3,FALSE),0) -> 105478-Posta de Salud Rural Caimanes | AC90: =IFERROR(VLOOKUP(Tabla_SERIED_12_5[[#This Row],[IdEstablecimiento]],'[1]Establecimiento 2023'!$A$1:$E$183,5,FALSE),0) -> 04203-Los Vilos | AD90: 15900010 | AE90: 2022-06-20T17:23:35 | AF90: 3.2 | AI90: 3.2
X91: 5 | Y91: 5 | Z91: 2022 | AA91: 105478 | AB91: =IFERROR(VLOOKUP(Tabla_SERIED_12_5[[#This Row],[IdEstablecimiento]],'[1]Establecimiento 2023'!$A$1:$E$183,3,FALSE),0) -> 105478-Posta de Salud Rural Caimanes | AC91: =IFERROR(VLOOKUP(Tabla_SERIED_12_5[[#This Row],[IdEstablecimiento]],'[1]Establecimiento 2023'!$A$1:$E$183,5,FALSE),0) -> 04203-Los Vilos | AD91: 15080009 | AE91: 2022-06-20T17:23:35 | AF91: 3 | AO91: 3
X92: 5 | Y92: 5 | Z92: 2022 | AA92: 105478 | AB92: =IFERROR(VLOOKUP(Tabla_SERIED_12_5[[#This Row],[IdEstablecimiento]],'[1]Establecimiento 2023'!$A$1:$E$183,3,FALSE),0) -> 105478-Posta de Salud Rural Caimanes | AC92: =IFERROR(VLOOKUP(Tabla_SERIED_12_5[[#This Row],[IdEstablecimiento]],'[1]Establecimiento 2023'!$A$1:$E$183,5,FALSE),0) -> 04203-Los Vilos | AD92: 15900030 | AE92: 2022-06-20T17:23:35 | AF92: 4.8 | AJ92: 4.8
X93: 5 | Y93: 5 | Z93: 2022 | AA93: 105478 | AB93: =IFERROR(VLOOKUP(Tabla_SERIED_12_5[[#This Row],[IdEstablecimiento]],'[1]Establecimiento 2023'!$A$1:$E$183,3,FALSE),0) -> 105478-Posta de Salud Rural Caimanes | AC93: =IFERROR(VLOOKUP(Tabla_SERIED_12_5[[#This Row],[IdEstablecimiento]],'[1]Establecimiento 2023'!$A$1:$E$183,5,FALSE),0) -> 04203-Los Vilos | AD93: 15050100 | AE93: 2022-06-20T17:23:35 | AF93: 27 | AG93: 9 | AH93: 18 | AK93: 1 | AL93: 1 | AM93: 4 | AN93: 10 | AO93: 6 | AP93: 5
X94: 5 | Y94: 5 | Z94: 2022 | AA94: 105478 | AB94: =IFERROR(VLOOKUP(Tabla_SERIED_12_5[[#This Row],[IdEstablecimiento]],'[1]Establecimiento 2023'!$A$1:$E$183,3,FALSE),0) -> 105478-Posta de Salud Rural Caimanes | AC94: =IFERROR(VLOOKUP(Tabla_SERIED_12_5[[#This Row],[IdEstablecimiento]],'[1]Establecimiento 2023'!$A$1:$E$183,5,FALSE),0) -> 04203-Los Vilos | AD94: 15050200 | AE94: 2022-06-20T17:23:35 | AF94: 1 | AH94: 1 | AQ94: 1
X95: 5 | Y95: 5 | Z95: 2022 | AA95: 105478 | AB95: =IFERROR(VLOOKUP(Tabla_SERIED_12_5[[#This Row],[IdEstablecimiento]],'[1]Establecimiento 2023'!$A$1:$E$183,3,FALSE),0) -> 105478-Posta de Salud Rural Caimanes | AC95: =IFERROR(VLOOKUP(Tabla_SERIED_12_5[[#This Row],[IdEstablecimiento]],'[1]Establecimiento 2023'!$A$1:$E$183,5,FALSE),0) -> 04203-Los Vilos | AD95: 15900050 | AE95: 2022-06-20T17:23:35 | AF95: 1 | AH95: 1 | AL95: 1
X96: 8 | Y96: 5 | Z96: 2022 | AA96: 105310 | AB96: =IFERROR(VLOOKUP(Tabla_SERIED_12_5[[#This Row],[IdEstablecimiento]],'[1]Establecimiento 2023'!$A$1:$E$183,3,FALSE),0) -> 105310-Centro de Salud Familiar Pichasca | AC96: =IFERROR(VLOOKUP(Tabla_SERIED_12_5[[#This Row],[IdEstablecimiento]],'[1]Establecimiento 2023'!$A$1:$E$183,5,FALSE),0) -> 04305-Río Hurtado | AD96: 15050100 | AE96: 2022-09-21T07:17:14 | AF96: 32 | AG96: 18 | AH96: 14 | AJ96: 1 | AK96: 1 | AM96: 5 | AN96: 13 | AO96: 3 | AP96: 5 | AR96: 1 | AT96: 3
X97: 8 | Y97: 5 | Z97: 2022 | AA97: 105310 | AB97: =IFERROR(VLOOKUP(Tabla_SERIED_12_5[[#This Row],[IdEstablecimiento]],'[1]Establecimiento 2023'!$A$1:$E$183,3,FALSE),0) -> 105310-Centro de Salud Familiar Pichasca | AC97: =IFERROR(VLOOKUP(Tabla_SERIED_12_5[[#This Row],[IdEstablecimiento]],'[1]Establecimiento 2023'!$A$1:$E$183,5,FALSE),0) -> 04305-Río Hurtado | AD97: 15050200 | AE97: 2022-09-21T07:17:14 | AF97: 4 | AG97: 1 | AH97: 3 | AL97: 1 | AN97: 2 | AO97: 1
X98: 4 | Y98: 5 | Z98: 2022 | AA98: 105499 | AB98: =IFERROR(VLOOKUP(Tabla_SERIED_12_5[[#This Row],[IdEstablecimiento]],'[1]Establecimiento 2023'!$A$1:$E$183,3,FALSE),0) -> 105499-Posta de Salud Rural Lambert | AC98: =IFERROR(VLOOKUP(Tabla_SERIED_12_5[[#This Row],[IdEstablecimiento]],'[1]Establecimiento 2023'!$A$1:$E$183,5,FALSE),0) -> 04101-La Serena | AD98: 16090300 | AE98: 2022-05-18T15:18:46 | AF98: 10 | AG98: 10
X99: 3 | Y99: 5 | Z99: 2022 | AA99: 105487 | AB99: =IFERROR(VLOOKUP(Tabla_SERIED_12_5[[#This Row],[IdEstablecimiento]],'[1]Establecimiento 2023'!$A$1:$E$183,3,FALSE),0) -> 105487-Posta de Salud Rural Cañas Uno | AC99: =IFERROR(VLOOKUP(Tabla_SERIED_12_5[[#This Row],[IdEstablecimiento]],'[1]Establecimiento 2023'!$A$1:$E$183,5,FALSE),0) -> 04201-Illapel | AD99: 15010200 | AE99: 2022-04-19T10:06:43 | AF99: 62 | AK99: 12 | AL99: 22 | AM99: 28
X100: 3 | Y100: 5 | Z100: 2022 | AA100: 105487 | AB100: =IFERROR(VLOOKUP(Tabla_SERIED_12_5[[#This Row],[IdEstablecimiento]],'[1]Establecimiento 2023'!$A$1:$E$183,3,FALSE),0) -> 105487-Posta de Salud Rural Cañas Uno | AC100: =IFERROR(VLOOKUP(Tabla_SERIED_12_5[[#This Row],[IdEstablecimiento]],'[1]Establecimiento 2023'!$A$1:$E$183,5,FALSE),0) -> 04201-Illapel | AD100: 15080008 | AE100: 2022-04-19T10:06:43 | AF100: 21 | AN100: 9 | AP100: 8 | AR100: 4
X101: 3 | Y101: 5 | Z101: 2022 | AA101: 105487 | AB101: =IFERROR(VLOOKUP(Tabla_SERIED_12_5[[#This Row],[IdEstablecimiento]],'[1]Establecimiento 2023'!$A$1:$E$183,3,FALSE),0) -> 105487-Posta de Salud Rural Cañas Uno | AC101: =IFERROR(VLOOKUP(Tabla_SERIED_12_5[[#This Row],[IdEstablecimiento]],'[1]Establecimiento 2023'!$A$1:$E$183,5,FALSE),0) -> 04201-Illapel | AD101: 15900010 | AE101: 2022-04-19T10:06:43 | AF101: 6.4 | AG101: 4 | AI101: 2.4
X102: 3 | Y102: 5 | Z102: 2022 | AA102: 105487 | AB102: =IFERROR(VLOOKUP(Tabla_SERIED_12_5[[#This Row],[IdEstablecimiento]],'[1]Establecimiento 2023'!$A$1:$E$183,3,FALSE),0) -> 105487-Posta de Salud Rural Cañas Uno | AC102: =IFERROR(VLOOKUP(Tabla_SERIED_12_5[[#This Row],[IdEstablecimiento]],'[1]Establecimiento 2023'!$A$1:$E$183,5,FALSE),0) -> 04201-Illapel | AD102: 15050100 | AE102: 2022-04-19T10:06:43 | AF102: 58 | AG102: 24 | AH102: 34 | AI102: 1 | AK102: 1 | AL102: 8 | AM102: 6 | AN102: 11 | AO102: 14 | AP102: 9 | AR102: 4 | AT102: 4
X103: 3 | Y103: 5 | Z103: 2022 | AA103: 105487 | AB103: =IFERROR(VLOOKUP(Tabla_SERIED_12_5[[#This Row],[IdEstablecimiento]],'[1]Establecimiento 2023'!$A$1:$E$183,3,FALSE),0) -> 105487-Posta de Salud Rural Cañas Uno | AC103: =IFERROR(VLOOKUP(Tabla_SERIED_12_5[[#This Row],[IdEstablecimiento]],'[1]Establecimiento 2023'!$A$1:$E$183,5,FALSE),0) -> 04201-Illapel | AD103: 16090300 | AE103: 2022-04-19T10:06:43 | AF103: 115 | AG103: 115
X104: 3 | Y104: 5 | Z104: 2022 | AA104: 105487 | AB104: =IFERROR(VLOOKUP(Tabla_SERIED_12_5[[#This Row],[IdEstablecimiento]],'[1]Establecimiento 2023'!$A$1:$E$183,3,FALSE),0) -> 105487-Posta de Salud Rural Cañas Uno | AC104: =IFERROR(VLOOKUP(Tabla_SERIED_12_5[[#This Row],[IdEstablecimiento]],'[1]Establecimiento 2023'!$A$1:$E$183,5,FALSE),0) -> 04201-Illapel | AD104: 16200210 | AE104: 2022-04-19T10:06:43 | AF104: 31 | AG104: 31
X105: 1 | Y105: 5 | Z105: 2022 | AA105: 105422 | AB105: =IFERROR(VLOOKUP(Tabla_SERIED_12_5[[#This Row],[IdEstablecimiento]],'[1]Establecimiento 2023'!$A$1:$E$183,3,FALSE),0) -> 105422-Posta de Salud Rural Hornillos | AC105: =IFERROR(VLOOKUP(Tabla_SERIED_12_5[[#This Row],[IdEstablecimiento]],'[1]Establecimiento 2023'!$A$1:$E$183,5,FALSE),0) -> 04301-Ovalle | AD105: 16090300 | AE105: 2022-02-16T10:56:47 | AF105: 42 | AG105: 42
X106: 1 | Y106: 5 | Z106: 2022 | AA106: 105422 | AB106: =IFERROR(VLOOKUP(Tabla_SERIED_12_5[[#This Row],[IdEstablecimiento]],'[1]Establecimiento 2023'!$A$1:$E$183,3,FALSE),0) -> 105422-Posta de Salud Rural Hornillos | AC106: =IFERROR(VLOOKUP(Tabla_SERIED_12_5[[#This Row],[IdEstablecimiento]],'[1]Establecimiento 2023'!$A$1:$E$183,5,FALSE),0) -> 04301-Ovalle | AD106: 16200210 | AE106: 2022-02-16T10:56:47 | AF106: 4 | AG106: 4
X107: 8 | Y107: 5 | Z107: 2022 | AA107: 105310 | AB107: =IFERROR(VLOOKUP(Tabla_SERIED_12_5[[#This Row],[IdEstablecimiento]],'[1]Establecimiento 2023'!$A$1:$E$183,3,FALSE),0) -> 105310-Centro de Salud Familiar Pichasca | AC107: =IFERROR(VLOOKUP(Tabla_SERIED_12_5[[#This Row],[IdEstablecimiento]],'[1]Establecimiento 2023'!$A$1:$E$183,5,FALSE),0) -> 04305-Río Hurtado | AD107: 16200220 | AE107: 2022-09-21T07:17:14 | AF107: 19 | AG107: 9 | AH107: 10 | AJ107: 2
X108: 8 | Y108: 5 | Z108: 2022 | AA108: 105311 | AB108: =IFERROR(VLOOKUP(Tabla_SERIED_12_5[[#This Row],[IdEstablecimiento]],'[1]Establecimiento 2023'!$A$1:$E$183,3,FALSE),0) -> 105311-Centro de Salud Familiar Chañaral Alto | AC108: =IFERROR(VLOOKUP(Tabla_SERIED_12_5[[#This Row],[IdEstablecimiento]],'[1]Establecimiento 2023'!$A$1:$E$183,5,FALSE),0) -> 04303-Monte Patria | AD108: 15010100 | AE108: 2022-09-21T07:17:27 | AF108: 30 | AJ108: 30
X109: 8 | Y109: 5 | Z109: 2022 | AA109: 105311 | AB109: =IFERROR(VLOOKUP(Tabla_SERIED_12_5[[#This Row],[IdEstablecimiento]],'[1]Establecimiento 2023'!$A$1:$E$183,3,FALSE),0) -> 105311-Centro de Salud Familiar Chañaral Alto | AC109: =IFERROR(VLOOKUP(Tabla_SERIED_12_5[[#This Row],[IdEstablecimiento]],'[1]Establecimiento 2023'!$A$1:$E$183,5,FALSE),0) -> 04303-Monte Patria | AD109: 15010200 | AE109: 2022-09-21T07:17:27 | AF109: 134 | AK109: 14 | AL109: 50 | AM109: 70
X110: 8 | Y110: 5 | Z110: 2022 | AA110: 105311 | AB110: =IFERROR(VLOOKUP(Tabla_SERIED_12_5[[#This Row],[IdEstablecimiento]],'[1]Establecimiento 2023'!$A$1:$E$183,3,FALSE),0) -> 105311-Centro de Salud Familiar Chañaral Alto | AC110: =IFERROR(VLOOKUP(Tabla_SERIED_12_5[[#This Row],[IdEstablecimiento]],'[1]Establecimiento 2023'!$A$1:$E$183,5,FALSE),0) -> 04303-Monte Patria | AD110: 15080008 | AE110: 2022-09-21T07:17:27 | AF110: 39 | AN110: 18 | AP110: 20 | AR110: 1
X111: 8 | Y111: 5 | Z111: 2022 | AA111: 105311 | AB111: =IFERROR(VLOOKUP(Tabla_SERIED_12_5[[#This Row],[IdEstablecimiento]],'[1]Establecimiento 2023'!$A$1:$E$183,3,FALSE),0) -> 105311-Centro de Salud Familiar Chañaral Alto | AC111: =IFERROR(VLOOKUP(Tabla_SERIED_12_5[[#This Row],[IdEstablecimiento]],'[1]Establecimiento 2023'!$A$1:$E$183,5,FALSE),0) -> 04303-Monte Patria | AD111: 15900010 | AE111: 2022-09-21T07:17:27 | AF111: 14.4 | AH111: 3.6 | AI111: 10.8
X112: 8 | Y112: 5 | Z112: 2022 | AA112: 105311 | AB112: =IFERROR(VLOOKUP(Tabla_SERIED_12_5[[#This Row],[IdEstablecimiento]],'[1]Establecimiento 2023'!$A$1:$E$183,3,FALSE),0) -> 105311-Centro de Salud Familiar Chañaral Alto | AC112: =IFERROR(VLOOKUP(Tabla_SERIED_12_5[[#This Row],[IdEstablecimiento]],'[1]Establecimiento 2023'!$A$1:$E$183,5,FALSE),0) -> 04303-Monte Patria | AD112: 15010400 | AE112: 2022-09-21T07:17:27 | AF112: 8 | AL112: 8
X113: 8 | Y113: 5 | Z113: 2022 | AA113: 105311 | AB113: =IFERROR(VLOOKUP(Tabla_SERIED_12_5[[#This Row],[IdEstablecimiento]],'[1]Establecimiento 2023'!$A$1:$E$183,3,FALSE),0) -> 105311-Centro de Salud Familiar Chañaral Alto | AC113: =IFERROR(VLOOKUP(Tabla_SERIED_12_5[[#This Row],[IdEstablecimiento]],'[1]Establecimiento 2023'!$A$1:$E$183,5,FALSE),0) -> 04303-Monte Patria | AD113: 15010500 | AE113: 2022-09-21T07:17:27 | AF113: 10 | AI113: 2 | AL113: 8
X114: 8 | Y114: 5 | Z114: 2022 | AA114: 105311 | AB114: =IFERROR(VLOOKUP(Tabla_SERIED_12_5[[#This Row],[IdEstablecimiento]],'[1]Establecimiento 2023'!$A$1:$E$183,3,FALSE),0) -> 105311-Centro de Salud Familiar Chañaral Alto | AC114: =IFERROR(VLOOKUP(Tabla_SERIED_12_5[[#This Row],[IdEstablecimiento]],'[1]Establecimiento 2023'!$A$1:$E$183,5,FALSE),0) -> 04303-Monte Patria | AD114: 15080009 | AE114: 2022-09-21T07:17:27 | AF114: 4 | AO114: 3 | AP114: 1
X115: 8 | Y115: 5 | Z115: 2022 | AA115: 105311 | AB115: =IFERROR(VLOOKUP(Tabla_SERIED_12_5[[#This Row],[IdEstablecimiento]],'[1]Establecimiento 2023'!$A$1:$E$183,3,FALSE),0) -> 105311-Centro de Salud Familiar Chañaral Alto | AC115: =IFERROR(VLOOKUP(Tabla_SERIED_12_5[[#This Row],[IdEstablecimiento]],'[1]Establecimiento 2023'!$A$1:$E$183,5,FALSE),0) -> 04303-Monte Patria | AD115: 15900020 | AE115: 2022-09-21T07:17:27 | AF115: 5.4 | AH115: 1.8 | AI115: 3.6
X116: 8 | Y116: 5 | Z116: 2022 | AA116: 105311 | AB116: =IFERROR(VLOOKUP(Tabla_SERIED_12_5[[#This Row],[IdEstablecimiento]],'[1]Establecimiento 2023'!$A$1:$E$183,3,FALSE),0) -> 105311-Centro de Salud Familiar Chañaral Alto | AC116: =IFERROR(VLOOKUP(Tabla_SERIED_12_5[[#This Row],[IdEstablecimiento]],'[1]Establecimiento 2023'!$A$1:$E$183,5,FALSE),0) -> 04303-Monte Patria | AD116: 15050100 | AE116: 2022-09-21T07:17:27 | AF116: 117 | AG116: 49 | AH116: 68 | AK116: 4 | AL116: 15 | AM116: 7 | AN116: 25 | AO116: 37 | AP116: 18 | AR116: 10 | AT116: 1
X117: 8 | Y117: 5 | Z117: 2022 | AA117: 105311 | AB117: =IFERROR(VLOOKUP(Tabla_SERIED_12_5[[#This Row],[IdEstablecimiento]],'[1]Establecimiento 2023'!$A$1:$E$183,3,FALSE),0) -> 105311-Centro de Salud Familiar Chañaral Alto | AC117: =IFERROR(VLOOKUP(Tabla_SERIED_12_5[[#This Row],[IdEstablecimiento]],'[1]Establecimiento 2023'!$A$1:$E$183,5,FALSE),0) -> 04303-Monte Patria | AD117: 15050200 | AE117: 2022-09-21T07:17:27 | AF117: 8 | AG117: 1 | AH117: 7 | AJ117: 1 | AK117: 1 | AN117: 4 | AQ117: 1 | AR117: 1
X118: 8 | Y118: 5 | Z118: 2022 | AA118: 105311 | AB118: =IFERROR(VLOOKUP(Tabla_SERIED_12_5[[#This Row],[IdEstablecimiento]],'[1]Establecimiento 2023'!$A$1:$E$183,3,FALSE),0) -> 105311-Centro de Salud Familiar Chañaral Alto | AC118: =IFERROR(VLOOKUP(Tabla_SERIED_12_5[[#This Row],[IdEstablecimiento]],'[1]Establecimiento 2023'!$A$1:$E$183,5,FALSE),0) -> 04303-Monte Patria | AD118: 16090300 | AE118: 2022-09-21T07:17:27 | AF118: 246 | AG118: 246
X119: 8 | Y119: 5 | Z119: 2022 | AA119: 105311 | AB119: =IFERROR(VLOOKUP(Tabla_SERIED_12_5[[#This Row],[IdEstablecimiento]],'[1]Establecimiento 2023'!$A$1:$E$183,3,FALSE),0) -> 105311-Centro de Salud Familiar Chañaral Alto | AC119: =IFERROR(VLOOKUP(Tabla_SERIED_12_5[[#This Row],[IdEstablecimiento]],'[1]Establecimiento 2023'!$A$1:$E$183,5,FALSE),0) -> 04303-Monte Patria | AD119: 16200210 | AE119: 2022-09-21T07:17:27 | AF119: 38 | AG119: 38
X120: 8 | Y120: 5 | Z120: 2022 | AA120: 105311 | AB120: =IFERROR(VLOOKUP(Tabla_SERIED_12_5[[#This Row],[IdEstablecimiento]],'[1]Establecimiento 2023'!$A$1:$E$183,3,FALSE),0) -> 105311-Centro de Salud Familiar Chañaral Alto | AC120: =IFERROR(VLOOKUP(Tabla_SERIED_12_5[[#This Row],[IdEstablecimiento]],'[1]Establecimiento 2023'!$A$1:$E$183,5,FALSE),0) -> 04303-Monte Patria | AD120: 16100300 | AE120: 2022-09-21T07:17:27 | AF120: 246 | AG120: 119 | AH120: 127 | AI120: 1 | AJ120: 140
X121: 8 | Y121: 5 | Z121: 2022 | AA121: 105311 | AB121: =IFERROR(VLOOKUP(Tabla_SERIED_12_5[[#This Row],[IdEstablecimiento]],'[1]Establecimiento 2023'!$A$1:$E$183,3,FALSE),0) -> 105311-Centro de Salud Familiar Chañaral Alto | AC121: =IFERROR(VLOOKUP(Tabla_SERIED_12_5[[#This Row],[IdEstablecimiento]],'[1]Establecimiento 2023'!$A$1:$E$183,5,FALSE),0) -> 04303-Monte Patria | AD121: 16200220 | AE121: 2022-09-21T07:17:27 | AF121: 38 | AG121: 13 | AH121: 25 | AJ121: 15
X122: 8 | Y122: 5 | Z122: 2022 | AA122: 105312 | AB122: =IFERROR(VLOOKUP(Tabla_SERIED_12_5[[#This Row],[IdEstablecimiento]],'[1]Establecimiento 2023'!$A$1:$E$183,3,FALSE),0) -> 105312-Centro de Salud Familiar Carén | AC122: =IFERROR(VLOOKUP(Tabla_SERIED_12_5[[#This Row],[IdEstablecimiento]],'[1]Establecimiento 2023'!$A$1:$E$183,5,FALSE),0) -> 04303-Monte Patria | AD122: 15010100 | AE122: 2022-09-21T07:17:41 | AF122: 10 | AJ122: 10
X123: 8 | Y123: 5 | Z123: 2022 | AA123: 105312 | AB123: =IFERROR(VLOOKUP(Tabla_SERIED_12_5[[#This Row],[IdEstablecimiento]],'[1]Establecimiento 2023'!$A$1:$E$183,3,FALSE),0) -> 105312-Centro de Salud Familiar Carén | AC123: =IFERROR(VLOOKUP(Tabla_SERIED_12_5[[#This Row],[IdEstablecimiento]],'[1]Establecimiento 2023'!$A$1:$E$183,5,FALSE),0) -> 04303-Monte Patria | AD123: 15010200 | AE123: 2022-09-21T07:17:41 | AF123: 49 | AK123: 4 | AL123: 26 | AM123: 19
X124: 8 | Y124: 5 | Z124: 2022 | AA124: 105312 | AB124: =IFERROR(VLOOKUP(Tabla_SERIED_12_5[[#This Row],[IdEstablecimiento]],'[1]Establecimiento 2023'!$A$1:$E$183,3,FALSE),0) -> 105312-Centro de Salud Familiar Carén | AC124: =IFERROR(VLOOKUP(Tabla_SERIED_12_5[[#This Row],[IdEstablecimiento]],'[1]Establecimiento 2023'!$A$1:$E$183,5,FALSE),0) -> 04303-Monte Patria | AD124: 15080008 | AE124: 2022-09-21T07:17:41 | AF124: 21 | AN124: 6 | AP124: 12 | AQ124: 1 | AR124: 2
X125: 8 | Y125: 5 | Z125: 2022 | AA125: 105312 | AB125: =IFERROR(VLOOKUP(Tabla_SERIED_12_5[[#This Row],[IdEstablecimiento]],'[1]Establecimiento 2023'!$A$1:$E$183,3,FALSE),0) -> 105312-Centro de Salud Familiar Carén | AC125: =IFERROR(VLOOKUP(Tabla_SERIED_12_5[[#This Row],[IdEstablecimiento]],'[1]Establecimiento 2023'!$A$1:$E$183,5,FALSE),0) -> 04303-Monte Patria | AD125: 15900010 | AE125: 2022-09-21T07:17:41 | AF125: 10.8 | AI125: 10.8
X126: 8 | Y126: 5 | Z126: 2022 | AA126: 105312 | AB126: =IFERROR(VLOOKUP(Tabla_SERIED_12_5[[#This Row],[IdEstablecimiento]],'[1]Establecimiento 2023'!$A$1:$E$183,3,FALSE),0) -> 105312-Centro de Salud Familiar Carén | AC126: =IFERROR(VLOOKUP(Tabla_SERIED_12_5[[#This Row],[IdEstablecimiento]],'[1]Establecimiento 2023'!$A$1:$E$183,5,FALSE),0) -> 04303-Monte Patria | AD126: 15050100 | AE126: 2022-09-21T07:17:41 | AF126: 48 | AG126: 17 | AH126: 31 | AK126: 3 | AL126: 5 | AM126: 2 | AN126: 13 | AO126: 10 | AP126: 6 | AR126: 6 | AS126: 1 | AT126: 2
X127: 8 | Y127: 5 | Z127: 2022 | AA127: 105312 | AB127: =IFERROR(VLOOKUP(Tabla_SERIED_12_5[[#This Row],[IdEstablecimiento]],'[1]Establecimiento 2023'!$A$1:$E$183,3,FALSE),0) -> 105312-Centro de Salud Familiar Carén | AC127: =IFERROR(VLOOKUP(Tabla_SERIED_12_5[[#This Row],[IdEstablecimiento]],'[1]Establecimiento 2023'!$A$1:$E$183,5,FALSE),0) -> 04303-Monte Patria | AD127: 15020200 | AE127: 2022-09-21T07:17:41 | AF127: 2 | AM127: 2
X128: 8 | Y128: 5 | Z128: 2022 | AA128: 105312 | AB128: =IFERROR(VLOOKUP(Tabla_SERIED_12_5[[#This Row],[IdEstablecimiento]],'[1]Establecimiento 2023'!$A$1:$E$183,3,FALSE),0) -> 105312-Centro de Salud Familiar Carén | AC128: =IFERROR(VLOOKUP(Tabla_SERIED_12_5[[#This Row],[IdEstablecimiento]],'[1]Establecimiento 2023'!$A$1:$E$183,5,FALSE),0) -> 04303-Monte Patria | AD128: 15060100 | AE128: 2022-09-21T07:17:41 | AF128: 1 | AG128: 1 | AO128: 1
X129: 8 | Y129: 5 | Z129: 2022 | AA129: 105312 | AB129: =IFERROR(VLOOKUP(Tabla_SERIED_12_5[[#This Row],[IdEstablecimiento]],'[1]Establecimiento 2023'!$A$1:$E$183,3,FALSE),0) -> 105312-Centro de Salud Familiar Carén | AC129: =IFERROR(VLOOKUP(Tabla_SERIED_12_5[[#This Row],[IdEstablecimiento]],'[1]Establecimiento 2023'!$A$1:$E$183,5,FALSE),0) -> 04303-Monte Patria | AD129: 16090300 | AE129: 2022-09-21T07:17:41 | AF129: 234 | AG129: 234
X130: 8 | Y130: 5 | Z130: 2022 | AA130: 105312 | AB130: =IFERROR(VLOOKUP(Tabla_SERIED_12_5[[#This Row],[IdEstablecimiento]],'[1]Establecimiento 2023'!$A$1:$E$183,3,FALSE),0) -> 105312-Centro de Salud Familiar Carén | AC130: =IFERROR(VLOOKUP(Tabla_SERIED_12_5[[#This Row],[IdEstablecimiento]],'[1]Establecimiento 2023'!$A$1:$E$183,5,FALSE),0) -> 04303-Monte Patria | AD130: 16200210 | AE130: 2022-09-21T07:17:41 | AF130: 7 | AG130: 7
X131: 8 | Y131: 5 | Z131: 2022 | AA131: 105312 | AB131: =IFERROR(VLOOKUP(Tabla_SERIED_12_5[[#This Row],[IdEstablecimiento]],'[1]Establecimiento 2023'!$A$1:$E$183,3,FALSE),0) -> 105312-Centro de Salud Familiar Carén | AC131: =IFERROR(VLOOKUP(Tabla_SERIED_12_5[[#This Row],[IdEstablecimiento]],'[1]Establecimiento 2023'!$A$1:$E$183,5,FALSE),0) -> 04303-Monte Patria | AD131: 16100300 | AE131: 2022-09-21T07:17:41 | AF131: 130 | AG131: 56 | AH131: 74 | AI131: 0 | AJ131: 40
X132: 8 | Y132: 5 | Z132: 2022 | AA132: 105312 | AB132: =IFERROR(VLOOKUP(Tabla_SERIED_12_5[[#This Row],[IdEstablecimiento]],'[1]Establecimiento 2023'!$A$1:$E$183,3,FALSE),0) -> 105312-Centro de Salud Familiar Carén | AC132: =IFERROR(VLOOKUP(Tabla_SERIED_12_5[[#This Row],[IdEstablecimiento]],'[1]Establecimiento 2023'!$A$1:$E$183,5,FALSE),0) -> 04303-Monte Patria | AD132: 16200220 | AE132: 2022-09-21T07:17:41 | AF132: 5 | AG132: 1 | AH132: 4 | AI132: 0 | AJ132: 2
X133: 8 | Y133: 5 | Z133: 2022 | AA133: 105313 | AB133: =IFERROR(VLOOKUP(Tabla_SERIED_12_5[[#This Row],[IdEstablecimiento]],'[1]Establecimiento 2023'!$A$1:$E$183,3,FALSE),0) -> 105313-Centro de Salud Familiar Dr. Emilio Schaffhauser | AC133: =IFERROR(VLOOKUP(Tabla_SERIED_12_5[[#This Row],[IdEstablecimiento]],'[1]Establecimiento 2023'!$A$1:$E$183,5,FALSE),0) -> 04101-La Serena | AD133: 15010100 | AE133: 2022-09-21T07:17:54 | AF133: 161 | AJ133: 138 | AN133: 3 | AP133: 20
X134: 8 | Y134: 5 | Z134: 2022 | AA134: 105313 | AB134: =IFERROR(VLOOKUP(Tabla_SERIED_12_5[[#This Row],[IdEstablecimiento]],'[1]Establecimiento 2023'!$A$1:$E$183,3,FALSE),0) -> 105313-Centro de Salud Familiar Dr. Emilio Schaffhauser | AC134: =IFERROR(VLOOKUP(Tabla_SERIED_12_5[[#This Row],[IdEstablecimiento]],'[1]Establecimiento 2023'!$A$1:$E$183,5,FALSE),0) -> 04101-La Serena | AD134: 15010200 | AE134: 2022-09-21T07:17:54 | AF134: 484 | AK134: 106 | AL134: 216 | AM134: 162
X135: 8 | Y135: 5 | Z135: 2022 | AA135: 105313 | AB135: =IFERROR(VLOOKUP(Tabla_SERIED_12_5[[#This Row],[IdEstablecimiento]],'[1]Establecimiento 2023'!$A$1:$E$183,3,FALSE),0) -> 105313-Centro de Salud Familiar Dr. Emilio Schaffhauser | AC135: =IFERROR(VLOOKUP(Tabla_SERIED_12_5[[#This Row],[IdEstablecimiento]],'[1]Establecimiento 2023'!$A$1:$E$183,5,FALSE),0) -> 04101-La Serena | AD135: 15080008 | AE135: 2022-09-21T07:17:54 | AF135: 260 | AN135: 141 | AP135: 78 | AQ135: 13 | AR135: 28
X136: 8 | Y136: 5 | Z136: 2022 | AA136: 105313 | AB136: =IFERROR(VLOOKUP(Tabla_SERIED_12_5[[#This Row],[IdEstablecimiento]],'[1]Establecimiento 2023'!$A$1:$E$183,3,FALSE),0) -> 105313-Centro de Salud Familiar Dr. Emilio Schaffhauser | AC136: =IFERROR(VLOOKUP(Tabla_SERIED_12_5[[#This Row],[IdEstablecimiento]],'[1]Establecimiento 2023'!$A$1:$E$183,5,FALSE),0) -> 04101-La Serena | AD136: 15900010 | AE136: 2022-09-21T07:17:54 | AF136: 284.4 | AG136: 35.1 | AH136: 78.3 | AI136: 171
X137: 8 | Y137: 5 | Z137: 2022 | AA137: 105313 | AB137: =IFERROR(VLOOKUP(Tabla_SERIED_12_5[[#This Row],[IdEstablecimiento]],'[1]Establecimiento 2023'!$A$1:$E$183,3,FALSE),0) -> 105313-Centro de Salud Familiar Dr. Emilio Schaffhauser | AC137: =IFERROR(VLOOKUP(Tabla_SERIED_12_5[[#This Row],[IdEstablecimiento]],'[1]Establecimiento 2023'!$A$1:$E$183,5,FALSE),0) -> 04101-La Serena | AD137: 15010300 | AE137: 2022-09-21T07:17:54 | AF137: 2 | AJ137: 2
X138: 8 | Y138: 5 | Z138: 2022 | AA138: 105313 | AB138: =IFERROR(VLOOKUP(Tabla_SERIED_12_5[[#This Row],[IdEstablecimiento]],'[1]Establecimiento 2023'!$A$1:$E$183,3,FALSE),0) -> 105313-Centro de Salud Familiar Dr. Emilio Schaffhauser | AC138: =IFERROR(VLOOKUP(Tabla_SERIED_12_5[[#This Row],[IdEstablecimiento]],'[1]Establecimiento 2023'!$A$1:$E$183,5,FALSE),0) -> 04101-La Serena | AD138: 15010400 | AE138: 2022-09-21T07:17:54 | AF138: 4 | AL138: 2 | AM138: 2
X139: 8 | Y139: 5 | Z139: 2022 | AA139: 105313 | AB139: =IFERROR(VLOOKUP(Tabla_SERIED_12_5[[#This Row],[IdEstablecimiento]],'[1]Establecimiento 2023'!$A$1:$E$183,3,FALSE),0) -> 105313-Centro de Salud Familiar Dr. Emilio Schaffhauser | AC139: =IFERROR(VLOOKUP(Tabla_SERIED_12_5[[#This Row],[IdEstablecimiento]],'[1]Establecimiento 2023'!$A$1:$E$183,5,FALSE),0) -> 04101-La Serena | AD139: 15010500 | AE139: 2022-09-21T07:17:54 | AF139: 6 | AJ139: 2 | AL139: 2 | AM139: 2
X140: 8 | Y140: 5 | Z140: 2022 | AA140: 105313 | AB140: =IFERROR(VLOOKUP(Tabla_SERIED_12_5[[#This Row],[IdEstablecimiento]],'[1]Establecimiento 2023'!$A$1:$E$183,3,FALSE),0) -> 105313-Centro de Salud Familiar Dr. Emilio Schaffhauser | AC140: =IFERROR(VLOOKUP(Tabla_SERIED_12_5[[#This Row],[IdEstablecimiento]],'[1]Establecimiento 2023'!$A$1:$E$183,5,FALSE),0) -> 04101-La Serena | AD140: 15080009 | AE140: 2022-09-21T07:17:54 | AF140: 9 | AO140: 9
X141: 8 | Y141: 5 | Z141: 2022 | AA141: 105313 | AB141: =IFERROR(VLOOKUP(Tabla_SERIED_12_5[[#This Row],[IdEstablecimiento]],'[1]Establecimiento 2023'!$A$1:$E$183,3,FALSE),0) -> 105313-Centro de Salud Familiar Dr. Emilio Schaffhauser | AC141: =IFERROR(VLOOKUP(Tabla_SERIED_12_5[[#This Row],[IdEstablecimiento]],'[1]Establecimiento 2023'!$A$1:$E$183,5,FALSE),0) -> 04101-La Serena | AD141: 15030100 | AE141: 2022-09-21T07:17:54 | AF141: 20 | AG141: 8 | AH141: 4 | AI141: 8
X142: 8 | Y142: 5 | Z142: 2022 | AA142: 105313 | AB142: =IFERROR(VLOOKUP(Tabla_SERIED_12_5[[#This Row],[IdEstablecimiento]],'[1]Establecimiento 2023'!$A$1:$E$183,3,FALSE),0) -> 105313-Centro de Salud Familiar Dr. Emilio Schaffhauser | AC142: =IFERROR(VLOOKUP(Tabla_SERIED_12_5[[#This Row],[IdEstablecimiento]],'[1]Establecimiento 2023'!$A$1:$E$183,5,FALSE),0) -> 04101-La Serena | AD142: 15900030 | AE142: 2022-09-21T07:17:54 | AF142: 43.2 | AG142: 2 | AH142: 10.8 | AI142: 16 | AJ142: 10 | AK142: 4.4
X143: 2 | Y143: 5 | Z143: 2022 | AA143: 105480 | AB143: =IFERROR(VLOOKUP(Tabla_SERIED_12_5[[#This Row],[IdEstablecimiento]],'[1]Establecimiento 2023'!$A$1:$E$183,3,FALSE),0) -> 105480-Posta de Salud Rural Quilimarí | AC143: =IFERROR(VLOOKUP(Tabla_SERIED_12_5[[#This Row],[IdEstablecimiento]],'[1]Establecimiento 2023'!$A$1:$E$183,5,FALSE),0) -> 04203-Los Vilos | AD143: 15900010 | AE143: 2022-03-17T09:54:11 | AF143: 12 | AG143: 0.8 | AH143: 8 | AI143: 3.2
X144: 2 | Y144: 5 | Z144: 2022 | AA144: 105480 | AB144: =IFERROR(VLOOKUP(Tabla_SERIED_12_5[[#This Row],[IdEstablecimiento]],'[1]Establecimiento 2023'!$A$1:$E$183,3,FALSE),0) -> 105480-Posta de Salud Rural Quilimarí | AC144: =IFERROR(VLOOKUP(Tabla_SERIED_12_5[[#This Row],[IdEstablecimiento]],'[1]Establecimiento 2023'!$A$1:$E$183,5,FALSE),0) -> 04203-Los Vilos | AD144: 15010400 | AE144: 2022-03-17T09:54:11 | AF144: 2 | AL144: 2
X145: 2 | Y145: 5 | Z145: 2022 | AA145: 105303 | AB145: =IFERROR(VLOOKUP(Tabla_SERIED_12_5[[#This Row],[IdEstablecimiento]],'[1]Establecimiento 2023'!$A$1:$E$183,3,FALSE),0) -> 105303-Centro de Salud Familiar San Juan | AC145: =IFERROR(VLOOKUP(Tabla_SERIED_12_5[[#This Row],[IdEstablecimiento]],'[1]Establecimiento 2023'!$A$1:$E$183,5,FALSE),0) -> 04102-Coquimbo | AD145: 15020200 | AE145: 2022-03-17T09:27:11 | AF145: 20 | AK145: 6 | AL145: 12 | AM145: 2
X146: 2 | Y146: 5 | Z146: 2022 | AA146: 105303 | AB146: =IFERROR(VLOOKUP(Tabla_SERIED_12_5[[#This Row],[IdEstablecimiento]],'[1]Establecimiento 2023'!$A$1:$E$183,3,FALSE),0) -> 105303-Centro de Salud Familiar San Juan | AC146: =IFERROR(VLOOKUP(Tabla_SERIED_12_5[[#This Row],[IdEstablecimiento]],'[1]Establecimiento 2023'!$A$1:$E$183,5,FALSE),0) -> 04102-Coquimbo | AD146: 15901200 | AE146: 2022-03-17T09:27:11 | AF146: 9.2 | AG146: 0 | AH146: 6.4 | AI146: 0 | AJ146: 2.8 | AK146: 0 | AL146: 0 | AM146: 0
X147: 2 | Y147: 5 | Z147: 2022 | AA147: 105303 | AB147: =IFERROR(VLOOKUP(Tabla_SERIED_12_5[[#This Row],[IdEstablecimiento]],'[1]Establecimiento 2023'!$A$1:$E$183,3,FALSE),0) -> 105303-Centro de Salud Familiar San Juan | AC147: =IFERROR(VLOOKUP(Tabla_SERIED_12_5[[#This Row],[IdEstablecimiento]],'[1]Establecimiento 2023'!$A$1:$E$183,5,FALSE),0) -> 04102-Coquimbo | AD147: 15901300 | AE147: 2022-03-17T09:27:11 | AF147: 8.8 | AG147: 0 | AH147: 0 | AI147: 4.4 | AJ147: 4.4 | AK147: 0 | AL147: 0 | AM147: 0
X148: 2 | Y148: 5 | Z148: 2022 | AA148: 105303 | AB148: =IFERROR(VLOOKUP(Tabla_SERIED_12_5[[#This Row],[IdEstablecimiento]],'[1]Establecimiento 2023'!$A$1:$E$183,3,FALSE),0) -> 105303-Centro de Salud Familiar San Juan | AC148: =IFERROR(VLOOKUP(Tabla_SERIED_12_5[[#This Row],[IdEstablecimiento]],'[1]Establecimiento 2023'!$A$1:$E$183,5,FALSE),0) -> 04102-Coquimbo | AD148: 15060100 | AE148: 2022-03-17T09:27:11 | AF148: 14 | AG148: 7 | AH148: 7 | AI148: 0 | AJ148: 0 | AK148: 2 | AL148: 2 | AM148: 3 | AN148: 6 | AO148: 1 | AP148: 0 | AR148: 0 | AS148: 0 | AT148: 0
X149: 2 | Y149: 5 | Z149: 2022 | AA149: 105303 | AB149: =IFERROR(VLOOKUP(Tabla_SERIED_12_5[[#This Row],[IdEstablecimiento]],'[1]Establecimiento 2023'!$A$1:$E$183,3,FALSE),0) -> 105303-Centro de Salud Familiar San Juan | AC149: =IFERROR(VLOOKUP(Tabla_SERIED_12_5[[#This Row],[IdEstablecimiento]],'[1]Establecimiento 2023'!$A$1:$E$183,5,FALSE),0) -> 04102-Coquimbo | AD149: 15901400 | AE149: 2022-03-17T09:27:11 | AF149: 5 | AG149: 2 | AH149: 3 | AI149: 0 | AJ149: 2 | AK149: 1 | AL149: 2 | AM149: 0
X150: 2 | Y150: 5 | Z150: 2022 | AA150: 105303 | AB150: =IFERROR(VLOOKUP(Tabla_SERIED_12_5[[#This Row],[IdEstablecimiento]],'[1]Establecimiento 2023'!$A$1:$E$183,3,FALSE),0) -> 105303-Centro de Salud Familiar San Juan | AC150: =IFERROR(VLOOKUP(Tabla_SERIED_12_5[[#This Row],[IdEstablecimiento]],'[1]Establecimiento 2023'!$A$1:$E$183,5,FALSE),0) -> 04102-Coquimbo | AD150: 16090300 | AE150: 2022-03-17T09:27:11 | AF150: 538 | AG150: 538
X151: 2 | Y151: 5 | Z151: 2022 | AA151: 105303 | AB151: =IFERROR(VLOOKUP(Tabla_SERIED_12_5[[#This Row],[IdEstablecimiento]],'[1]Establecimiento 2023'!$A$1:$E$183,3,FALSE),0) -> 105303-Centro de Salud Familiar San Juan | AC151: =IFERROR(VLOOKUP(Tabla_SERIED_12_5[[#This Row],[IdEstablecimiento]],'[1]Establecimiento 2023'!$A$1:$E$183,5,FALSE),0) -> 04102-Coquimbo | AD151: 16200210 | AE151: 2022-03-17T09:27:11 | AF151: 15 | AG151: 15
X152: 3 | Y152: 5 | Z152: 2022 | AA152: 105702 | AB152: =IFERROR(VLOOKUP(Tabla_SERIED_12_5[[#This Row],[IdEstablecimiento]],'[1]Establecimiento 2023'!$A$1:$E$183,3,FALSE),0) -> 105702-Centro Comunitario de Salud Familiar Lambert | AC152: =IFERROR(VLOOKUP(Tabla_SERIED_12_5[[#This Row],[IdEstablecimiento]],'[1]Establecimiento 2023'!$A$1:$E$183,5,FALSE),0) -> 04101-La Serena | AD152: 16100300 | AE152: 2022-04-19T10:12:38 | AF152: 37 | AG152: 10 | AH152: 27 | AI152: 1 | AJ152: 15
X153: 3 | Y153: 5 | Z153: 2022 | AA153: 105722 | AB153: =IFERROR(VLOOKUP(Tabla_SERIED_12_5[[#This Row],[IdEstablecimiento]],'[1]Establecimiento 2023'!$A$1:$E$183,3,FALSE),0) -> 105722-Centro Comunitario de Salud Familiar San José de la Dehesa | AC153: =IFERROR(VLOOKUP(Tabla_SERIED_12_5[[#This Row],[IdEstablecimiento]],'[1]Establecimiento 2023'!$A$1:$E$183,5,FALSE),0) -> 04301-Ovalle | AD153: 15010100 | AE153: 2022-04-19T10:12:59 | AF153: 52 | AI153: 8 | AJ153: 44
X154: 1 | Y154: 5 | Z154: 2022 | AA154: 105401 | AB154: =IFERROR(VLOOKUP(Tabla_SERIED_12_5[[#This Row],[IdEstablecimiento]],'[1]Establecimiento 2023'!$A$1:$E$183,3,FALSE),0) -> 105401-Posta de Salud Rural Las Rojas | AC154: =IFERROR(VLOOKUP(Tabla_SERIED_12_5[[#This Row],[IdEstablecimiento]],'[1]Establecimiento 2023'!$A$1:$E$183,5,FALSE),0) -> 04101-La Serena | AD154: 15080008 | AE154: 2022-02-16T10:52:59 | AF154: 8 | AN154: 4 | AP154: 2 | AR154: 2
X155: 1 | Y155: 5 | Z155: 2022 | AA155: 105401 | AB155: =IFERROR(VLOOKUP(Tabla_SERIED_12_5[[#This Row],[IdEstablecimiento]],'[1]Establecimiento 2023'!$A$1:$E$183,3,FALSE),0) -> 105401-Posta de Salud Rural Las Rojas | AC155: =IFERROR(VLOOKUP(Tabla_SERIED_12_5[[#This Row],[IdEstablecimiento]],'[1]Establecimiento 2023'!$A$1:$E$183,5,FALSE),0) -> 04101-La Serena | AD155: 15010300 | AE155: 2022-02-16T10:52:59 | AF155: 3 | AJ155: 3
X156: 1 | Y156: 5 | Z156: 2022 | AA156: 105401 | AB156: =IFERROR(VLOOKUP(Tabla_SERIED_12_5[[#This Row],[IdEstablecimiento]],'[1]Establecimiento 2023'!$A$1:$E$183,3,FALSE),0) -> 105401-Posta de Salud Rural Las Rojas | AC156: =IFERROR(VLOOKUP(Tabla_SERIED_12_5[[#This Row],[IdEstablecimiento]],'[1]Establecimiento 2023'!$A$1:$E$183,5,FALSE),0) -> 04101-La Serena | AD156: 15010500 | AE156: 2022-02-16T10:52:59 | AF156: 2 | AJ156: 2
X157: 1 | Y157: 5 | Z157: 2022 | AA157: 105401 | AB157: =IFERROR(VLOOKUP(Tabla_SERIED_12_5[[#This Row],[IdEstablecimiento]],'[1]Establecimiento 2023'!$A$1:$E$183,3,FALSE),0) -> 105401-Posta de Salud Rural Las Rojas | AC157: =IFERROR(VLOOKUP(Tabla_SERIED_12_5[[#This Row],[IdEstablecimiento]],'[1]Establecimiento 2023'!$A$1:$E$183,5,FALSE),0) -> 04101-La Serena | AD157: 15050100 | AE157: 2022-02-16T10:52:59 | AF157: 23 | AG157: 9 | AH157: 14 | AL157: 4 | AM157: 2 | AN157: 7 | AO157: 3 | AP157: 4 | AR157: 1 | AT157: 2
X158: 1 | Y158: 5 | Z158: 2022 | AA158: 105305 | AB158: =IFERROR(VLOOKUP(Tabla_SERIED_12_5[[#This Row],[IdEstablecimiento]],'[1]Establecimiento 2023'!$A$1:$E$183,3,FALSE),0) -> 105305-Centro de Salud Familiar Tierras Blancas | AC158: =IFERROR(VLOOKUP(Tabla_SERIED_12_5[[#This Row],[IdEstablecimiento]],'[1]Establecimiento 2023'!$A$1:$E$183,5,FALSE),0) -> 04102-Coquimbo | AD158: 15010400 | AE158: 2022-02-16T10:35:34 | AF158: 14 | AL158: 8 | AM158: 6
X159: 3 | Y159: 5 | Z159: 2022 | AA159: 105447 | AB159: =IFERROR(VLOOKUP(Tabla_SERIED_12_5[[#This Row],[IdEstablecimiento]],'[1]Establecimiento 2023'!$A$1:$E$183,3,FALSE),0) -> 105447-Posta de Salud Rural Peralillo Illapel | AC159: =IFERROR(VLOOKUP(Tabla_SERIED_12_5[[#This Row],[IdEstablecimiento]],'[1]Establecimiento 2023'!$A$1:$E$183,5,FALSE),0) -> 04201-Illapel | AD159: 15900010 | AE159: 2022-04-19T09:46:42 | AF159: 3.2 | AI159: 3.2
X160: 3 | Y160: 5 | Z160: 2022 | AA160: 200607 | AB160: =IFERROR(VLOOKUP(Tabla_SERIED_12_5[[#This Row],[IdEstablecimiento]],'[1]Establecimiento 2023'!$A$1:$E$183,3,FALSE),0) -> 200607-Centro de Salud Familiar Lila Cortés Godoy | AC160: =IFERROR(VLOOKUP(Tabla_SERIED_12_5[[#This Row],[IdEstablecimiento]],'[1]Establecimiento 2023'!$A$1:$E$183,5,FALSE),0) -> 04102-Coquimbo | AD160: 15080010 | AE160: 2022-04-19T10:17:19 | AF160: 2 | AN160: 2 | AP160: 0 | AQ160: 0 | AR160: 0
X161: 3 | Y161: 5 | Z161: 2022 | AA161: 200607 | AB161: =IFERROR(VLOOKUP(Tabla_SERIED_12_5[[#This Row],[IdEstablecimiento]],'[1]Establecimiento 2023'!$A$1:$E$183,3,FALSE),0) -> 200607-Centro de Salud Familiar Lila Cortés Godoy | AC161: =IFERROR(VLOOKUP(Tabla_SERIED_12_5[[#This Row],[IdEstablecimiento]],'[1]Establecimiento 2023'!$A$1:$E$183,5,FALSE),0) -> 04102-Coquimbo | AD161: 15901200 | AE161: 2022-04-19T10:17:19 | AF161: 9.2 | AG161: 0 | AH161: 0 | AI161: 9.2 | AJ161: 0 | AK161: 0
X162: 3 | Y162: 5 | Z162: 2022 | AA162: 200607 | AB162: =IFERROR(VLOOKUP(Tabla_SERIED_12_5[[#This Row],[IdEstablecimiento]],'[1]Establecimiento 2023'!$A$1:$E$183,3,FALSE),0) -> 200607-Centro de Salud Familiar Lila Cortés Godoy | AC162: =IFERROR(VLOOKUP(Tabla_SERIED_12_5[[#This Row],[IdEstablecimiento]],'[1]Establecimiento 2023'!$A$1:$E$183,5,FALSE),0) -> 04102-Coquimbo | AD162: 15901300 | AE162: 2022-04-19T10:17:19 | AF162: 8 | AH162: 0 | AI162: 4.8 | AJ162: 0 | AK162: 3.2
X163: 3 | Y163: 5 | Z163: 2022 | AA163: 200607 | AB163: =IFERROR(VLOOKUP(Tabla_SERIED_12_5[[#This Row],[IdEstablecimiento]],'[1]Establecimiento 2023'!$A$1:$E$183,3,FALSE),0) -> 200607-Centro de Salud Familiar Lila Cortés Godoy | AC163: =IFERROR(VLOOKUP(Tabla_SERIED_12_5[[#This Row],[IdEstablecimiento]],'[1]Establecimiento 2023'!$A$1:$E$183,5,FALSE),0) -> 04102-Coquimbo | AD163: 15060100 | AE163: 2022-04-19T10:17:19 | AF163: 5 | AG163: 2 | AH163: 3 | AI163: 0 | AJ163: 0 | AK163: 0 | AL163: 0 | AM163: 1 | AN163: 2 | AO163: 0 | AP163: 2 | AR163: 0 | AS163: 0 | AT163: 0
X164: 2 | Y164: 5 | Z164: 2022 | AA164: 105310 | AB164: =IFERROR(VLOOKUP(Tabla_SERIED_12_5[[#This Row],[IdEstablecimiento]],'[1]Establecimiento 2023'!$A$1:$E$183,3,FALSE),0) -> 105310-Centro de Salud Familiar Pichasca | AC164: =IFERROR(VLOOKUP(Tabla_SERIED_12_5[[#This Row],[IdEstablecimiento]],'[1]Establecimiento 2023'!$A$1:$E$183,5,FALSE),0) -> 04305-Río Hurtado | AD164: 16200210 | AE164: 2022-03-17T09:28:55 | AF164: 18 | AG164: 18
X165: 1 | Y165: 5 | Z165: 2022 | AA165: 105467 | AB165: =IFERROR(VLOOKUP(Tabla_SERIED_12_5[[#This Row],[IdEstablecimiento]],'[1]Establecimiento 2023'!$A$1:$E$183,3,FALSE),0) -> 105467-Posta de Salud Rural Diaguitas | AC165: =IFERROR(VLOOKUP(Tabla_SERIED_12_5[[#This Row],[IdEstablecimiento]],'[1]Establecimiento 2023'!$A$1:$E$183,5,FALSE),0) -> 04106-Vicuña | AD165: 16090300 | AE165: 2022-02-17T03:52:03 | AF165: 27 | AG165: 27
X166: 1 | Y166: 5 | Z166: 2022 | AA166: 105467 | AB166: =IFERROR(VLOOKUP(Tabla_SERIED_12_5[[#This Row],[IdEstablecimiento]],'[1]Establecimiento 2023'!$A$1:$E$183,3,FALSE),0) -> 105467-Posta de Salud Rural Diaguitas | AC166: =IFERROR(VLOOKUP(Tabla_SERIED_12_5[[#This Row],[IdEstablecimiento]],'[1]Establecimiento 2023'!$A$1:$E$183,5,FALSE),0) -> 04106-Vicuña | AD166: 16200210 | AE166: 2022-02-17T03:52:03 | AF166: 1 | AG166: 1
X167: 1 | Y167: 5 | Z167: 2022 | AA167: 105467 | AB167: =IFERROR(VLOOKUP(Tabla_SERIED_12_5[[#This Row],[IdEstablecimiento]],'[1]Establecimiento 2023'!$A$1:$E$183,3,FALSE),0) -> 105467-Posta de Salud Rural Diaguitas | AC167: =IFERROR(VLOOKUP(Tabla_SERIED_12_5[[#This Row],[IdEstablecimiento]],'[1]Establecimiento 2023'!$A$1:$E$183,5,FALSE),0) -> 04106-Vicuña | AD167: 16100300 | AE167: 2022-02-17T03:52:03 | AF167: 27 | AG167: 11 | AH167: 16 | AJ167: 46
X168: 1 | Y168: 5 | Z168: 2022 | AA168: 105467 | AB168: =IFERROR(VLOOKUP(Tabla_SERIED_12_5[[#This Row],[IdEstablecimiento]],'[1]Establecimiento 2023'!$A$1:$E$183,3,FALSE),0) -> 105467-Posta de Salud Rural Diaguitas | AC168: =IFERROR(VLOOKUP(Tabla_SERIED_12_5[[#This Row],[IdEstablecimiento]],'[1]Establecimiento 2023'!$A$1:$E$183,5,FALSE),0) -> 04106-Vicuña | AD168: 16200220 | AE168: 2022-02-17T03:52:03 | AF168: 1 | AG168: 1
X169: 1 | Y169: 5 | Z169: 2022 | AA169: 105468 | AB169: =IFERROR(VLOOKUP(Tabla_SERIED_12_5[[#This Row],[IdEstablecimiento]],'[1]Establecimiento 2023'!$A$1:$E$183,3,FALSE),0) -> 105468-Posta de Salud Rural El Molle | AC169: =IFERROR(VLOOKUP(Tabla_SERIED_12_5[[#This Row],[IdEstablecimiento]],'[1]Establecimiento 2023'!$A$1:$E$183,5,FALSE),0) -> 04106-Vicuña | AD169: 15010100 | AE169: 2022-02-17T03:52:22 | AF169: 12 | AI169: 2 | AJ169: 10
X170: 4 | Y170: 5 | Z170: 2022 | AA170: 105306 | AB170: =IFERROR(VLOOKUP(Tabla_SERIED_12_5[[#This Row],[IdEstablecimiento]],'[1]Establecimiento 2023'!$A$1:$E$183,3,FALSE),0) -> 105306-Centro de Salud Familiar Paihuano | AC170: =IFERROR(VLOOKUP(Tabla_SERIED_12_5[[#This Row],[IdEstablecimiento]],'[1]Establecimiento 2023'!$A$1:$E$183,5,FALSE),0) -> 04105-Paiguano | AD170: 15010200 | AE170: 2022-05-18T11:50:26 | AF170: 38 | AK170: 10 | AL170: 14 | AM170: 14
X171: 4 | Y171: 5 | Z171: 2022 | AA171: 105306 | AB171: =IFERROR(VLOOKUP(Tabla_SERIED_12_5[[#This Row],[IdEstablecimiento]],'[1]Establecimiento 2023'!$A$1:$E$183,3,FALSE),0) -> 105306-Centro de Salud Familiar Paihuano | AC171: =IFERROR(VLOOKUP(Tabla_SERIED_12_5[[#This Row],[IdEstablecimiento]],'[1]Establecimiento 2023'!$A$1:$E$183,5,FALSE),0) -> 04105-Paiguano | AD171: 15080008 | AE171: 2022-05-18T11:50:26 | AF171: 12 | AN171: 6 | AP171: 6
X172: 4 | Y172: 5 | Z172: 2022 | AA172: 105306 | AB172: =IFERROR(VLOOKUP(Tabla_SERIED_12_5[[#This Row],[IdEstablecimiento]],'[1]Establecimiento 2023'!$A$1:$E$183,3,FALSE),0) -> 105306-Centro de Salud Familiar Paihuano | AC172: =IFERROR(VLOOKUP(Tabla_SERIED_12_5[[#This Row],[IdEstablecimiento]],'[1]Establecimiento 2023'!$A$1:$E$183,5,FALSE),0) -> 04105-Paiguano | AD172: 15900010 | AE172: 2022-05-18T11:50:26 | AF172: 3.2 | AH172: 3.2
X173: 4 | Y173: 5 | Z173: 2022 | AA173: 105306 | AB173: =IFERROR(VLOOKUP(Tabla_SERIED_12_5[[#This Row],[IdEstablecimiento]],'[1]Establecimiento 2023'!$A$1:$E$183,3,FALSE),0) -> 105306-Centro de Salud Familiar Paihuano | AC173: =IFERROR(VLOOKUP(Tabla_SERIED_12_5[[#This Row],[IdEstablecimiento]],'[1]Establecimiento 2023'!$A$1:$E$183,5,FALSE),0) -> 04105-Paiguano | AD173: 15030200 | AE173: 2022-05-18T11:50:26 | AF173: 3.6 | AI173: 3.6
X174: 4 | Y174: 5 | Z174: 2022 | AA174: 105306 | AB174: =IFERROR(VLOOKUP(Tabla_SERIED_12_5[[#This Row],[IdEstablecimiento]],'[1]Establecimiento 2023'!$A$1:$E$183,3,FALSE),0) -> 105306-Centro de Salud Familiar Paihuano | AC174: =IFERROR(VLOOKUP(Tabla_SERIED_12_5[[#This Row],[IdEstablecimiento]],'[1]Establecimiento 2023'!$A$1:$E$183,5,FALSE),0) -> 04105-Paiguano | AD174: 15050100 | AE174: 2022-05-18T11:50:26 | AF174: 32 | AG174: 6 | AH174: 26 | AJ174: 1 | AL174: 3 | AM174: 5 | AN174: 7 | AO174: 7 | AP174: 6 | AR174: 3
X175: 4 | Y175: 5 | Z175: 2022 | AA175: 105306 | AB175: =IFERROR(VLOOKUP(Tabla_SERIED_12_5[[#This Row],[IdEstablecimiento]],'[1]Establecimiento 2023'!$A$1:$E$183,3,FALSE),0) -> 105306-Centro de Salud Familiar Paihuano | AC175: =IFERROR(VLOOKUP(Tabla_SERIED_12_5[[#This Row],[IdEstablecimiento]],'[1]Establecimiento 2023'!$A$1:$E$183,5,FALSE),0) -> 04105-Paiguano | AD175: 15050500 | AE175: 2022-05-18T11:50:26 | AF175: 1 | AH175: 1 | AK175: 1
X176: 4 | Y176: 5 | Z176: 2022 | AA176: 105306 | AB176: =IFERROR(VLOOKUP(Tabla_SERIED_12_5[[#This Row],[IdEstablecimiento]],'[1]Establecimiento 2023'!$A$1:$E$183,3,FALSE),0) -> 105306-Centro de Salud Familiar Paihuano | AC176: =IFERROR(VLOOKUP(Tabla_SERIED_12_5[[#This Row],[IdEstablecimiento]],'[1]Establecimiento 2023'!$A$1:$E$183,5,FALSE),0) -> 04105-Paiguano | AD176: 16090300 | AE176: 2022-05-18T11:50:26 | AF176: 73 | AG176: 73
X177: 4 | Y177: 5 | Z177: 2022 | AA177: 105306 | AB177: =IFERROR(VLOOKUP(Tabla_SERIED_12_5[[#This Row],[IdEstablecimiento]],'[1]Establecimiento 2023'!$A$1:$E$183,3,FALSE),0) -> 105306-Centro de Salud Familiar Paihuano | AC177: =IFERROR(VLOOKUP(Tabla_SERIED_12_5[[#This Row],[IdEstablecimiento]],'[1]Establecimiento 2023'!$A$1:$E$183,5,FALSE),0) -> 04105-Paiguano | AD177: 16100300 | AE177: 2022-05-18T11:50:26 | AF177: 73 | AG177: 28 | AH177: 45 | AI177: 0 | AJ177: 15
X178: 4 | Y178: 5 | Z178: 2022 | AA178: 105306 | AB178: =IFERROR(VLOOKUP(Tabla_SERIED_12_5[[#This Row],[IdEstablecimiento]],'[1]Establecimiento 2023'!$A$1:$E$183,3,FALSE),0) -> 105306-Centro de Salud Familiar Paihuano | AC178: =IFERROR(VLOOKUP(Tabla_SERIED_12_5[[#This Row],[IdEstablecimiento]],'[1]Establecimiento 2023'!$A$1:$E$183,5,FALSE),0) -> 04105-Paiguano | AD178: 16200220 | AE178: 2022-05-18T11:50:26 | AF178: 0 | AJ178: 2
X179: 4 | Y179: 5 | Z179: 2022 | AA179: 105307 | AB179: =IFERROR(VLOOKUP(Tabla_SERIED_12_5[[#This Row],[IdEstablecimiento]],'[1]Establecimiento 2023'!$A$1:$E$183,3,FALSE),0) -> 105307-Centro de Salud Familiar Monte Patria | AC179: =IFERROR(VLOOKUP(Tabla_SERIED_12_5[[#This Row],[IdEstablecimiento]],'[1]Establecimiento 2023'!$A$1:$E$183,5,FALSE),0) -> 04303-Monte Patria | AD179: 15010100 | AE179: 2022-05-18T11:50:38 | AF179: 46 | AJ179: 46
X180: 4 | Y180: 5 | Z180: 2022 | AA180: 105307 | AB180: =IFERROR(VLOOKUP(Tabla_SERIED_12_5[[#This Row],[IdEstablecimiento]],'[1]Establecimiento 2023'!$A$1:$E$183,3,FALSE),0) -> 105307-Centro de Salud Familiar Monte Patria | AC180: =IFERROR(VLOOKUP(Tabla_SERIED_12_5[[#This Row],[IdEstablecimiento]],'[1]Establecimiento 2023'!$A$1:$E$183,5,FALSE),0) -> 04303-Monte Patria | AD180: 15010200 | AE180: 2022-05-18T11:50:38 | AF180: 229 | AK180: 54 | AL180: 98 | AM180: 77
X181: 4 | Y181: 5 | Z181: 2022 | AA181: 105307 | AB181: =IFERROR(VLOOKUP(Tabla_SERIED_12_5[[#This Row],[IdEstablecimiento]],'[1]Establecimiento 2023'!$A$1:$E$183,3,FALSE),0) -> 105307-Centro de Salud Familiar Monte Patria | AC181: =IFERROR(VLOOKUP(Tabla_SERIED_12_5[[#This Row],[IdEstablecimiento]],'[1]Establecimiento 2023'!$A$1:$E$183,5,FALSE),0) -> 04303-Monte Patria | AD181: 15080008 | AE181: 2022-05-18T11:50:38 | AF181: 108 | AN181: 39 | AP181: 50 | AQ181: 7 | AR181: 12
X182: 4 | Y182: 5 | Z182: 2022 | AA182: 105307 | AB182: =IFERROR(VLOOKUP(Tabla_SERIED_12_5[[#This Row],[IdEstablecimiento]],'[1]Establecimiento 2023'!$A$1:$E$183,3,FALSE),0) -> 105307-Centro de Salud Familiar Monte Patria | AC182: =IFERROR(VLOOKUP(Tabla_SERIED_12_5[[#This Row],[IdEstablecimiento]],'[1]Establecimiento 2023'!$A$1:$E$183,5,FALSE),0) -> 04303-Monte Patria | AD182: 15900010 | AE182: 2022-05-18T11:50:38 | AF182: 61.6 | AG182: 3.2 | AH182: 16 | AI182: 42.4
X183: 3 | Y183: 5 | Z183: 2022 | AA183: 105723 | AB183: =IFERROR(VLOOKUP(Tabla_SERIED_12_5[[#This Row],[IdEstablecimiento]],'[1]Establecimiento 2023'!$A$1:$E$183,3,FALSE),0) -> 105723-Centro Comunitario de Salud Familiar Limarí | AC183: =IFERROR(VLOOKUP(Tabla_SERIED_12_5[[#This Row],[IdEstablecimiento]],'[1]Establecimiento 2023'!$A$1:$E$183,5,FALSE),0) -> 04301-Ovalle | AD183: 16200100 | AE183: 2022-04-19T10:13:13 | AF183: 28 | AG183: 19 | AH183: 9 | AI183: 0 | AJ183: 4
X184: 2 | Y184: 5 | Z184: 2022 | AA184: 105486 | AB184: =IFERROR(VLOOKUP(Tabla_SERIED_12_5[[#This Row],[IdEstablecimiento]],'[1]Establecimiento 2023'!$A$1:$E$183,3,FALSE),0) -> 105486-Posta de Salud Rural Tunga Sur | AC184: =IFERROR(VLOOKUP(Tabla_SERIED_12_5[[#This Row],[IdEstablecimiento]],'[1]Establecimiento 2023'!$A$1:$E$183,5,FALSE),0) -> 04201-Illapel | AD184: 15010100 | AE184: 2022-03-17T09:55:59 | AF184: 2 | AJ184: 2
X185: 2 | Y185: 5 | Z185: 2022 | AA185: 105486 | AB185: =IFERROR(VLOOKUP(Tabla_SERIED_12_5[[#This Row],[IdEstablecimiento]],'[1]Establecimiento 2023'!$A$1:$E$183,3,FALSE),0) -> 105486-Posta de Salud Rural Tunga Sur | AC185: =IFERROR(VLOOKUP(Tabla_SERIED_12_5[[#This Row],[IdEstablecimiento]],'[1]Establecimiento 2023'!$A$1:$E$183,5,FALSE),0) -> 04201-Illapel | AD185: 15010200 | AE185: 2022-03-17T09:55:59 | AF185: 8 | AL185: 4 | AM185: 4
X186: 2 | Y186: 5 | Z186: 2022 | AA186: 105486 | AB186: =IFERROR(VLOOKUP(Tabla_SERIED_12_5[[#This Row],[IdEstablecimiento]],'[1]Establecimiento 2023'!$A$1:$E$183,3,FALSE),0) -> 105486-Posta de Salud Rural Tunga Sur | AC186: =IFERROR(VLOOKUP(Tabla_SERIED_12_5[[#This Row],[IdEstablecimiento]],'[1]Establecimiento 2023'!$A$1:$E$183,5,FALSE),0) -> 04201-Illapel | AD186: 15080008 | AE186: 2022-03-17T09:55:59 | AF186: 4 | AN186: 1 | AP186: 2 | AR186: 1
X187: 1 | Y187: 5 | Z187: 2022 | AA187: 105505 | AB187: =IFERROR(VLOOKUP(Tabla_SERIED_12_5[[#This Row],[IdEstablecimiento]],'[1]Establecimiento 2023'!$A$1:$E$183,3,FALSE),0) -> 105505-Posta de Salud Rural Los Choros | AC187: =IFERROR(VLOOKUP(Tabla_SERIED_12_5[[#This Row],[IdEstablecimiento]],'[1]Establecimiento 2023'!$A$1:$E$183,5,FALSE),0) -> 04104-La Higuera | AD187: 16090300 | AE187: 2022-02-17T04:20:06 | AF187: 28 | AG187: 28
X188: 1 | Y188: 5 | Z188: 2022 | AA188: 105505 | AB188: =IFERROR(VLOOKUP(Tabla_SERIED_12_5[[#This Row],[IdEstablecimiento]],'[1]Establecimiento 2023'!$A$1:$E$183,3,FALSE),0) -> 105505-Posta de Salud Rural Los Choros | AC188: =IFERROR(VLOOKUP(Tabla_SERIED_12_5[[#This Row],[IdEstablecimiento]],'[1]Establecimiento 2023'!$A$1:$E$183,5,FALSE),0) -> 04104-La Higuera | AD188: 16200210 | AE188: 2022-02-17T04:20:06 | AF188: 3 | AG188: 3
X189: 1 | Y189: 5 | Z189: 2022 | AA189: 105505 | AB189: =IFERROR(VLOOKUP(Tabla_SERIED_12_5[[#This Row],[IdEstablecimiento]],'[1]Establecimiento 2023'!$A$1:$E$183,3,FALSE),0) -> 105505-Posta de Salud Rural Los Choros | AC189: =IFERROR(VLOOKUP(Tabla_SERIED_12_5[[#This Row],[IdEstablecimiento]],'[1]Establecimiento 2023'!$A$1:$E$183,5,FALSE),0) -> 04104-La Higuera | AD189: 16100300 | AE189: 2022-02-17T04:20:06 | AF189: 28 | AG189: 11 | AH189: 17
X190: 1 | Y190: 5 | Z190: 2022 | AA190: 105505 | AB190: =IFERROR(VLOOKUP(Tabla_SERIED_12_5[[#This Row],[IdEstablecimiento]],'[1]Establecimiento 2023'!$A$1:$E$183,3,FALSE),0) -> 105505-Posta de Salud Rural Los Choros | AC190: =IFERROR(VLOOKUP(Tabla_SERIED_12_5[[#This Row],[IdEstablecimiento]],'[1]Establecimiento 2023'!$A$1:$E$183,5,FALSE),0) -> 04104-La Higuera | AD190: 16200220 | AE190: 2022-02-17T04:20:06 | AF190: 3 | AH190: 3
X191: 1 | Y191: 5 | Z191: 2022 | AA191: 105506 | AB191: =IFERROR(VLOOKUP(Tabla_SERIED_12_5[[#This Row],[IdEstablecimiento]],'[1]Establecimiento 2023'!$A$1:$E$183,3,FALSE),0) -> 105506-Posta de Salud Rural El Trapiche | AC191: =IFERROR(VLOOKUP(Tabla_SERIED_12_5[[#This Row],[IdEstablecimiento]],'[1]Establecimiento 2023'!$A$1:$E$183,5,FALSE),0) -> 04104-La Higuera | AD191: 15010200 | AE191: 2022-02-17T04:20:26 | AF191: 6 | AK191: 4 | AL191: 2
X192: 1 | Y192: 5 | Z192: 2022 | AA192: 105506 | AB192: =IFERROR(VLOOKUP(Tabla_SERIED_12_5[[#This Row],[IdEstablecimiento]],'[1]Establecimiento 2023'!$A$1:$E$183,3,FALSE),0) -> 105506-Posta de Salud Rural El Trapiche | AC192: =IFERROR(VLOOKUP(Tabla_SERIED_12_5[[#This Row],[IdEstablecimiento]],'[1]Establecimiento 2023'!$A$1:$E$183,5,FALSE),0) -> 04104-La Higuera | AD192: 15080008 | AE192: 2022-02-17T04:20:26 | AF192: 1 | AN192: 1
X193: 1 | Y193: 5 | Z193: 2022 | AA193: 105506 | AB193: =IFERROR(VLOOKUP(Tabla_SERIED_12_5[[#This Row],[IdEstablecimiento]],'[1]Establecimiento 2023'!$A$1:$E$183,3,FALSE),0) -> 105506-Posta de Salud Rural El Trapiche | AC193: =IFERROR(VLOOKUP(Tabla_SERIED_12_5[[#This Row],[IdEstablecimiento]],'[1]Establecimiento 2023'!$A$1:$E$183,5,FALSE),0) -> 04104-La Higuera | AD193: 15050100 | AE193: 2022-02-17T04:20:26 | AF193: 4 | AG193: 2 | AH193: 2 | AM193: 2 | AN193: 1 | AP193: 1
X194: 1 | Y194: 5 | Z194: 2022 | AA194: 105506 | AB194: =IFERROR(VLOOKUP(Tabla_SERIED_12_5[[#This Row],[IdEstablecimiento]],'[1]Establecimiento 2023'!$A$1:$E$183,3,FALSE),0) -> 105506-Posta de Salud Rural El Trapiche | AC194: =IFERROR(VLOOKUP(Tabla_SERIED_12_5[[#This Row],[IdEstablecimiento]],'[1]Establecimiento 2023'!$A$1:$E$183,5,FALSE),0) -> 04104-La Higuera | AD194: 16090300 | AE194: 2022-02-17T04:20:26 | AF194: 7 | AG194: 7
X195: 1 | Y195: 5 | Z195: 2022 | AA195: 105506 | AB195: =IFERROR(VLOOKUP(Tabla_SERIED_12_5[[#This Row],[IdEstablecimiento]],'[1]Establecimiento 2023'!$A$1:$E$183,3,FALSE),0) -> 105506-Posta de Salud Rural El Trapiche | AC195: =IFERROR(VLOOKUP(Tabla_SERIED_12_5[[#This Row],[IdEstablecimiento]],'[1]Establecimiento 2023'!$A$1:$E$183,5,FALSE),0) -> 04104-La Higuera | AD195: 16100300 | AE195: 2022-02-17T04:20:26 | AF195: 7 | AG195: 4 | AH195: 3
X196: 1 | Y196: 5 | Z196: 2022 | AA196: 105507 | AB196: =IFERROR(VLOOKUP(Tabla_SERIED_12_5[[#This Row],[IdEstablecimiento]],'[1]Establecimiento 2023'!$A$1:$E$183,3,FALSE),0) -> 105507-Posta de Salud Rural Huamalata | AC196: =IFERROR(VLOOKUP(Tabla_SERIED_12_5[[#This Row],[IdEstablecimiento]],'[1]Establecimiento 2023'!$A$1:$E$183,5,FALSE),0) -> 04301-Ovalle | AD196: 15010100 | AE196: 2022-02-17T04:20:48 | AF196: 4 | AI196: 2 | AJ196: 2
X197: 1 | Y197: 5 | Z197: 2022 | AA197: 105507 | AB197: =IFERROR(VLOOKUP(Tabla_SERIED_12_5[[#This Row],[IdEstablecimiento]],'[1]Establecimiento 2023'!$A$1:$E$183,3,FALSE),0) -> 105507-Posta de Salud Rural Huamalata | AC197: =IFERROR(VLOOKUP(Tabla_SERIED_12_5[[#This Row],[IdEstablecimiento]],'[1]Establecimiento 2023'!$A$1:$E$183,5,FALSE),0) -> 04301-Ovalle | AD197: 15010200 | AE197: 2022-02-17T04:20:48 | AF197: 32 | AK197: 10 | AL197: 12 | AM197: 10
X198: 1 | Y198: 5 | Z198: 2022 | AA198: 105702 | AB198: =IFERROR(VLOOKUP(Tabla_SERIED_12_5[[#This Row],[IdEstablecimiento]],'[1]Establecimiento 2023'!$A$1:$E$183,3,FALSE),0) -> 105702-Centro Comunitario de Salud Familiar Lambert | AC198: =IFERROR(VLOOKUP(Tabla_SERIED_12_5[[#This Row],[IdEstablecimiento]],'[1]Establecimiento 2023'!$A$1:$E$183,5,FALSE),0) -> 04101-La Serena | AD198: 15010100 | AE198: 2022-02-17T04:23:12 | AF198: 22 | AI198: 2 | AJ198: 20
X199: 1 | Y199: 5 | Z199: 2022 | AA199: 105702 | AB199: =IFERROR(VLOOKUP(Tabla_SERIED_12_5[[#This Row],[IdEstablecimiento]],'[1]Establecimiento 2023'!$A$1:$E$183,3,FALSE),0) -> 105702-Centro Comunitario de Salud Familiar Lambert | AC199: =IFERROR(VLOOKUP(Tabla_SERIED_12_5[[#This Row],[IdEstablecimiento]],'[1]Establecimiento 2023'!$A$1:$E$183,5,FALSE),0) -> 04101-La Serena | AD199: 15010200 | AE199: 2022-02-17T04:23:12 | AF199: 74 | AK199: 18 | AL199: 36 | AM199: 20
X200: 4 | Y200: 5 | Z200: 2022 | AA200: 105307 | AB200: =IFERROR(VLOOKUP(Tabla_SERIED_12_5[[#This Row],[IdEstablecimiento]],'[1]Establecimiento 2023'!$A$1:$E$183,3,FALSE),0) -> 105307-Centro de Salud Familiar Monte Patria | AC200: =IFERROR(VLOOKUP(Tabla_SERIED_12_5[[#This Row],[IdEstablecimiento]],'[1]Establecimiento 2023'!$A$1:$E$183,5,FALSE),0) -> 04303-Monte Patria | AD200: 15010400 | AE200: 2022-05-18T11:50:38 | AF200: 10 | AL200: 8 | AM200: 2
... 4300 more rows
